Workbook

Sheet 1. Info
R1: 1
N13: Version | O13: 1
C14: Applicant Name: | F14: Innisfil Hydro Distribution Systems Limited
C16: Service Territory:
C18: Name: | F18: Brenda L Pinke
C20: Title: | D20: Title: | F20: Regulatory/CDM Manager
C22: Phone Number: | F22: 705-431-6870 Ext 262 | AA22: Company Name
Z23: 1 | AA23: Algoma Power Inc.
C24: Email Address: | F24: brendap@innisiflhydro.com | Z24: 2 | AA24: Atikokan Hydro Inc.
Z25: 3 | AA25: Attawapiskat Power Corp.
Z26: 4 | AA26: Bluewater Power Distribution Corporation
Z27: 5 | AA27: Brant County Power Inc.
C28: This Workbook Model is protected by copyright and is being made available to you solely for the purpose of filing your IRM application. You may use and copy this model for that purpose, and provide a copy of this model to any person that is advising or assisting you in that regard. Except as indicated above, any copying, reproduction, publication, sale, adaptation, translation, modification, reverse engineering or other use or dissemination of this model without the express written consent of the Ontario Energy Board is prohibited. If you provide a copy of this model to a person that is advising or assisting you in preparing the application or reviewing your draft rate order, you must ensure that the person understands and agrees to the restrictions noted above. While this model has been provided in Excel format and is required to be filed with the applications, the onus remains on the applicant to ensure the accuracy of the data and the results. | Z28: 6 | AA28: Brantford Power Inc.
Z29: 7 | AA29: Burlington Hydro Inc.
Z30: 8 | AA30: Cambridge and North Dumfries Hydro Inc.
Z31: 9 | AA31: Canadian Niagara Power Inc.
Z32: 10 | AA32: Centre Wellington Hydro Ltd.
Z33: 11 | AA33: Chapleau Public Utilities Corporation
Z34: 12 | AA34: Clinton Power Corporation
Z35: 13 | AA35: COLLUS Power Corporation
Z36: 14 | AA36: Cooperative Hydro Embrun Inc.
Z37: 15 | AA37: E.L.K. Energy Inc.
Z38: 16 | AA38: Enersource Hydro Mississauga Inc.
Z39: 17 | AA39: Entegrus Powerlines Inc.
Z40: 18 | AA40: ENWIN Utilities Ltd.
Z41: 19 | AA41: Erie Thames Powerlines Corporation
Z42: 20 | AA42: Espanola Regional Hydro Distribution Corporation
Z43: 21 | AA43: Essex Powerlines Corporation
Z44: 22 | AA44: Festival Hydro Inc.
Z45: 23 | AA45: Fort Albany Power Corporation
Z46: 24 | AA46: Fort Frances Power Corporation
Z47: 25 | AA47: Greater Sudbury Hydro Inc.
Z48: 26 | AA48: Grimsby Power Inc.
Z49: 27 | AA49: Guelph Hydro Electric Systems Inc.
Z50: 28 | AA50: Haldimand County Hydro Inc.
Z51: 29 | AA51: Halton Hills Hydro Inc.
Z52: 30 | AA52: Hearst Power Distribution Company Limited
Z53: 31 | AA53: Horizon Utilities Corporation
Z54: 32 | AA54: Hydro 2000 Inc.
Z55: 33 | AA55: Hydro Hawkesbury Inc.
Z56: 34 | AA56: Hydro One Brampton Networks Inc.
Z57: 35 | AA57: Hydro One Networks Inc.
Z58: 36 | AA58: Hydro Ottawa Limited
Z59: 37 | AA59: Innisfil Hydro Distribution Systems Limited
Z60: 38 | AA60: Kashechewan Power Corporation
Z61: 39 | AA61: Kenora Hydro Electric Corporation Ltd.
Z62: 40 | AA62: Kingston Hydro Corporation
Z63: 41 | AA63: Kitchener-Wilmot Hydro Inc.
Z64: 42 | AA64: Lakefront Utilities Inc.
Z65: 43 | AA65: Lakeland Power Distribution Ltd.
Z66: 44 | AA66: London Hydro Inc.
Z67: 45 | AA67: Midland Power Utility Corporation
Z68: 46 | AA68: Milton Hydro Distribution inc.
Z69: 47 | AA69: Newmarket - Tay Power Distribution Ltd.
Z70: 48 | AA70: Niagara Peninsula Energy Inc.
Z71: 49 | AA71: Niagara-on-the-Lake Hydro Inc.
Z72: 50 | AA72: Norfolk Power Distribution Inc.
Z73: 51 | AA73: North Bay Hydro Distribution Limited
Z74: 52 | AA74: Northern Ontario Wires Inc.
Z75: 53 | AA75: Oakville Hydro Electricity Distribution Inc.
Z76: 54 | AA76: Orangeville Hydro Limited
Z77: 55 | AA77: Orillia Power Distribution Corporation
Z78: 56 | AA78: Oshawa PUC Networks Inc.
Z79: 57 | AA79: Ottawa River Power Corporation
Z80: 58 | AA80: Parry Sound Power Corporation
Z81: 59 | AA81: Peterborough Distribution Incorporated
Z82: 60 | AA82: PowerStream Inc.
Z83: 61 | AA83: PUC Distribution Inc.
Z84: 62 | AA84: Renfrew Hydro Inc.
Z85: 63 | AA85: Rideau St. Lawrence Distribution Inc.
Z86: 64 | AA86: Sioux Lookout Hydro Inc.
Z87: 65 | AA87: St. Thomas Energy Inc.
Z88: 66 | AA88: Thunder Bay Hydro Electricity Distribution Inc.
Z89: 67 | AA89: Tillsonburg Hydro Inc.
Z90: 68 | AA90: Toronto Hydro-Electric System Limited
Z91: 69 | AA91: Veridian Connections Inc.
Z92: 70 | AA92: Wasaga Distribution Inc.
Z93: 71 | AA93: Waterloo North Hydro Inc.
Z94: 72 | AA94: Welland Hydro-Electric System Corp.
Z95: 73 | AA95: Wellington North Power Inc.
Z96: 74 | AA96: West Coast Huron Energy Inc.
Z97: 75 | AA97: West Perth Power Inc.
Z98: 76 | AA98: Westario Power Inc.
Z99: 77 | AA99: Whitby Hydro Electric Corporation
Z100: 78 | AA100: Woodstock Hydro Services Inc.

Sheet Incremental Capital Summary
B10: Using the pull-down menu below, please identify what year of the IRM cycle you are in.
B11: 3rd year of IRM cycle
B13: Name or General Description of Project
B14: Innisfil Hydro New Corporate Operations Centre
B16: Details of Project
B17: Building of a Operations Centre and Corporate Headquarters
G19: Capital Cost (1/2 year rule applied) | I19: Depreciation Rate
B20: Asset Component | E20: Capital Cost | K20: CCA Class | M20: CCA Rate
B21: 1 | C21: Building | E21: 10694626 | G21: =IF($B$11="4th year of IRM cycle", E21/2, 0) -> 0 | I21: 0.02 | K21: 1 | M21: 0.06
B22: 2 | C22: Roof and HVAC | E22: =412692+341945 -> 754637 | G22: =IF($B$11="4th year of IRM cycle", E22/2, 0) -> 0 | I22: 0.05 | K22: 1 | M22: 0.06
B23: 3 | C23: Parking lot and roads | E23: =341945+440000 -> 781945 | G23: =IF($B$11="4th year of IRM cycle", E23/2, 0) -> 0 | I23: 0.04 | K23: 17 | M23: 0.08
B24: 4 | C24: Land | E24: 1015496 | G24: =IF($B$11="4th year of IRM cycle", E24/2, 0) -> 0 | I24: 0 | M24: 0
B25: 5 | G25: =IF($B$11="4th year of IRM cycle", E25/2, 0) -> 0
E27: 2015 | I27: 2016 | K27: 2017 | M27: 2018 | O27: 2019
B28: Closing Net Fixed Asset | E28: =SUM('Fixed Asset Amort and UCC 1'!D32,'Fixed Asset Amort and UCC 2'!D32, 'Fixed Asset Amort and UCC 3'!D32, 'Fixed Asset Amort and UCC 4'!D32, 'Fixed Asset Amort and UCC 5'!D32) -> 12963801.83 | I28: =SUM('Fixed Asset Amort and UCC 1'!E32,'Fixed Asset Amort and UCC 2'!E32, 'Fixed Asset Amort and UCC 3'!E32, 'Fixed Asset Amort and UCC 4'!E32, 'Fixed Asset Amort and UCC 5'!E32) -> 12680899.66 | K28: =SUM('Fixed Asset Amort and UCC 1'!F32,'Fixed Asset Amort and UCC 2'!F32, 'Fixed Asset Amort and UCC 3'!F32, 'Fixed Asset Amort and UCC 4'!F32, 'Fixed Asset Amort and UCC 5'!F32) -> 12397997.49 | M28: =SUM('Fixed Asset Amort and UCC 1'!G32,'Fixed Asset Amort and UCC 2'!G32, 'Fixed Asset Amort and UCC 3'!G32, 'Fixed Asset Amort and UCC 4'!G32, 'Fixed Asset Amort and UCC 5'!G32) -> 12115095.32 | O28: =SUM('Fixed Asset Amort and UCC 1'!H32,'Fixed Asset Amort and UCC 2'!H32, 'Fixed Asset Amort and UCC 3'!H32, 'Fixed Asset Amort and UCC 4'!H32, 'Fixed Asset Amort and UCC 5'!H32) -> 11832193.15
B30: Amortization Expense | E30: =SUM('Fixed Asset Amort and UCC 1'!D28,'Fixed Asset Amort and UCC 2'!D28, 'Fixed Asset Amort and UCC 3'!D28, 'Fixed Asset Amort and UCC 4'!D28, 'Fixed Asset Amort and UCC 5'!D28) -> 282902.17 | I30: =SUM('Fixed Asset Amort and UCC 1'!E28,'Fixed Asset Amort and UCC 2'!E28, 'Fixed Asset Amort and UCC 3'!E28, 'Fixed Asset Amort and UCC 4'!E28, 'Fixed Asset Amort and UCC 5'!E28) -> 282902.17 | K30: =SUM('Fixed Asset Amort and UCC 1'!F28,'Fixed Asset Amort and UCC 2'!F28, 'Fixed Asset Amort and UCC 3'!F28, 'Fixed Asset Amort and UCC 4'!F28, 'Fixed Asset Amort and UCC 5'!F28) -> 282902.17 | M30: =SUM('Fixed Asset Amort and UCC 1'!G28,'Fixed Asset Amort and UCC 2'!G28, 'Fixed Asset Amort and UCC 3'!G28, 'Fixed Asset Amort and UCC 4'!G28, 'Fixed Asset Amort and UCC 5'!G28) -> 282902.17 | O30: =SUM('Fixed Asset Amort and UCC 1'!H28,'Fixed Asset Amort and UCC 2'!H28, 'Fixed Asset Amort and UCC 3'!H28, 'Fixed Asset Amort and UCC 4'!H28, 'Fixed Asset Amort and UCC 5'!H28) -> 282902.17
B32: CCA | E32: =SUM('Fixed Asset Amort and UCC 1'!D50,'Fixed Asset Amort and UCC 2'!D50, 'Fixed Asset Amort and UCC 3'!D50, 'Fixed Asset Amort and UCC 4'!D50, 'Fixed Asset Amort and UCC 5'!D50) -> 749511.38 | I32: =SUM('Fixed Asset Amort and UCC 1'!E50,'Fixed Asset Amort and UCC 2'!E50, 'Fixed Asset Amort and UCC 3'!E50, 'Fixed Asset Amort and UCC 4'!E50, 'Fixed Asset Amort and UCC 5'!E50) -> 703289.5852 | K32: =SUM('Fixed Asset Amort and UCC 1'!F50,'Fixed Asset Amort and UCC 2'!F50, 'Fixed Asset Amort and UCC 3'!F50, 'Fixed Asset Amort and UCC 4'!F50, 'Fixed Asset Amort and UCC 5'!F50) -> 659941.187 | M32: =SUM('Fixed Asset Amort and UCC 1'!G50,'Fixed Asset Amort and UCC 2'!G50, 'Fixed Asset Amort and UCC 3'!G50, 'Fixed Asset Amort and UCC 4'!G50, 'Fixed Asset Amort and UCC 5'!G50) -> 619285.7746 | O32: =SUM('Fixed Asset Amort and UCC 1'!H50,'Fixed Asset Amort and UCC 2'!H50, 'Fixed Asset Amort and UCC 3'!H50, 'Fixed Asset Amort and UCC 4'!H50, 'Fixed Asset Amort and UCC 5'!H50) -> 581154.4022

Sheet Fixed Asset Amort and UCC 1
B10: Fixed Asset Amortization and UCC 1
B12: Name or General Description of Project
B13: =IF(ISBLANK('Incremental Capital Summary'!B14), "", 'Incremental Capital Summary'!B14) -> Innisfil Hydro New Corporate Operations Centre
B15: Asset Component
B16: =IF(ISBLANK('Incremental Capital Summary'!C21),"",'Incremental Capital Summary'!C21) -> Building
B19: Average Net Fixed Assets
D20: 2015 | E20: 2016 | F20: 2017 | G20: 2018 | H20: 2019
B21: Net Fixed Assets | D21: Forecasted | E21: Forecasted | F21: Forecasted | G21: Forecasted | H21: Forecasted
B23: Opening Capital Investment | D23: 0 | E23: =D25 -> 10694626 | F23: =E25 -> 10694626 | G23: =F25 -> 10694626 | H23: =G25 -> 10694626
B24: Capital Investment | D24: =IF('Incremental Capital Summary'!$B$11="4th year of IRM cycle", 'Incremental Capital Summary'!E21/2, 'Incremental Capital Summary'!E21) -> 10694626 | E24: 0 | F24: 0 | G24: 0 | H24: 0
B25: Closing Capital Investment | D25: =SUM(D23:D24) -> 10694626 | E25: =SUM(E23:E24) -> 10694626 | F25: =SUM(F23:F24) -> 10694626 | G25: =SUM(G23:G24) -> 10694626 | H25: =SUM(H23:H24) -> 10694626
B27: Opening Accumulated Amortization | D27: 0 | E27: =D29 -> 213892.52 | F27: =E29 -> 427785.04 | G27: =F29 -> 641677.56 | H27: =G29 -> 855570.08
B28: Amortization | C28: ='Incremental Capital Summary'!I21 -> 0.02 | D28: =D24*$C$28 -> 213892.52 | E28: =E23*$C$28 -> 213892.52 | F28: =F23*$C$28 -> 213892.52 | G28: =G23*$C$28 -> 213892.52 | H28: =H23*$C$28 -> 213892.52
B29: Closing Accumulated Amortization | D29: =SUM(D27:D28) -> 213892.52 | E29: =SUM(E27:E28) -> 427785.04 | F29: =SUM(F27:F28) -> 641677.56 | G29: =SUM(G27:G28) -> 855570.08 | H29: =SUM(H27:H28) -> 1069462.6
B31: Opening Net Fixed Assets | D31: 0 | E31: =E23-E27 -> 10480733.48 | F31: =F23-F27 -> 10266840.96 | G31: =G23-G27 -> 10052948.44 | H31: =H23-H27 -> 9839055.92
B32: Closing Net Fixed Assets | D32: =D25-D29 -> 10480733.48 | E32: =E25-E29 -> 10266840.96 | F32: =F25-F29 -> 10052948.44 | G32: =G25-G29 -> 9839055.92 | H32: =H25-H29 -> 9625163.4
B33: Average Net Fixed Assets | D33: =SUM(D31:D32)/2 -> 5240366.74 | E33: =SUM(E31:E32)/2 -> 10373787.22 | F33: =SUM(F31:F32)/2 -> 10159894.7 | G33: =SUM(G31:G32)/2 -> 9946002.18 | H33: =SUM(H31:H32)/2 -> 9732109.66
B38: For PILs Calculation
B40: UCC | D40: 2015 | E40: 2016 | F40: 2017 | G40: 2018 | H40: 2019
D41: Forecasted | E41: Forecasted | F41: Forecasted | G41: Forecasted | H41: Forecasted
B43: Opening UCC | D43: 0 | E43: =D51 -> 10052948.44 | F43: =E51 -> 9449771.534 | G43: =F51 -> 8882785.242 | H43: =G51 -> 8349818.127
B44: Capital Additions | D44: =D24 -> 10694626 | E44: =E24 -> 0 | F44: =F24 -> 0 | G44: =G24 -> 0 | H44: =H24 -> 0
B45: UCC Before Half Year Rule | D45: =SUM(D43:D44) -> 10694626 | E45: =SUM(E43:E44) -> 10052948.44 | F45: =SUM(F43:F44) -> 9449771.534 | G45: =SUM(G43:G44) -> 8882785.242 | H45: =SUM(H43:H44) -> 8349818.127
B46: Half Year Rule (1/2 Additions - Disposals) | D46: 0 | E46: =E44/2 -> 0 | F46: =F44/2 -> 0 | G46: =G44/2 -> 0 | H46: =H44/2 -> 0
B47: Reduced UCC | D47: =D45-D46 -> 10694626 | E47: =E45-E46 -> 10052948.44 | F47: =F45-F46 -> 9449771.534 | G47: =G45-G46 -> 8882785.242 | H47: =H45-H46 -> 8349818.127
B48: CCA Rate Class | C48: ='Incremental Capital Summary'!K21 -> 1
B49: CCA Rate | C49: ='Incremental Capital Summary'!M21 -> 0.06
B50: CCA | D50: =D47*$C$49 -> 641677.56 | E50: =E47*$C$49 -> 603176.9064 | F50: =F47*$C$49 -> 566986.292 | G50: =G47*$C$49 -> 532967.1145 | H50: =H47*$C$49 -> 500989.0876
B51: Closing UCC | D51: =D45-D50 -> 10052948.44 | E51: =E45-E50 -> 9449771.534 | F51: =F45-F50 -> 8882785.242 | G51: =G45-G50 -> 8349818.127 | H51: =H45-H50 -> 7848829.039

Sheet Fixed Asset Amort and UCC 2
B10: Fixed Asset Amortization and UCC 2
B12: Name or General Description of Project
B13: =IF(ISBLANK('Incremental Capital Summary'!B14), "", 'Incremental Capital Summary'!B14) -> Innisfil Hydro New Corporate Operations Centre
B15: Asset Component
B16: =IF(ISBLANK('Incremental Capital Summary'!C22),"",'Incremental Capital Summary'!C22) -> Roof and HVAC
B19: Average Net Fixed Assets
D20: 2015 | E20: 2016 | F20: 2017 | G20: 2018 | H20: 2019
B21: Net Fixed Assets | D21: Forecasted | E21: Forecasted | F21: Forecasted | G21: Forecasted | H21: Forecasted
B23: Opening Capital Investment | D23: 0 | E23: =D25 -> 754637 | F23: =E25 -> 754637 | G23: =F25 -> 754637 | H23: =G25 -> 754637
B24: Capital Investment | D24: =IF('Incremental Capital Summary'!$B$11="4th year of IRM cycle", 'Incremental Capital Summary'!E22/2, 'Incremental Capital Summary'!E22) -> 754637 | E24: 0 | F24: 0 | G24: 0 | H24: 0
B25: Closing Capital Investment | D25: =SUM(D23:D24) -> 754637 | E25: =SUM(E23:E24) -> 754637 | F25: =SUM(F23:F24) -> 754637 | G25: =SUM(G23:G24) -> 754637 | H25: =SUM(H23:H24) -> 754637
B27: Opening Accumulated Amortization | D27: 0 | E27: =D29 -> 37731.85 | F27: =E29 -> 75463.7 | G27: =F29 -> 113195.55 | H27: =G29 -> 150927.4
B28: Amortization | C28: ='Incremental Capital Summary'!I22 -> 0.05 | D28: =D24*$C$28 -> 37731.85 | E28: =E23*$C$28 -> 37731.85 | F28: =F23*$C$28 -> 37731.85 | G28: =G23*$C$28 -> 37731.85 | H28: =H23*$C$28 -> 37731.85
B29: Closing Accumulated Amortization | D29: =SUM(D27:D28) -> 37731.85 | E29: =SUM(E27:E28) -> 75463.7 | F29: =SUM(F27:F28) -> 113195.55 | G29: =SUM(G27:G28) -> 150927.4 | H29: =SUM(H27:H28) -> 188659.25
B31: Opening Net Fixed Assets | D31: 0 | E31: =E23-E27 -> 716905.15 | F31: =F23-F27 -> 679173.3 | G31: =G23-G27 -> 641441.45 | H31: =H23-H27 -> 603709.6
B32: Closing Net Fixed Assets | D32: =D25-D29 -> 716905.15 | E32: =E25-E29 -> 679173.3 | F32: =F25-F29 -> 641441.45 | G32: =G25-G29 -> 603709.6 | H32: =H25-H29 -> 565977.75
B33: Average Net Fixed Assets | D33: =SUM(D31:D32)/2 -> 358452.575 | E33: =SUM(E31:E32)/2 -> 698039.225 | F33: =SUM(F31:F32)/2 -> 660307.375 | G33: =SUM(G31:G32)/2 -> 622575.525 | H33: =SUM(H31:H32)/2 -> 584843.675
B38: For PILs Calculation
B40: UCC | D40: =D20 -> 2015 | E40: =E20 -> 2016 | F40: 2017 | G40: 2018 | H40: 2019
D41: Forecasted | E41: Forecasted | F41: Forecasted | G41: Forecasted | H41: Forecasted
B43: Opening UCC | D43: 0 | E43: =D51 -> 709358.78 | F43: =E51 -> 666797.2532 | G43: =F51 -> 626789.418 | H43: =G51 -> 589182.0529
B44: Capital Additions | D44: =D24 -> 754637 | E44: =E24 -> 0 | F44: =F24 -> 0 | G44: =G24 -> 0 | H44: =H24 -> 0
B45: UCC Before Half Year Rule | D45: =SUM(D43:D44) -> 754637 | E45: =SUM(E43:E44) -> 709358.78 | F45: =SUM(F43:F44) -> 666797.2532 | G45: =SUM(G43:G44) -> 626789.418 | H45: =SUM(H43:H44) -> 589182.0529
B46: Half Year Rule (1/2 Additions - Disposals) | D46: 0 | E46: =E44/2 -> 0 | F46: =F44/2 -> 0 | G46: =G44/2 -> 0 | H46: =H44/2 -> 0
B47: Reduced UCC | D47: =D45-D46 -> 754637 | E47: =E45-E46 -> 709358.78 | F47: =F45-F46 -> 666797.2532 | G47: =G45-G46 -> 626789.418 | H47: =H45-H46 -> 589182.0529
B48: CCA Rate Class | C48: ='Incremental Capital Summary'!K22 -> 1
B49: CCA Rate | C49: ='Incremental Capital Summary'!M22 -> 0.06
B50: CCA | D50: =D47*$C$49 -> 45278.22 | E50: =E47*$C$49 -> 42561.5268 | F50: =F47*$C$49 -> 40007.83519 | G50: =G47*$C$49 -> 37607.36508 | H50: =H47*$C$49 -> 35350.92318
B51: Closing UCC | D51: =D45-D50 -> 709358.78 | E51: =E45-E50 -> 666797.2532 | F51: =F45-F50 -> 626789.418 | G51: =G45-G50 -> 589182.0529 | H51: =H45-H50 -> 553831.1298

Sheet Fixed Asset Amort and UCC 3
B10: Fixed Asset Amortization and UCC 3
B12: Name or General Description of Project
B13: =IF(ISBLANK('Incremental Capital Summary'!B14), "", 'Incremental Capital Summary'!B14) -> Innisfil Hydro New Corporate Operations Centre
B15: Asset Component
B16: =IF(ISBLANK('Incremental Capital Summary'!C23),"",'Incremental Capital Summary'!C23) -> Parking lot and roads
B19: Average Net Fixed Assets
D20: 2015 | E20: 2016 | F20: 2017 | G20: 2018 | H20: 2019
B21: Net Fixed Assets | D21: Forecasted | E21: Forecasted | F21: Forecasted | G21: Forecasted | H21: Forecasted
B23: Opening Capital Investment | D23: 0 | E23: =D25 -> 781945 | F23: =E25 -> 781945 | G23: =F25 -> 781945 | H23: =G25 -> 781945
B24: Capital Investment | D24: =IF('Incremental Capital Summary'!$B$11="4th year of IRM cycle", 'Incremental Capital Summary'!E23/2, 'Incremental Capital Summary'!E23) -> 781945 | E24: 0 | F24: 0 | G24: 0 | H24: 0
B25: Closing Capital Investment | D25: =SUM(D23:D24) -> 781945 | E25: =SUM(E23:E24) -> 781945 | F25: =SUM(F23:F24) -> 781945 | G25: =SUM(G23:G24) -> 781945 | H25: =SUM(H23:H24) -> 781945
B27: Opening Accumulated Amortization | D27: 0 | E27: =D29 -> 31277.8 | F27: =E29 -> 62555.6 | G27: =F29 -> 93833.4 | H27: =G29 -> 125111.2
B28: Amortization | C28: ='Incremental Capital Summary'!I23 -> 0.04 | D28: =D24*$C$28 -> 31277.8 | E28: =E23*$C$28 -> 31277.8 | F28: =F23*$C$28 -> 31277.8 | G28: =G23*$C$28 -> 31277.8 | H28: =H23*$C$28 -> 31277.8
B29: Closing Accumulated Amortization | D29: =SUM(D27:D28) -> 31277.8 | E29: =SUM(E27:E28) -> 62555.6 | F29: =SUM(F27:F28) -> 93833.4 | G29: =SUM(G27:G28) -> 125111.2 | H29: =SUM(H27:H28) -> 156389
B31: Opening Net Fixed Assets | D31: 0 | E31: =E23-E27 -> 750667.2 | F31: =F23-F27 -> 719389.4 | G31: =G23-G27 -> 688111.6 | H31: =H23-H27 -> 656833.8
B32: Closing Net Fixed Assets | D32: =D25-D29 -> 750667.2 | E32: =E25-E29 -> 719389.4 | F32: =F25-F29 -> 688111.6 | G32: =G25-G29 -> 656833.8 | H32: =H25-H29 -> 625556
B33: Average Net Fixed Assets | D33: =SUM(D31:D32)/2 -> 375333.6 | E33: =SUM(E31:E32)/2 -> 735028.3 | F33: =SUM(F31:F32)/2 -> 703750.5 | G33: =SUM(G31:G32)/2 -> 672472.7 | H33: =SUM(H31:H32)/2 -> 641194.9
B38: For PILs Calculation
B40: UCC | D40: =D20 -> 2015 | E40: =E20 -> 2016 | F40: 2017 | G40: 2018 | H40: 2019 | I40: 0 | J40: 0 | K40: 0 | L40: 0 | M40: 0 | N40: 0 | O40: 0 | P40: 0 | Q40: 0 | R40: 0 | S40: 0 | T40: 0 | U40: 0 | V40: 0 | W40: 0 | X40: 0 | Y40: 0 | Z40: 0 | AA40: 0 | AB40: 0 | AC40: 0 | AD40: 0 | AE40: 0 | AF40: 0 | AG40: 0 | AH40: 0 | AI40: 0 | AJ40: 0 | AK40: 0 | AL40: 0 | AM40: 0 | AN40: 0 | AO40: 0 | AP40: 0 | AQ40: 0 | AR40: 0 | AS40: 0 | AT40: 0 | AU40: 0 | AV40: 0 | AW40: 0 | AX40: 0 | AY40: 0 | AZ40: 0 | BA40: 0 | BB40: 0 | BC40: 0 | BD40: 0 | BE40: 0 | BF40: 0 | BG40: 0 | BH40: 0 | BI40: 0 | BJ40: 0 | BK40: 0 | BL40: 0 | BM40: 0 | BN40: 0 | BO40: 0 | BP40: 0 | BQ40: =BQ20 -> 0 | BR40: 0 | BS40: 0 | BT40: 0 | BU40: 0 | BV40: 0 | BW40: 0 | BX40: 0 | BY40: 0 | BZ40: 0 | CA40: 0 | CB40: 0 | CC40: 0 | CD40: 0 | CE40: 0 | CF40: 0 | CG40: 0 | CH40: 0 | CI40: 0 | CJ40: 0 | CK40: 0 | CL40: 0 | CM40: 0 | CN40: 0 | CO40: 0 | CP40: 0 | CQ40: 0 | CR40: 0 | CS40: 0 | CT40: 0 | CU40: 0 | CV40: 0 | CW40: 0 | CX40: 0 | CY40: 0 | CZ40: 0 | DA40: 0 | DB40: 0 | DC40: 0 | DD40: 0 | DE40: 0 | DF40: 0 | DG40: 0 | DH40: 0 | DI40: 0 | DJ40: 0 | DK40: 0 | DL40: 0 | DM40: 0 | DN40: 0 | DO40: 0 | DP40: 0 | DQ40: 0 | DR40: 0 | DS40: 0 | DT40: 0 | DU40: 0 | DV40: 0 | DW40: 0 | DX40: 0 | DY40: 0 | DZ40: 0 | EA40: 0 | EB40: 0 | EC40: =EC20 -> 0 | ED40: 0 | EE40: 0 | EF40: 0 | EG40: 0 | EH40: 0 | EI40: 0 | EJ40: 0 | EK40: 0 | EL40: 0 | EM40: 0 | EN40: 0 | EO40: 0 | EP40: 0 | EQ40: 0 | ER40: 0 | ES40: 0 | ET40: 0 | EU40: 0 | EV40: 0 | EW40: 0 | EX40: 0 | EY40: 0 | EZ40: 0 | FA40: 0 | FB40: 0 | FC40: 0 | FD40: 0 | FE40: 0 | FF40: 0 | FG40: 0 | FH40: 0 | FI40: 0 | FJ40: 0 | FK40: 0 | FL40: 0 | FM40: 0 | FN40: 0 | FO40: 0 | FP40: 0 | FQ40: 0 | FR40: 0 | FS40: 0 | FT40: 0 | FU40: 0 | FV40: 0 | FW40: 0 | FX40: 0 | FY40: 0 | FZ40: 0 | GA40: 0 | GB40: 0 | GC40: 0 | GD40: 0 | GE40: 0 | GF40: 0 | GG40: 0 | GH40: 0 | GI40: 0 | GJ40: 0 | GK40: 0 | GL40: 0 | GM40: 0 | GN40: 0 | GO40: =GO20 -> 0 | GP40: 0 | GQ40: 0 | GR40: 0 | GS40: 0 | GT40: 0 | GU40: 0 | GV40: 0 | GW40: 0 | GX40: 0 | GY40: 0 | GZ40: 0 | HA40: 0 | HB40: 0 | HC40: 0 | HD40: 0 | HE40: 0 | HF40: 0 | HG40: 0 | HH40: 0 | HI40: 0 | HJ40: 0 | HK40: 0 | HL40: 0 | HM40: 0 | HN40: 0 | HO40: 0 | HP40: 0 | HQ40: 0 | HR40: 0 | HS40: 0 | HT40: 0 | HU40: 0 | HV40: 0 | HW40: 0 | HX40: 0 | HY40: 0 | HZ40: 0 | IA40: 0 | IB40: 0 | IC40: 0 | ID40: 0 | IE40: 0 | IF40: 0 | IG40: 0 | IH40: 0 | II40: 0 | IJ40: 0 | IK40: 0 | IL40: 0 | IM40: 0 | IN40: 0 | IO40: 0 | IP40: 0 | IQ40: 0 | IR40: 0 | IS40: 0 | IT40: 0 | IU40: 0 | IV40: 0 | IW40: 0 | IX40: 0 | IY40: 0 | IZ40: 0 | JA40: =JA20 -> 0 | JB40: 0 | JC40: 0 | JD40: 0 | JE40: 0 | JF40: 0 | JG40: 0 | JH40: 0 | JI40: 0 | JJ40: 0 | JK40: 0 | JL40: 0 | JM40: 0 | JN40: 0 | JO40: 0 | JP40: 0 | JQ40: 0 | JR40: 0 | JS40: 0 | JT40: 0 | JU40: 0 | JV40: 0 | JW40: 0 | JX40: 0 | JY40: 0 | JZ40: 0 | KA40: 0 | KB40: 0 | KC40: 0 | KD40: 0 | KE40: 0 | KF40: 0 | KG40: 0 | KH40: 0 | KI40: 0 | KJ40: 0 | KK40: 0 | KL40: 0 | KM40: 0 | KN40: 0 | KO40: 0 | KP40: 0 | KQ40: 0 | KR40: 0 | KS40: 0 | KT40: 0 | KU40: 0 | KV40: 0 | KW40: 0 | KX40: 0 | KY40: 0 | KZ40: 0 | LA40: 0 | LB40: 0 | LC40: 0 | LD40: 0 | LE40: 0 | LF40: 0 | LG40: 0 | LH40: 0 | LI40: 0 | LJ40: 0 | LK40: 0 | LL40: 0 | LM40: =LM20 -> 0 | LN40: 0 | LO40: 0 | LP40: 0 | LQ40: 0 | LR40: 0 | LS40: 0 | LT40: 0 | LU40: 0 | LV40: 0 | LW40: 0 | LX40: 0 | LY40: 0 | LZ40: 0 | MA40: 0 | MB40: 0 | MC40: 0 | MD40: 0 | ME40: 0 | MF40: 0 | MG40: 0 | MH40: 0 | MI40: 0 | MJ40: 0 | MK40: 0 | ML40: 0 | MM40: 0 | MN40: 0 | MO40: 0 | MP40: 0 | MQ40: 0 | MR40: 0 | MS40: 0 | MT40: 0 | MU40: 0 | MV40: 0 | MW40: 0 | MX40: 0 | MY40: 0 | MZ40: 0 | NA40: 0 | NB40: 0 | NC40: 0 | ND40: 0 | NE40: 0 | NF40: 0 | NG40: 0 | NH40: 0 | NI40: 0 | NJ40: 0 | NK40: 0 | NL40: 0 | NM40: 0 | NN40: 0 | NO40: 0 | NP40: 0 | NQ40: 0 | NR40: 0 | NS40: 0 | NT40: 0 | NU40: 0 | NV40: 0 | NW40: 0 | NX40: 0 | NY40: =NY20 -> 0 | NZ40: 0 | OA40: 0 | OB40: 0 | OC40: 0 | OD40: 0 | OE40: 0 | OF40: 0 | OG40: 0 | OH40: 0 | OI40: 0 | OJ40: 0 | OK40: 0 | OL40: 0 | OM40: 0 | ON40: 0 | OO40: 0 | OP40: 0 | OQ40: 0 | OR40: 0 | OS40: 0 | OT40: 0 | OU40: 0 | OV40: 0 | OW40: 0 | OX40: 0 | OY40: 0 | OZ40: 0 | PA40: 0 | PB40: 0 | PC40: 0 | PD40: 0 | PE40: 0 | PF40: 0 | PG40: 0 | PH40: 0 | PI40: 0 | PJ40: 0 | PK40: 0 | PL40: 0 | PM40: 0 | PN40: 0 | PO40: 0 | PP40: 0 | PQ40: 0 | PR40: 0 | PS40: 0 | PT40: 0 | PU40: 0 | PV40: 0 | PW40: 0 | PX40: 0 | PY40: 0 | PZ40: 0 | QA40: 0 | QB40: 0 | QC40: 0 | QD40: 0 | QE40: 0 | QF40: 0 | QG40: 0 | QH40: 0 | QI40: 0 | QJ40: 0 | QK40: =QK20 -> 0 | QL40: 0 | QM40: 0 | QN40: 0 | QO40: 0 | QP40: 0 | QQ40: 0 | QR40: 0 | QS40: 0 | QT40: 0 | QU40: 0 | QV40: 0 | QW40: 0 | QX40: 0 | QY40: 0 | QZ40: 0 | RA40: 0 | RB40: 0 | RC40: 0 | RD40: 0 | RE40: 0 | RF40: 0 | RG40: 0 | RH40: 0 | RI40: 0 | RJ40: 0 | RK40: 0 | RL40: 0 | RM40: 0 | RN40: 0 | RO40: 0 | RP40: 0 | RQ40: 0 | RR40: 0 | RS40: 0 | RT40: 0 | RU40: 0 | RV40: 0 | RW40: 0 | RX40: 0 | RY40: 0 | RZ40: 0 | SA40: 0 | SB40: 0 | SC40: 0 | SD40: 0 | SE40: 0 | SF40: 0 | SG40: 0 | SH40: 0 | SI40: 0 | SJ40: 0 | SK40: 0 | SL40: 0 | SM40: 0 | SN40: 0 | SO40: 0 | SP40: 0 | SQ40: 0 | SR40: 0 | SS40: 0 | ST40: 0 | SU40: 0 | SV40: 0 | SW40: =SW20 -> 0 | SX40: 0 | SY40: 0 | SZ40: 0 | TA40: 0 | TB40: 0 | TC40: 0 | TD40: 0 | TE40: 0 | TF40: 0 | TG40: 0 | TH40: 0 | TI40: 0 | TJ40: 0 | TK40: 0 | TL40: 0 | TM40: 0 | TN40: 0 | TO40: 0 | TP40: 0 | TQ40: 0 | TR40: 0 | TS40: 0 | TT40: 0 | TU40: 0 | TV40: 0 | TW40: 0 | TX40: 0 | TY40: 0 | TZ40: 0 | UA40: 0 | UB40: 0 | UC40: 0 | UD40: 0 | UE40: 0 | UF40: 0 | UG40: 0 | UH40: 0 | UI40: 0 | UJ40: 0 | UK40: 0 | UL40: 0 | UM40: 0 | UN40: 0 | UO40: 0 | UP40: 0 | UQ40: 0 | UR40: 0 | US40: 0 | UT40: 0 | UU40: 0 | UV40: 0 | UW40: 0 | UX40: 0 | UY40: 0 | UZ40: 0 | VA40: 0 | VB40: 0 | VC40: 0 | VD40: 0 | VE40: 0 | VF40: 0 | VG40: 0 | VH40: 0 | VI40: =VI20 -> 0 | VJ40: 0 | VK40: 0 | VL40: 0 | VM40: 0 | VN40: 0 | VO40: 0 | VP40: 0 | VQ40: 0 | VR40: 0 | VS40: 0 | VT40: 0 | VU40: 0 | VV40: 0 | VW40: 0 | VX40: 0 | VY40: 0 | VZ40: 0 | WA40: 0 | WB40: 0 | WC40: 0 | WD40: 0 | WE40: 0 | WF40: 0 | WG40: 0 | WH40: 0 | WI40: 0 | WJ40: 0 | WK40: 0 | WL40: 0 | WM40: 0 | WN40: 0 | WO40: 0 | WP40: 0 | WQ40: 0 | WR40: 0 | WS40: 0 | WT40: 0 | WU40: 0 | WV40: 0 | WW40: 0 | WX40: 0 | WY40: 0 | WZ40: 0 | XA40: 0 | XB40: 0 | XC40: 0 | XD40: 0 | XE40: 0 | XF40: 0 | XG40: 0 | XH40: 0 | XI40: 0 | XJ40: 0 | XK40: 0 | XL40: 0 | XM40: 0 | XN40: 0 | XO40: 0 | XP40: 0 | XQ40: 0 | XR40: 0 | XS40: 0 | XT40: 0 | XU40: =XU20 -> 0 | XV40: 0 | XW40: 0 | XX40: 0 | XY40: 0 | XZ40: 0 | YA40: 0 | YB40: 0 | YC40: 0 | YD40: 0 | YE40: 0 | YF40: 0 | YG40: 0 | YH40: 0 | YI40: 0 | YJ40: 0 | YK40: 0 | YL40: 0 | YM40: 0 | YN40: 0 | YO40: 0 | YP40: 0 | YQ40: 0 | YR40: 0 | YS40: 0 | YT40: 0 | YU40: 0 | YV40: 0 | YW40: 0 | YX40: 0 | YY40: 0 | YZ40: 0 | ZA40: 0 | ZB40: 0 | ZC40: 0 | ZD40: 0 | ZE40: 0 | ZF40: 0 | ZG40: 0 | ZH40: 0 | ZI40: 0 | ZJ40: 0 | ZK40: 0 | ZL40: 0 | ZM40: 0 | ZN40: 0 | ZO40: 0 | ZP40: 0 | ZQ40: 0 | ZR40: 0 | ZS40: 0 | ZT40: 0 | ZU40: 0 | ZV40: 0 | ZW40: 0 | ZX40: 0 | ZY40: 0 | ZZ40: 0 | AAA40: 0 | AAB40: 0 | AAC40: 0 | AAD40: 0 | AAE40: 0 | AAF40: 0 | AAG40: =AAG20 -> 0 | AAH40: 0 | AAI40: 0 | AAJ40: 0 | AAK40: 0 | AAL40: 0 | AAM40: 0 | AAN40: 0 | AAO40: 0 | AAP40: 0 | AAQ40: 0 | AAR40: 0 | AAS40: 0 | AAT40: 0 | AAU40: 0 | AAV40: 0 | AAW40: 0 | AAX40: 0 | AAY40: 0 | AAZ40: 0 | ABA40: 0 | ABB40: 0 | ABC40: 0 | ABD40: 0 | ABE40: 0 | ABF40: 0 | ABG40: 0 | ABH40: 0 | ABI40: 0 | ABJ40: 0 | ABK40: 0 | ABL40: 0 | ABM40: 0 | ABN40: 0 | ABO40: 0 | ABP40: 0 | ABQ40: 0 | ABR40: 0 | ABS40: 0 | ABT40: 0 | ABU40: 0 | ABV40: 0 | ABW40: 0 | ABX40: 0 | ABY40: 0 | ABZ40: 0 | ACA40: 0 | ACB40: 0 | ACC40: 0 | ACD40: 0 | ACE40: 0 | ACF40: 0 | ACG40: 0 | ACH40: 0 | ACI40: 0 | ACJ40: 0 | ACK40: 0 | ACL40: 0 | ACM40: 0 | ACN40: 0 | ACO40: 0 | ACP40: 0 | ACQ40: 0 | ACR40: 0 | ACS40: =ACS20 -> 0 | ACT40: 0 | ACU40: 0 | ACV40: 0 | ACW40: 0 | ACX40: 0 | ACY40: 0 | ACZ40: 0 | ADA40: 0 | ADB40: 0 | ADC40: 0 | ADD40: 0 | ADE40: 0 | ADF40: 0 | ADG40: 0 | ADH40: 0 | ADI40: 0 | ADJ40: 0 | ADK40: 0 | ADL40: 0 | ADM40: 0 | ADN40: 0 | ADO40: 0 | ADP40: 0 | ADQ40: 0 | ADR40: 0 | ADS40: 0 | ADT40: 0 | ADU40: 0 | ADV40: 0 | ADW40: 0 | ADX40: 0 | ADY40: 0 | ADZ40: 0 | AEA40: 0 | AEB40: 0 | AEC40: 0 | AED40: 0 | AEE40: 0 | AEF40: 0 | AEG40: 0 | AEH40: 0 | AEI40: 0 | AEJ40: 0 | AEK40: 0 | AEL40: 0 | AEM40: 0 | AEN40: 0 | AEO40: 0 | AEP40: 0 | AEQ40: 0 | AER40: 0 | AES40: 0 | AET40: 0 | AEU40: 0 | AEV40: 0 | AEW40: 0 | AEX40: 0 | AEY40: 0 | AEZ40: 0 | AFA40: 0 | AFB40: 0 | AFC40: 0 | AFD40: 0 | AFE40: =AFE20 -> 0 | AFF40: 0 | AFG40: 0 | AFH40: 0 | AFI40: 0 | AFJ40: 0 | AFK40: 0 | AFL40: 0 | AFM40: 0 | AFN40: 0 | AFO40: 0 | AFP40: 0 | AFQ40: 0 | AFR40: 0 | AFS40: 0 | AFT40: 0 | AFU40: 0 | AFV40: 0 | AFW40: 0 | AFX40: 0 | AFY40: 0 | AFZ40: 0 | AGA40: 0 | AGB40: 0 | AGC40: 0 | AGD40: 0 | AGE40: 0 | AGF40: 0 | AGG40: 0 | AGH40: 0 | AGI40: 0 | AGJ40: 0 | AGK40: 0 | AGL40: 0 | AGM40: 0 | AGN40: 0 | AGO40: 0 | AGP40: 0 | AGQ40: 0 | AGR40: 0 | AGS40: 0 | AGT40: 0 | AGU40: 0 | AGV40: 0 | AGW40: 0 | AGX40: 0 | AGY40: 0 | AGZ40: 0 | AHA40: 0 | AHB40: 0 | AHC40: 0 | AHD40: 0 | AHE40: 0 | AHF40: 0 | AHG40: 0 | AHH40: 0 | AHI40: 0 | AHJ40: 0 | AHK40: 0 | AHL40: 0 | AHM40: 0 | AHN40: 0 | AHO40: 0 | AHP40: 0 | AHQ40: =AHQ20 -> 0 | AHR40: 0 | AHS40: 0 | AHT40: 0 | AHU40: 0 | AHV40: 0 | AHW40: 0 | AHX40: 0 | AHY40: 0 | AHZ40: 0 | AIA40: 0 | AIB40: 0 | AIC40: 0 | AID40: 0 | AIE40: 0 | AIF40: 0 | AIG40: 0 | AIH40: 0 | AII40: 0 | AIJ40: 0 | AIK40: 0 | AIL40: 0 | AIM40: 0 | AIN40: 0 | AIO40: 0 | AIP40: 0 | AIQ40: 0 | AIR40: 0 | AIS40: 0 | AIT40: 0 | AIU40: 0 | AIV40: 0 | AIW40: 0 | AIX40: 0 | AIY40: 0 | AIZ40: 0 | AJA40: 0 | AJB40: 0 | AJC40: 0 | AJD40: 0 | AJE40: 0 | AJF40: 0 | AJG40: 0 | AJH40: 0 | AJI40: 0 | AJJ40: 0 | AJK40: 0 | AJL40: 0 | AJM40: 0 | AJN40: 0 | AJO40: 0 | AJP40: 0 | AJQ40: 0 | AJR40: 0 | AJS40: 0 | AJT40: 0 | AJU40: 0 | AJV40: 0 | AJW40: 0 | AJX40: 0 | AJY40: 0 | AJZ40: 0 | AKA40: 0 | AKB40: 0 | AKC40: =AKC20 -> 0 | AKD40: 0 | AKE40: 0 | AKF40: 0 | AKG40: 0 | AKH40: 0 | AKI40: 0 | AKJ40: 0 | AKK40: 0 | AKL40: 0 | AKM40: 0 | AKN40: 0 | AKO40: 0 | AKP40: 0 | AKQ40: 0 | AKR40: 0 | AKS40: 0 | AKT40: 0 | AKU40: 0 | AKV40: 0 | AKW40: 0 | AKX40: 0 | AKY40: 0 | AKZ40: 0 | ALA40: 0 | ALB40: 0 | ALC40: 0 | ALD40: 0 | ALE40: 0 | ALF40: 0 | ALG40: 0 | ALH40: 0 | ALI40: 0 | ALJ40: 0 | ALK40: 0 | ALL40: 0 | ALM40: 0 | ALN40: 0 | ALO40: 0 | ALP40: 0 | ALQ40: 0 | ALR40: 0 | ALS40: 0 | ALT40: 0 | ALU40: 0 | ALV40: 0 | ALW40: 0 | ALX40: 0 | ALY40: 0 | ALZ40: 0 | AMA40: 0 | AMB40: 0 | AMC40: 0 | AMD40: 0 | AME40: 0 | AMF40: 0 | AMG40: 0 | AMH40: 0 | AMI40: 0 | AMJ40: 0 | AMK40: 0 | AML40: 0 | AMM40: 0 | AMN40: 0 | AMO40: =AMO20 -> 0 | AMP40: 0 | AMQ40: 0 | AMR40: 0 | AMS40: 0 | AMT40: 0 | AMU40: 0 | AMV40: 0 | AMW40: 0 | AMX40: 0 | AMY40: 0 | AMZ40: 0 | ANA40: 0 | ANB40: 0 | ANC40: 0 | AND40: 0 | ANE40: 0 | ANF40: 0 | ANG40: 0 | ANH40: 0 | ANI40: 0 | ANJ40: 0 | ANK40: 0 | ANL40: 0 | ANM40: 0 | ANN40: 0 | ANO40: 0 | ANP40: 0 | ANQ40: 0 | ANR40: 0 | ANS40: 0 | ANT40: 0 | ANU40: 0 | ANV40: 0 | ANW40: 0 | ANX40: 0 | ANY40: 0 | ANZ40: 0 | AOA40: 0 | AOB40: 0 | AOC40: 0 | AOD40: 0 | AOE40: 0 | AOF40: 0 | AOG40: 0 | AOH40: 0 | AOI40: 0 | AOJ40: 0 | AOK40: 0 | AOL40: 0 | AOM40: 0 | AON40: 0 | AOO40: 0 | AOP40: 0 | AOQ40: 0 | AOR40: 0 | AOS40: 0 | AOT40: 0 | AOU40: 0 | AOV40: 0 | AOW40: 0 | AOX40: 0 | AOY40: 0 | AOZ40: 0 | APA40: =APA20 -> 0 | APB40: 0 | APC40: 0 | APD40: 0 | APE40: 0 | APF40: 0 | APG40: 0 | APH40: 0 | API40: 0 | APJ40: 0 | APK40: 0 | APL40: 0 | APM40: 0 | APN40: 0 | APO40: 0 | APP40: 0 | APQ40: 0 | APR40: 0 | APS40: 0 | APT40: 0 | APU40: 0 | APV40: 0 | APW40: 0 | APX40: 0 | APY40: 0 | APZ40: 0 | AQA40: 0 | AQB40: 0 | AQC40: 0 | AQD40: 0 | AQE40: 0 | AQF40: 0 | AQG40: 0 | AQH40: 0 | AQI40: 0 | AQJ40: 0 | AQK40: 0 | AQL40: 0 | AQM40: 0 | AQN40: 0 | AQO40: 0 | AQP40: 0 | AQQ40: 0 | AQR40: 0 | AQS40: 0 | AQT40: 0 | AQU40: 0 | AQV40: 0 | AQW40: 0 | AQX40: 0 | AQY40: 0 | AQZ40: 0 | ARA40: 0 | ARB40: 0 | ARC40: 0 | ARD40: 0 | ARE40: 0 | ARF40: 0 | ARG40: 0 | ARH40: 0 | ARI40: 0 | ARJ40: 0 | ARK40: 0 | ARL40: 0 | ARM40: =ARM20 -> 0 | ARN40: 0 | ARO40: 0 | ARP40: 0 | ARQ40: 0 | ARR40: 0 | ARS40: 0 | ART40: 0 | ARU40: 0 | ARV40: 0 | ARW40: 0 | ARX40: 0 | ARY40: 0 | ARZ40: 0 | ASA40: 0 | ASB40: 0 | ASC40: 0 | ASD40: 0 | ASE40: 0 | ASF40: 0 | ASG40: 0 | ASH40: 0 | ASI40: 0 | ASJ40: 0 | ASK40: 0 | ASL40: 0 | ASM40: 0 | ASN40: 0 | ASO40: 0 | ASP40: 0 | ASQ40: 0 | ASR40: 0 | ASS40: 0 | AST40: 0 | ASU40: 0 | ASV40: 0 | ASW40: 0 | ASX40: 0 | ASY40: 0 | ASZ40: 0 | ATA40: 0 | ATB40: 0 | ATC40: 0 | ATD40: 0 | ATE40: 0 | ATF40: 0 | ATG40: 0 | ATH40: 0 | ATI40: 0 | ATJ40: 0 | ATK40: 0 | ATL40: 0 | ATM40: 0 | ATN40: 0 | ATO40: 0 | ATP40: 0 | ATQ40: 0 | ATR40: 0 | ATS40: 0 | ATT40: 0 | ATU40: 0 | ATV40: 0 | ATW40: 0 | ATX40: 0 | ATY40: =ATY20 -> 0 | ATZ40: 0 | AUA40: 0 | AUB40: 0 | AUC40: 0 | AUD40: 0 | AUE40: 0 | AUF40: 0 | AUG40: 0 | AUH40: 0 | AUI40: 0 | AUJ40: 0 | AUK40: 0 | AUL40: 0 | AUM40: 0 | AUN40: 0 | AUO40: 0 | AUP40: 0 | AUQ40: 0 | AUR40: 0 | AUS40: 0 | AUT40: 0 | AUU40: 0 | AUV40: 0 | AUW40: 0 | AUX40: 0 | AUY40: 0 | AUZ40: 0 | AVA40: 0 | AVB40: 0 | AVC40: 0 | AVD40: 0 | AVE40: 0 | AVF40: 0 | AVG40: 0 | AVH40: 0 | AVI40: 0 | AVJ40: 0 | AVK40: 0 | AVL40: 0 | AVM40: 0 | AVN40: 0 | AVO40: 0 | AVP40: 0 | AVQ40: 0 | AVR40: 0 | AVS40: 0 | AVT40: 0 | AVU40: 0 | AVV40: 0 | AVW40: 0 | AVX40: 0 | AVY40: 0 | AVZ40: 0 | AWA40: 0 | AWB40: 0 | AWC40: 0 | AWD40: 0 | AWE40: 0 | AWF40: 0 | AWG40: 0 | AWH40: 0 | AWI40: 0 | AWJ40: 0 | AWK40: =AWK20 -> 0 | AWL40: 0 | AWM40: 0 | AWN40: 0 | AWO40: 0 | AWP40: 0 | AWQ40: 0 | AWR40: 0 | AWS40: 0 | AWT40: 0 | AWU40: 0 | AWV40: 0 | AWW40: 0 | AWX40: 0 | AWY40: 0 | AWZ40: 0 | AXA40: 0 | AXB40: 0 | AXC40: 0 | AXD40: 0 | AXE40: 0 | AXF40: 0 | AXG40: 0 | AXH40: 0 | AXI40: 0 | AXJ40: 0 | AXK40: 0 | AXL40: 0 | AXM40: 0 | AXN40: 0 | AXO40: 0 | AXP40: 0 | AXQ40: 0 | AXR40: 0 | AXS40: 0 | AXT40: 0 | AXU40: 0 | AXV40: 0 | AXW40: 0 | AXX40: 0 | AXY40: 0 | AXZ40: 0 | AYA40: 0 | AYB40: 0 | AYC40: 0 | AYD40: 0 | AYE40: 0 | AYF40: 0 | AYG40: 0 | AYH40: 0 | AYI40: 0 | AYJ40: 0 | AYK40: 0 | AYL40: 0 | AYM40: 0 | AYN40: 0 | AYO40: 0 | AYP40: 0 | AYQ40: 0 | AYR40: 0 | AYS40: 0 | AYT40: 0 | AYU40: 0 | AYV40: 0 | AYW40: =AYW20 -> 0 | AYX40: 0 | AYY40: 0 | AYZ40: 0 | AZA40: 0 | AZB40: 0 | AZC40: 0 | AZD40: 0 | AZE40: 0 | AZF40: 0 | AZG40: 0 | AZH40: 0 | AZI40: 0 | AZJ40: 0 | AZK40: 0 | AZL40: 0 | AZM40: 0 | AZN40: 0 | AZO40: 0 | AZP40: 0 | AZQ40: 0 | AZR40: 0 | AZS40: 0 | AZT40: 0 | AZU40: 0 | AZV40: 0 | AZW40: 0 | AZX40: 0 | AZY40: 0 | AZZ40: 0 | BAA40: 0 | BAB40: 0 | BAC40: 0 | BAD40: 0 | BAE40: 0 | BAF40: 0 | BAG40: 0 | BAH40: 0 | BAI40: 0 | BAJ40: 0 | BAK40: 0 | BAL40: 0 | BAM40: 0 | BAN40: 0 | BAO40: 0 | BAP40: 0 | BAQ40: 0 | BAR40: 0 | BAS40: 0 | BAT40: 0 | BAU40: 0 | BAV40: 0 | BAW40: 0 | BAX40: 0 | BAY40: 0 | BAZ40: 0 | BBA40: 0 | BBB40: 0 | BBC40: 0 | BBD40: 0 | BBE40: 0 | BBF40: 0 | BBG40: 0 | BBH40: 0 | BBI40: =BBI20 -> 0 | BBJ40: 0 | BBK40: 0 | BBL40: 0 | BBM40: 0 | BBN40: 0 | BBO40: 0 | BBP40: 0 | BBQ40: 0 | BBR40: 0 | BBS40: 0 | BBT40: 0 | BBU40: 0 | BBV40: 0 | BBW40: 0 | BBX40: 0 | BBY40: 0 | BBZ40: 0 | BCA40: 0 | BCB40: 0 | BCC40: 0 | BCD40: 0 | BCE40: 0 | BCF40: 0 | BCG40: 0 | BCH40: 0 | BCI40: 0 | BCJ40: 0 | BCK40: 0 | BCL40: 0 | BCM40: 0 | BCN40: 0 | BCO40: 0 | BCP40: 0 | BCQ40: 0 | BCR40: 0 | BCS40: 0 | BCT40: 0 | BCU40: 0 | BCV40: 0 | BCW40: 0 | BCX40: 0 | BCY40: 0 | BCZ40: 0 | BDA40: 0 | BDB40: 0 | BDC40: 0 | BDD40: 0 | BDE40: 0 | BDF40: 0 | BDG40: 0 | BDH40: 0 | BDI40: 0 | BDJ40: 0 | BDK40: 0 | BDL40: 0 | BDM40: 0 | BDN40: 0 | BDO40: 0 | BDP40: 0 | BDQ40: 0 | BDR40: 0 | BDS40: 0 | BDT40: 0 | BDU40: =BDU20 -> 0 | BDV40: 0 | BDW40: 0 | BDX40: 0 | BDY40: 0 | BDZ40: 0 | BEA40: 0 | BEB40: 0 | BEC40: 0 | BED40: 0 | BEE40: 0 | BEF40: 0 | BEG40: 0 | BEH40: 0 | BEI40: 0 | BEJ40: 0 | BEK40: 0 | BEL40: 0 | BEM40: 0 | BEN40: 0 | BEO40: 0 | BEP40: 0 | BEQ40: 0 | BER40: 0 | BES40: 0 | BET40: 0 | BEU40: 0 | BEV40: 0 | BEW40: 0 | BEX40: 0 | BEY40: 0 | BEZ40: 0 | BFA40: 0 | BFB40: 0 | BFC40: 0 | BFD40: 0 | BFE40: 0 | BFF40: 0 | BFG40: 0 | BFH40: 0 | BFI40: 0 | BFJ40: 0 | BFK40: 0 | BFL40: 0 | BFM40: 0 | BFN40: 0 | BFO40: 0 | BFP40: 0 | BFQ40: 0 | BFR40: 0 | BFS40: 0 | BFT40: 0 | BFU40: 0 | BFV40: 0 | BFW40: 0 | BFX40: 0 | BFY40: 0 | BFZ40: 0 | BGA40: 0 | BGB40: 0 | BGC40: 0 | BGD40: 0 | BGE40: 0 | BGF40: 0 | BGG40: =BGG20 -> 0 | BGH40: 0 | BGI40: 0 | BGJ40: 0 | BGK40: 0 | BGL40: 0 | BGM40: 0 | BGN40: 0 | BGO40: 0 | BGP40: 0 | BGQ40: 0 | BGR40: 0 | BGS40: 0 | BGT40: 0 | BGU40: 0 | BGV40: 0 | BGW40: 0 | BGX40: 0 | BGY40: 0 | BGZ40: 0 | BHA40: 0 | BHB40: 0 | BHC40: 0 | BHD40: 0 | BHE40: 0 | BHF40: 0 | BHG40: 0 | BHH40: 0 | BHI40: 0 | BHJ40: 0 | BHK40: 0 | BHL40: 0 | BHM40: 0 | BHN40: 0 | BHO40: 0 | BHP40: 0 | BHQ40: 0 | BHR40: 0 | BHS40: 0 | BHT40: 0 | BHU40: 0 | BHV40: 0 | BHW40: 0 | BHX40: 0 | BHY40: 0 | BHZ40: 0 | BIA40: 0 | BIB40: 0 | BIC40: 0 | BID40: 0 | BIE40: 0 | BIF40: 0 | BIG40: 0 | BIH40: 0 | BII40: 0 | BIJ40: 0 | BIK40: 0 | BIL40: 0 | BIM40: 0 | BIN40: 0 | BIO40: 0 | BIP40: 0 | BIQ40: 0 | BIR40: 0 | BIS40: =BIS20 -> 0 | BIT40: 0 | BIU40: 0 | BIV40: 0 | BIW40: 0 | BIX40: 0 | BIY40: 0 | BIZ40: 0 | BJA40: 0 | BJB40: 0 | BJC40: 0 | BJD40: 0 | BJE40: 0 | BJF40: 0 | BJG40: 0 | BJH40: 0 | BJI40: 0 | BJJ40: 0 | BJK40: 0 | BJL40: 0 | BJM40: 0 | BJN40: 0 | BJO40: 0 | BJP40: 0 | BJQ40: 0 | BJR40: 0 | BJS40: 0 | BJT40: 0 | BJU40: 0 | BJV40: 0 | BJW40: 0 | BJX40: 0 | BJY40: 0 | BJZ40: 0 | BKA40: 0 | BKB40: 0 | BKC40: 0 | BKD40: 0 | BKE40: 0 | BKF40: 0 | BKG40: 0 | BKH40: 0 | BKI40: 0 | BKJ40: 0 | BKK40: 0 | BKL40: 0 | BKM40: 0 | BKN40: 0 | BKO40: 0 | BKP40: 0 | BKQ40: 0 | BKR40: 0 | BKS40: 0 | BKT40: 0 | BKU40: 0 | BKV40: 0 | BKW40: 0 | BKX40: 0 | BKY40: 0 | BKZ40: 0 | BLA40: 0 | BLB40: 0 | BLC40: 0 | BLD40: 0 | BLE40: =BLE20 -> 0 | BLF40: 0 | BLG40: 0 | BLH40: 0 | BLI40: 0 | BLJ40: 0 | BLK40: 0 | BLL40: 0 | BLM40: 0 | BLN40: 0 | BLO40: 0 | BLP40: 0 | BLQ40: 0 | BLR40: 0 | BLS40: 0 | BLT40: 0 | BLU40: 0 | BLV40: 0 | BLW40: 0 | BLX40: 0 | BLY40: 0 | BLZ40: 0 | BMA40: 0 | BMB40: 0 | BMC40: 0 | BMD40: 0 | BME40: 0 | BMF40: 0 | BMG40: 0 | BMH40: 0 | BMI40: 0 | BMJ40: 0 | BMK40: 0 | BML40: 0 | BMM40: 0 | BMN40: 0 | BMO40: 0 | BMP40: 0 | BMQ40: 0 | BMR40: 0 | BMS40: 0 | BMT40: 0 | BMU40: 0 | BMV40: 0 | BMW40: 0 | BMX40: 0 | BMY40: 0 | BMZ40: 0 | BNA40: 0 | BNB40: 0 | BNC40: 0 | BND40: 0 | BNE40: 0 | BNF40: 0 | BNG40: 0 | BNH40: 0 | BNI40: 0 | BNJ40: 0 | BNK40: 0 | BNL40: 0 | BNM40: 0 | BNN40: 0 | BNO40: 0 | BNP40: 0 | BNQ40: =BNQ20 -> 0 | BNR40: 0 | BNS40: 0 | BNT40: 0 | BNU40: 0 | BNV40: 0 | BNW40: 0 | BNX40: 0 | BNY40: 0 | BNZ40: 0 | BOA40: 0 | BOB40: 0 | BOC40: 0 | BOD40: 0 | BOE40: 0 | BOF40: 0 | BOG40: 0 | BOH40: 0 | BOI40: 0 | BOJ40: 0 | BOK40: 0 | BOL40: 0 | BOM40: 0 | BON40: 0 | BOO40: 0 | BOP40: 0 | BOQ40: 0 | BOR40: 0 | BOS40: 0 | BOT40: 0 | BOU40: 0 | BOV40: 0 | BOW40: 0 | BOX40: 0 | BOY40: 0 | BOZ40: 0 | BPA40: 0 | BPB40: 0 | BPC40: 0 | BPD40: 0 | BPE40: 0 | BPF40: 0 | BPG40: 0 | BPH40: 0 | BPI40: 0 | BPJ40: 0 | BPK40: 0 | BPL40: 0 | BPM40: 0 | BPN40: 0 | BPO40: 0 | BPP40: 0 | BPQ40: 0 | BPR40: 0 | BPS40: 0 | BPT40: 0 | BPU40: 0 | BPV40: 0 | BPW40: 0 | BPX40: 0 | BPY40: 0 | BPZ40: 0 | BQA40: 0 | BQB40: 0 | BQC40: =BQC20 -> 0 | BQD40: 0 | BQE40: 0 | BQF40: 0 | BQG40: 0 | BQH40: 0 | BQI40: 0 | BQJ40: 0 | BQK40: 0 | BQL40: 0 | BQM40: 0 | BQN40: 0 | BQO40: 0 | BQP40: 0 | BQQ40: 0 | BQR40: 0 | BQS40: 0 | BQT40: 0 | BQU40: 0 | BQV40: 0 | BQW40: 0 | BQX40: 0 | BQY40: 0 | BQZ40: 0 | BRA40: 0 | BRB40: 0 | BRC40: 0 | BRD40: 0 | BRE40: 0 | BRF40: 0 | BRG40: 0 | BRH40: 0 | BRI40: 0 | BRJ40: 0 | BRK40: 0 | BRL40: 0 | BRM40: 0 | BRN40: 0 | BRO40: 0 | BRP40: 0 | BRQ40: 0 | BRR40: 0 | BRS40: 0 | BRT40: 0 | BRU40: 0 | BRV40: 0 | BRW40: 0 | BRX40: 0 | BRY40: 0 | BRZ40: 0 | BSA40: 0 | BSB40: 0 | BSC40: 0 | BSD40: 0 | BSE40: 0 | BSF40: 0 | BSG40: 0 | BSH40: 0 | BSI40: 0 | BSJ40: 0 | BSK40: 0 | BSL40: 0 | BSM40: 0 | BSN40: 0 | BSO40: =BSO20 -> 0 | BSP40: 0 | BSQ40: 0 | BSR40: 0 | BSS40: 0 | BST40: 0 | BSU40: 0 | BSV40: 0 | BSW40: 0 | BSX40: 0 | BSY40: 0 | BSZ40: 0 | BTA40: 0 | BTB40: 0 | BTC40: 0 | BTD40: 0 | BTE40: 0 | BTF40: 0 | BTG40: 0 | BTH40: 0 | BTI40: 0 | BTJ40: 0 | BTK40: 0 | BTL40: 0 | BTM40: 0 | BTN40: 0 | BTO40: 0 | BTP40: 0 | BTQ40: 0 | BTR40: 0 | BTS40: 0 | BTT40: 0 | BTU40: 0 | BTV40: 0 | BTW40: 0 | BTX40: 0 | BTY40: 0 | BTZ40: 0 | BUA40: 0 | BUB40: 0 | BUC40: 0 | BUD40: 0 | BUE40: 0 | BUF40: 0 | BUG40: 0 | BUH40: 0 | BUI40: 0 | BUJ40: 0 | BUK40: 0 | BUL40: 0 | BUM40: 0 | BUN40: 0 | BUO40: 0 | BUP40: 0 | BUQ40: 0 | BUR40: 0 | BUS40: 0 | BUT40: 0 | BUU40: 0 | BUV40: 0 | BUW40: 0 | BUX40: 0 | BUY40: 0 | BUZ40: 0 | BVA40: =BVA20 -> 0 | BVB40: 0 | BVC40: 0 | BVD40: 0 | BVE40: 0 | BVF40: 0 | BVG40: 0 | BVH40: 0 | BVI40: 0 | BVJ40: 0 | BVK40: 0 | BVL40: 0 | BVM40: 0 | BVN40: 0 | BVO40: 0 | BVP40: 0 | BVQ40: 0 | BVR40: 0 | BVS40: 0 | BVT40: 0 | BVU40: 0 | BVV40: 0 | BVW40: 0 | BVX40: 0 | BVY40: 0 | BVZ40: 0 | BWA40: 0 | BWB40: 0 | BWC40: 0 | BWD40: 0 | BWE40: 0 | BWF40: 0 | BWG40: 0 | BWH40: 0 | BWI40: 0 | BWJ40: 0 | BWK40: 0 | BWL40: 0 | BWM40: 0 | BWN40: 0 | BWO40: 0 | BWP40: 0 | BWQ40: 0 | BWR40: 0 | BWS40: 0 | BWT40: 0 | BWU40: 0 | BWV40: 0 | BWW40: 0 | BWX40: 0 | BWY40: 0 | BWZ40: 0 | BXA40: 0 | BXB40: 0 | BXC40: 0 | BXD40: 0 | BXE40: 0 | BXF40: 0 | BXG40: 0 | BXH40: 0 | BXI40: 0 | BXJ40: 0 | BXK40: 0 | BXL40: 0 | BXM40: =BXM20 -> 0 | BXN40: 0 | BXO40: 0 | BXP40: 0 | BXQ40: 0 | BXR40: 0 | BXS40: 0 | BXT40: 0 | BXU40: 0 | BXV40: 0 | BXW40: 0 | BXX40: 0 | BXY40: 0 | BXZ40: 0 | BYA40: 0 | BYB40: 0 | BYC40: 0 | BYD40: 0 | BYE40: 0 | BYF40: 0 | BYG40: 0 | BYH40: 0 | BYI40: 0 | BYJ40: 0 | BYK40: 0 | BYL40: 0 | BYM40: 0 | BYN40: 0 | BYO40: 0 | BYP40: 0 | BYQ40: 0 | BYR40: 0 | BYS40: 0 | BYT40: 0 | BYU40: 0 | BYV40: 0 | BYW40: 0 | BYX40: 0 | BYY40: 0 | BYZ40: 0 | BZA40: 0 | BZB40: 0 | BZC40: 0 | BZD40: 0 | BZE40: 0 | BZF40: 0 | BZG40: 0 | BZH40: 0 | BZI40: 0 | BZJ40: 0 | BZK40: 0 | BZL40: 0 | BZM40: 0 | BZN40: 0 | BZO40: 0 | BZP40: 0 | BZQ40: 0 | BZR40: 0 | BZS40: 0 | BZT40: 0 | BZU40: 0 | BZV40: 0 | BZW40: 0 | BZX40: 0 | BZY40: =BZY20 -> 0 | BZZ40: 0 | CAA40: 0 | CAB40: 0 | CAC40: 0 | CAD40: 0 | CAE40: 0 | CAF40: 0 | CAG40: 0 | CAH40: 0 | CAI40: 0 | CAJ40: 0 | CAK40: 0 | CAL40: 0 | CAM40: 0 | CAN40: 0 | CAO40: 0 | CAP40: 0 | CAQ40: 0 | CAR40: 0 | CAS40: 0 | CAT40: 0 | CAU40: 0 | CAV40: 0 | CAW40: 0 | CAX40: 0 | CAY40: 0 | CAZ40: 0 | CBA40: 0 | CBB40: 0 | CBC40: 0 | CBD40: 0 | CBE40: 0 | CBF40: 0 | CBG40: 0 | CBH40: 0 | CBI40: 0 | CBJ40: 0 | CBK40: 0 | CBL40: 0 | CBM40: 0 | CBN40: 0 | CBO40: 0 | CBP40: 0 | CBQ40: 0 | CBR40: 0 | CBS40: 0 | CBT40: 0 | CBU40: 0 | CBV40: 0 | CBW40: 0 | CBX40: 0 | CBY40: 0 | CBZ40: 0 | CCA40: 0 | CCB40: 0 | CCC40: 0 | CCD40: 0 | CCE40: 0 | CCF40: 0 | CCG40: 0 | CCH40: 0 | CCI40: 0 | CCJ40: 0 | CCK40: =CCK20 -> 0 | CCL40: 0 | CCM40: 0 | CCN40: 0 | CCO40: 0 | CCP40: 0 | CCQ40: 0 | CCR40: 0 | CCS40: 0 | CCT40: 0 | CCU40: 0 | CCV40: 0 | CCW40: 0 | CCX40: 0 | CCY40: 0 | CCZ40: 0 | CDA40: 0 | CDB40: 0 | CDC40: 0 | CDD40: 0 | CDE40: 0 | CDF40: 0 | CDG40: 0 | CDH40: 0 | CDI40: 0 | CDJ40: 0 | CDK40: 0 | CDL40: 0 | CDM40: 0 | CDN40: 0 | CDO40: 0 | CDP40: 0 | CDQ40: 0 | CDR40: 0 | CDS40: 0 | CDT40: 0 | CDU40: 0 | CDV40: 0 | CDW40: 0 | CDX40: 0 | CDY40: 0 | CDZ40: 0 | CEA40: 0 | CEB40: 0 | CEC40: 0 | CED40: 0 | CEE40: 0 | CEF40: 0 | CEG40: 0 | CEH40: 0 | CEI40: 0 | CEJ40: 0 | CEK40: 0 | CEL40: 0 | CEM40: 0 | CEN40: 0 | CEO40: 0 | CEP40: 0 | CEQ40: 0 | CER40: 0 | CES40: 0 | CET40: 0 | CEU40: 0 | CEV40: 0 | CEW40: =CEW20 -> 0 | CEX40: 0 | CEY40: 0 | CEZ40: 0 | CFA40: 0 | CFB40: 0 | CFC40: 0 | CFD40: 0 | CFE40: 0 | CFF40: 0 | CFG40: 0 | CFH40: 0 | CFI40: 0 | CFJ40: 0 | CFK40: 0 | CFL40: 0 | CFM40: 0 | CFN40: 0 | CFO40: 0 | CFP40: 0 | CFQ40: 0 | CFR40: 0 | CFS40: 0 | CFT40: 0 | CFU40: 0 | CFV40: 0 | CFW40: 0 | CFX40: 0 | CFY40: 0 | CFZ40: 0 | CGA40: 0 | CGB40: 0 | CGC40: 0 | CGD40: 0 | CGE40: 0 | CGF40: 0 | CGG40: 0 | CGH40: 0 | CGI40: 0 | CGJ40: 0 | CGK40: 0 | CGL40: 0 | CGM40: 0 | CGN40: 0 | CGO40: 0 | CGP40: 0 | CGQ40: 0 | CGR40: 0 | CGS40: 0 | CGT40: 0 | CGU40: 0 | CGV40: 0 | CGW40: 0 | CGX40: 0 | CGY40: 0 | CGZ40: 0 | CHA40: 0 | CHB40: 0 | CHC40: 0 | CHD40: 0 | CHE40: 0 | CHF40: 0 | CHG40: 0 | CHH40: 0 | CHI40: =CHI20 -> 0 | CHJ40: 0 | CHK40: 0 | CHL40: 0 | CHM40: 0 | CHN40: 0 | CHO40: 0 | CHP40: 0 | CHQ40: 0 | CHR40: 0 | CHS40: 0 | CHT40: 0 | CHU40: 0 | CHV40: 0 | CHW40: 0 | CHX40: 0 | CHY40: 0 | CHZ40: 0 | CIA40: 0 | CIB40: 0 | CIC40: 0 | CID40: 0 | CIE40: 0 | CIF40: 0 | CIG40: 0 | CIH40: 0 | CII40: 0 | CIJ40: 0 | CIK40: 0 | CIL40: 0 | CIM40: 0 | CIN40: 0 | CIO40: 0 | CIP40: 0 | CIQ40: 0 | CIR40: 0 | CIS40: 0 | CIT40: 0 | CIU40: 0 | CIV40: 0 | CIW40: 0 | CIX40: 0 | CIY40: 0 | CIZ40: 0 | CJA40: 0 | CJB40: 0 | CJC40: 0 | CJD40: 0 | CJE40: 0 | CJF40: 0 | CJG40: 0 | CJH40: 0 | CJI40: 0 | CJJ40: 0 | CJK40: 0 | CJL40: 0 | CJM40: 0 | CJN40: 0 | CJO40: 0 | CJP40: 0 | CJQ40: 0 | CJR40: 0 | CJS40: 0 | CJT40: 0 | CJU40: =CJU20 -> 0 | CJV40: 0 | CJW40: 0 | CJX40: 0 | CJY40: 0 | CJZ40: 0 | CKA40: 0 | CKB40: 0 | CKC40: 0 | CKD40: 0 | CKE40: 0 | CKF40: 0 | CKG40: 0 | CKH40: 0 | CKI40: 0 | CKJ40: 0 | CKK40: 0 | CKL40: 0 | CKM40: 0 | CKN40: 0 | CKO40: 0 | CKP40: 0 | CKQ40: 0 | CKR40: 0 | CKS40: 0 | CKT40: 0 | CKU40: 0 | CKV40: 0 | CKW40: 0 | CKX40: 0 | CKY40: 0 | CKZ40: 0 | CLA40: 0 | CLB40: 0 | CLC40: 0 | CLD40: 0 | CLE40: 0 | CLF40: 0 | CLG40: 0 | CLH40: 0 | CLI40: 0 | CLJ40: 0 | CLK40: 0 | CLL40: 0 | CLM40: 0 | CLN40: 0 | CLO40: 0 | CLP40: 0 | CLQ40: 0 | CLR40: 0 | CLS40: 0 | CLT40: 0 | CLU40: 0 | CLV40: 0 | CLW40: 0 | CLX40: 0 | CLY40: 0 | CLZ40: 0 | CMA40: 0 | CMB40: 0 | CMC40: 0 | CMD40: 0 | CME40: 0 | CMF40: 0 | CMG40: =CMG20 -> 0 | CMH40: 0 | CMI40: 0 | CMJ40: 0 | CMK40: 0 | CML40: 0 | CMM40: 0 | CMN40: 0 | CMO40: 0 | CMP40: 0 | CMQ40: 0 | CMR40: 0 | CMS40: 0 | CMT40: 0 | CMU40: 0 | CMV40: 0 | CMW40: 0 | CMX40: 0 | CMY40: 0 | CMZ40: 0 | CNA40: 0 | CNB40: 0 | CNC40: 0 | CND40: 0 | CNE40: 0 | CNF40: 0 | CNG40: 0 | CNH40: 0 | CNI40: 0 | CNJ40: 0 | CNK40: 0 | CNL40: 0 | CNM40: 0 | CNN40: 0 | CNO40: 0 | CNP40: 0 | CNQ40: 0 | CNR40: 0 | CNS40: 0 | CNT40: 0 | CNU40: 0 | CNV40: 0 | CNW40: 0 | CNX40: 0 | CNY40: 0 | CNZ40: 0 | COA40: 0 | COB40: 0 | COC40: 0 | COD40: 0 | COE40: 0 | COF40: 0 | COG40: 0 | COH40: 0 | COI40: 0 | COJ40: 0 | COK40: 0 | COL40: 0 | COM40: 0 | CON40: 0 | COO40: 0 | COP40: 0 | COQ40: 0 | COR40: 0 | COS40: =COS20 -> 0 | COT40: 0 | COU40: 0 | COV40: 0 | COW40: 0 | COX40: 0 | COY40: 0 | COZ40: 0 | CPA40: 0 | CPB40: 0 | CPC40: 0 | CPD40: 0 | CPE40: 0 | CPF40: 0 | CPG40: 0 | CPH40: 0 | CPI40: 0 | CPJ40: 0 | CPK40: 0 | CPL40: 0 | CPM40: 0 | CPN40: 0 | CPO40: 0 | CPP40: 0 | CPQ40: 0 | CPR40: 0 | CPS40: 0 | CPT40: 0 | CPU40: 0 | CPV40: 0 | CPW40: 0 | CPX40: 0 | CPY40: 0 | CPZ40: 0 | CQA40: 0 | CQB40: 0 | CQC40: 0 | CQD40: 0 | CQE40: 0 | CQF40: 0 | CQG40: 0 | CQH40: 0 | CQI40: 0 | CQJ40: 0 | CQK40: 0 | CQL40: 0 | CQM40: 0 | CQN40: 0 | CQO40: 0 | CQP40: 0 | CQQ40: 0 | CQR40: 0 | CQS40: 0 | CQT40: 0 | CQU40: 0 | CQV40: 0 | CQW40: 0 | CQX40: 0 | CQY40: 0 | CQZ40: 0 | CRA40: 0 | CRB40: 0 | CRC40: 0 | CRD40: 0 | CRE40: =CRE20 -> 0 | CRF40: 0 | CRG40: 0 | CRH40: 0 | CRI40: 0 | CRJ40: 0 | CRK40: 0 | CRL40: 0 | CRM40: 0 | CRN40: 0 | CRO40: 0 | CRP40: 0 | CRQ40: 0 | CRR40: 0 | CRS40: 0 | CRT40: 0 | CRU40: 0 | CRV40: 0 | CRW40: 0 | CRX40: 0 | CRY40: 0 | CRZ40: 0 | CSA40: 0 | CSB40: 0 | CSC40: 0 | CSD40: 0 | CSE40: 0 | CSF40: 0 | CSG40: 0 | CSH40: 0 | CSI40: 0 | CSJ40: 0 | CSK40: 0 | CSL40: 0 | CSM40: 0 | CSN40: 0 | CSO40: 0 | CSP40: 0 | CSQ40: 0 | CSR40: 0 | CSS40: 0 | CST40: 0 | CSU40: 0 | CSV40: 0 | CSW40: 0 | CSX40: 0 | CSY40: 0 | CSZ40: 0 | CTA40: 0 | CTB40: 0 | CTC40: 0 | CTD40: 0 | CTE40: 0 | CTF40: 0 | CTG40: 0 | CTH40: 0 | CTI40: 0 | CTJ40: 0 | CTK40: 0 | CTL40: 0 | CTM40: 0 | CTN40: 0 | CTO40: 0 | CTP40: 0 | CTQ40: =CTQ20 -> 0 | CTR40: 0 | CTS40: 0 | CTT40: 0 | CTU40: 0 | CTV40: 0 | CTW40: 0 | CTX40: 0 | CTY40: 0 | CTZ40: 0 | CUA40: 0 | CUB40: 0 | CUC40: 0 | CUD40: 0 | CUE40: 0 | CUF40: 0 | CUG40: 0 | CUH40: 0 | CUI40: 0 | CUJ40: 0 | CUK40: 0 | CUL40: 0 | CUM40: 0 | CUN40: 0 | CUO40: 0 | CUP40: 0 | CUQ40: 0 | CUR40: 0 | CUS40: 0 | CUT40: 0 | CUU40: 0 | CUV40: 0 | CUW40: 0 | CUX40: 0 | CUY40: 0 | CUZ40: 0 | CVA40: 0 | CVB40: 0 | CVC40: 0 | CVD40: 0 | CVE40: 0 | CVF40: 0 | CVG40: 0 | CVH40: 0 | CVI40: 0 | CVJ40: 0 | CVK40: 0 | CVL40: 0 | CVM40: 0 | CVN40: 0 | CVO40: 0 | CVP40: 0 | CVQ40: 0 | CVR40: 0 | CVS40: 0 | CVT40: 0 | CVU40: 0 | CVV40: 0 | CVW40: 0 | CVX40: 0 | CVY40: 0 | CVZ40: 0 | CWA40: 0 | CWB40: 0 | CWC40: =CWC20 -> 0 | CWD40: 0 | CWE40: 0 | CWF40: 0 | CWG40: 0 | CWH40: 0 | CWI40: 0 | CWJ40: 0 | CWK40: 0 | CWL40: 0 | CWM40: 0 | CWN40: 0 | CWO40: 0 | CWP40: 0 | CWQ40: 0 | CWR40: 0 | CWS40: 0 | CWT40: 0 | CWU40: 0 | CWV40: 0 | CWW40: 0 | CWX40: 0 | CWY40: 0 | CWZ40: 0 | CXA40: 0 | CXB40: 0 | CXC40: 0 | CXD40: 0 | CXE40: 0 | CXF40: 0 | CXG40: 0 | CXH40: 0 | CXI40: 0 | CXJ40: 0 | CXK40: 0 | CXL40: 0 | CXM40: 0 | CXN40: 0 | CXO40: 0 | CXP40: 0 | CXQ40: 0 | CXR40: 0 | CXS40: 0 | CXT40: 0 | CXU40: 0 | CXV40: 0 | CXW40: 0 | CXX40: 0 | CXY40: 0 | CXZ40: 0 | CYA40: 0 | CYB40: 0 | CYC40: 0 | CYD40: 0 | CYE40: 0 | CYF40: 0 | CYG40: 0 | CYH40: 0 | CYI40: 0 | CYJ40: 0 | CYK40: 0 | CYL40: 0 | CYM40: 0 | CYN40: 0 | CYO40: =CYO20 -> 0 | CYP40: 0 | CYQ40: 0 | CYR40: 0 | CYS40: 0 | CYT40: 0 | CYU40: 0 | CYV40: 0 | CYW40: 0 | CYX40: 0 | CYY40: 0 | CYZ40: 0 | CZA40: 0 | CZB40: 0 | CZC40: 0 | CZD40: 0 | CZE40: 0 | CZF40: 0 | CZG40: 0 | CZH40: 0 | CZI40: 0 | CZJ40: 0 | CZK40: 0 | CZL40: 0 | CZM40: 0 | CZN40: 0 | CZO40: 0 | CZP40: 0 | CZQ40: 0 | CZR40: 0 | CZS40: 0 | CZT40: 0 | CZU40: 0 | CZV40: 0 | CZW40: 0 | CZX40: 0 | CZY40: 0 | CZZ40: 0 | DAA40: 0 | DAB40: 0 | DAC40: 0 | DAD40: 0 | DAE40: 0 | DAF40: 0 | DAG40: 0 | DAH40: 0 | DAI40: 0 | DAJ40: 0 | DAK40: 0 | DAL40: 0 | DAM40: 0 | DAN40: 0 | DAO40: 0 | DAP40: 0 | DAQ40: 0 | DAR40: 0 | DAS40: 0 | DAT40: 0 | DAU40: 0 | DAV40: 0 | DAW40: 0 | DAX40: 0 | DAY40: 0 | DAZ40: 0 | DBA40: =DBA20 -> 0 | DBB40: 0 | DBC40: 0 | DBD40: 0 | DBE40: 0 | DBF40: 0 | DBG40: 0 | DBH40: 0 | DBI40: 0 | DBJ40: 0 | DBK40: 0 | DBL40: 0 | DBM40: 0 | DBN40: 0 | DBO40: 0 | DBP40: 0 | DBQ40: 0 | DBR40: 0 | DBS40: 0 | DBT40: 0 | DBU40: 0 | DBV40: 0 | DBW40: 0 | DBX40: 0 | DBY40: 0 | DBZ40: 0 | DCA40: 0 | DCB40: 0 | DCC40: 0 | DCD40: 0 | DCE40: 0 | DCF40: 0 | DCG40: 0 | DCH40: 0 | DCI40: 0 | DCJ40: 0 | DCK40: 0 | DCL40: 0 | DCM40: 0 | DCN40: 0 | DCO40: 0 | DCP40: 0 | DCQ40: 0 | DCR40: 0 | DCS40: 0 | DCT40: 0 | DCU40: 0 | DCV40: 0 | DCW40: 0 | DCX40: 0 | DCY40: 0 | DCZ40: 0 | DDA40: 0 | DDB40: 0 | DDC40: 0 | DDD40: 0 | DDE40: 0 | DDF40: 0 | DDG40: 0 | DDH40: 0 | DDI40: 0 | DDJ40: 0 | DDK40: 0 | DDL40: 0 | DDM40: =DDM20 -> 0 | DDN40: 0 | DDO40: 0 | DDP40: 0 | DDQ40: 0 | DDR40: 0 | DDS40: 0 | DDT40: 0 | DDU40: 0 | DDV40: 0 | DDW40: 0 | DDX40: 0 | DDY40: 0 | DDZ40: 0 | DEA40: 0 | DEB40: 0 | DEC40: 0 | DED40: 0 | DEE40: 0 | DEF40: 0 | DEG40: 0 | DEH40: 0 | DEI40: 0 | DEJ40: 0 | DEK40: 0 | DEL40: 0 | DEM40: 0 | DEN40: 0 | DEO40: 0 | DEP40: 0 | DEQ40: 0 | DER40: 0 | DES40: 0 | DET40: 0 | DEU40: 0 | DEV40: 0 | DEW40: 0 | DEX40: 0 | DEY40: 0 | DEZ40: 0 | DFA40: 0 | DFB40: 0 | DFC40: 0 | DFD40: 0 | DFE40: 0 | DFF40: 0 | DFG40: 0 | DFH40: 0 | DFI40: 0 | DFJ40: 0 | DFK40: 0 | DFL40: 0 | DFM40: 0 | DFN40: 0 | DFO40: 0 | DFP40: 0 | DFQ40: 0 | DFR40: 0 | DFS40: 0 | DFT40: 0 | DFU40: 0 | DFV40: 0 | DFW40: 0 | DFX40: 0 | DFY40: =DFY20 -> 0 | DFZ40: 0 | DGA40: 0 | DGB40: 0 | DGC40: 0 | DGD40: 0 | DGE40: 0 | DGF40: 0 | DGG40: 0 | DGH40: 0 | DGI40: 0 | DGJ40: 0 | DGK40: 0 | DGL40: 0 | DGM40: 0 | DGN40: 0 | DGO40: 0 | DGP40: 0 | DGQ40: 0 | DGR40: 0 | DGS40: 0 | DGT40: 0 | DGU40: 0 | DGV40: 0 | DGW40: 0 | DGX40: 0 | DGY40: 0 | DGZ40: 0 | DHA40: 0 | DHB40: 0 | DHC40: 0 | DHD40: 0 | DHE40: 0 | DHF40: 0 | DHG40: 0 | DHH40: 0 | DHI40: 0 | DHJ40: 0 | DHK40: 0 | DHL40: 0 | DHM40: 0 | DHN40: 0 | DHO40: 0 | DHP40: 0 | DHQ40: 0 | DHR40: 0 | DHS40: 0 | DHT40: 0 | DHU40: 0 | DHV40: 0 | DHW40: 0 | DHX40: 0 | DHY40: 0 | DHZ40: 0 | DIA40: 0 | DIB40: 0 | DIC40: 0 | DID40: 0 | DIE40: 0 | DIF40: 0 | DIG40: 0 | DIH40: 0 | DII40: 0 | DIJ40: 0 | DIK40: =DIK20 -> 0 | DIL40: 0 | DIM40: 0 | DIN40: 0 | DIO40: 0 | DIP40: 0 | DIQ40: 0 | DIR40: 0 | DIS40: 0 | DIT40: 0 | DIU40: 0 | DIV40: 0 | DIW40: 0 | DIX40: 0 | DIY40: 0 | DIZ40: 0 | DJA40: 0 | DJB40: 0 | DJC40: 0 | DJD40: 0 | DJE40: 0 | DJF40: 0 | DJG40: 0 | DJH40: 0 | DJI40: 0 | DJJ40: 0 | DJK40: 0 | DJL40: 0 | DJM40: 0 | DJN40: 0 | DJO40: 0 | DJP40: 0 | DJQ40: 0 | DJR40: 0 | DJS40: 0 | DJT40: 0 | DJU40: 0 | DJV40: 0 | DJW40: 0 | DJX40: 0 | DJY40: 0 | DJZ40: 0 | DKA40: 0 | DKB40: 0 | DKC40: 0 | DKD40: 0 | DKE40: 0 | DKF40: 0 | DKG40: 0 | DKH40: 0 | DKI40: 0 | DKJ40: 0 | DKK40: 0 | DKL40: 0 | DKM40: 0 | DKN40: 0 | DKO40: 0 | DKP40: 0 | DKQ40: 0 | DKR40: 0 | DKS40: 0 | DKT40: 0 | DKU40: 0 | DKV40: 0 | DKW40: =DKW20 -> 0 | DKX40: 0 | DKY40: 0 | DKZ40: 0 | DLA40: 0 | DLB40: 0 | DLC40: 0 | DLD40: 0 | DLE40: 0 | DLF40: 0 | DLG40: 0 | DLH40: 0 | DLI40: 0 | DLJ40: 0 | DLK40: 0 | DLL40: 0 | DLM40: 0 | DLN40: 0 | DLO40: 0 | DLP40: 0 | DLQ40: 0 | DLR40: 0 | DLS40: 0 | DLT40: 0 | DLU40: 0 | DLV40: 0 | DLW40: 0 | DLX40: 0 | DLY40: 0 | DLZ40: 0 | DMA40: 0 | DMB40: 0 | DMC40: 0 | DMD40: 0 | DME40: 0 | DMF40: 0 | DMG40: 0 | DMH40: 0 | DMI40: 0 | DMJ40: 0 | DMK40: 0 | DML40: 0 | DMM40: 0 | DMN40: 0 | DMO40: 0 | DMP40: 0 | DMQ40: 0 | DMR40: 0 | DMS40: 0 | DMT40: 0 | DMU40: 0 | DMV40: 0 | DMW40: 0 | DMX40: 0 | DMY40: 0 | DMZ40: 0 | DNA40: 0 | DNB40: 0 | DNC40: 0 | DND40: 0 | DNE40: 0 | DNF40: 0 | DNG40: 0 | DNH40: 0 | DNI40: =DNI20 -> 0 | DNJ40: 0 | DNK40: 0 | DNL40: 0 | DNM40: 0 | DNN40: 0 | DNO40: 0 | DNP40: 0 | DNQ40: 0 | DNR40: 0 | DNS40: 0 | DNT40: 0 | DNU40: 0 | DNV40: 0 | DNW40: 0 | DNX40: 0 | DNY40: 0 | DNZ40: 0 | DOA40: 0 | DOB40: 0 | DOC40: 0 | DOD40: 0 | DOE40: 0 | DOF40: 0 | DOG40: 0 | DOH40: 0 | DOI40: 0 | DOJ40: 0 | DOK40: 0 | DOL40: 0 | DOM40: 0 | DON40: 0 | DOO40: 0 | DOP40: 0 | DOQ40: 0 | DOR40: 0 | DOS40: 0 | DOT40: 0 | DOU40: 0 | DOV40: 0 | DOW40: 0 | DOX40: 0 | DOY40: 0 | DOZ40: 0 | DPA40: 0 | DPB40: 0 | DPC40: 0 | DPD40: 0 | DPE40: 0 | DPF40: 0 | DPG40: 0 | DPH40: 0 | DPI40: 0 | DPJ40: 0 | DPK40: 0 | DPL40: 0 | DPM40: 0 | DPN40: 0 | DPO40: 0 | DPP40: 0 | DPQ40: 0 | DPR40: 0 | DPS40: 0 | DPT40: 0 | DPU40: =DPU20 -> 0 | DPV40: 0 | DPW40: 0 | DPX40: 0 | DPY40: 0 | DPZ40: 0 | DQA40: 0 | DQB40: 0 | DQC40: 0 | DQD40: 0 | DQE40: 0 | DQF40: 0 | DQG40: 0 | DQH40: 0 | DQI40: 0 | DQJ40: 0 | DQK40: 0 | DQL40: 0 | DQM40: 0 | DQN40: 0 | DQO40: 0 | DQP40: 0 | DQQ40: 0 | DQR40: 0 | DQS40: 0 | DQT40: 0 | DQU40: 0 | DQV40: 0 | DQW40: 0 | DQX40: 0 | DQY40: 0 | DQZ40: 0 | DRA40: 0 | DRB40: 0 | DRC40: 0 | DRD40: 0 | DRE40: 0 | DRF40: 0 | DRG40: 0 | DRH40: 0 | DRI40: 0 | DRJ40: 0 | DRK40: 0 | DRL40: 0 | DRM40: 0 | DRN40: 0 | DRO40: 0 | DRP40: 0 | DRQ40: 0 | DRR40: 0 | DRS40: 0 | DRT40: 0 | DRU40: 0 | DRV40: 0 | DRW40: 0 | DRX40: 0 | DRY40: 0 | DRZ40: 0 | DSA40: 0 | DSB40: 0 | DSC40: 0 | DSD40: 0 | DSE40: 0 | DSF40: 0 | DSG40: =DSG20 -> 0 | DSH40: 0 | DSI40: 0 | DSJ40: 0 | DSK40: 0 | DSL40: 0 | DSM40: 0 | DSN40: 0 | DSO40: 0 | DSP40: 0 | DSQ40: 0 | DSR40: 0 | DSS40: 0 | DST40: 0 | DSU40: 0 | DSV40: 0 | DSW40: 0 | DSX40: 0 | DSY40: 0 | DSZ40: 0 | DTA40: 0 | DTB40: 0 | DTC40: 0 | DTD40: 0 | DTE40: 0 | DTF40: 0 | DTG40: 0 | DTH40: 0 | DTI40: 0 | DTJ40: 0 | DTK40: 0 | DTL40: 0 | DTM40: 0 | DTN40: 0 | DTO40: 0 | DTP40: 0 | DTQ40: 0 | DTR40: 0 | DTS40: 0 | DTT40: 0 | DTU40: 0 | DTV40: 0 | DTW40: 0 | DTX40: 0 | DTY40: 0 | DTZ40: 0 | DUA40: 0 | DUB40: 0 | DUC40: 0 | DUD40: 0 | DUE40: 0 | DUF40: 0 | DUG40: 0 | DUH40: 0 | DUI40: 0 | DUJ40: 0 | DUK40: 0 | DUL40: 0 | DUM40: 0 | DUN40: 0 | DUO40: 0 | DUP40: 0 | DUQ40: 0 | DUR40: 0 | DUS40: =DUS20 -> 0 | DUT40: 0 | DUU40: 0 | DUV40: 0 | DUW40: 0 | DUX40: 0 | DUY40: 0 | DUZ40: 0 | DVA40: 0 | DVB40: 0 | DVC40: 0 | DVD40: 0 | DVE40: 0 | DVF40: 0 | DVG40: 0 | DVH40: 0 | DVI40: 0 | DVJ40: 0 | DVK40: 0 | DVL40: 0 | DVM40: 0 | DVN40: 0 | DVO40: 0 | DVP40: 0 | DVQ40: 0 | DVR40: 0 | DVS40: 0 | DVT40: 0 | DVU40: 0 | DVV40: 0 | DVW40: 0 | DVX40: 0 | DVY40: 0 | DVZ40: 0 | DWA40: 0 | DWB40: 0 | DWC40: 0 | DWD40: 0 | DWE40: 0 | DWF40: 0 | DWG40: 0 | DWH40: 0 | DWI40: 0 | DWJ40: 0 | DWK40: 0 | DWL40: 0 | DWM40: 0 | DWN40: 0 | DWO40: 0 | DWP40: 0 | DWQ40: 0 | DWR40: 0 | DWS40: 0 | DWT40: 0 | DWU40: 0 | DWV40: 0 | DWW40: 0 | DWX40: 0 | DWY40: 0 | DWZ40: 0 | DXA40: 0 | DXB40: 0 | DXC40: 0 | DXD40: 0 | DXE40: =DXE20 -> 0 | DXF40: 0 | DXG40: 0 | DXH40: 0 | DXI40: 0 | DXJ40: 0 | DXK40: 0 | DXL40: 0 | DXM40: 0 | DXN40: 0 | DXO40: 0 | DXP40: 0 | DXQ40: 0 | DXR40: 0 | DXS40: 0 | DXT40: 0 | DXU40: 0 | DXV40: 0 | DXW40: 0 | DXX40: 0 | DXY40: 0 | DXZ40: 0 | DYA40: 0 | DYB40: 0 | DYC40: 0 | DYD40: 0 | DYE40: 0 | DYF40: 0 | DYG40: 0 | DYH40: 0 | DYI40: 0 | DYJ40: 0 | DYK40: 0 | DYL40: 0 | DYM40: 0 | DYN40: 0 | DYO40: 0 | DYP40: 0 | DYQ40: 0 | DYR40: 0 | DYS40: 0 | DYT40: 0 | DYU40: 0 | DYV40: 0 | DYW40: 0 | DYX40: 0 | DYY40: 0 | DYZ40: 0 | DZA40: 0 | DZB40: 0 | DZC40: 0 | DZD40: 0 | DZE40: 0 | DZF40: 0 | DZG40: 0 | DZH40: 0 | DZI40: 0 | DZJ40: 0 | DZK40: 0 | DZL40: 0 | DZM40: 0 | DZN40: 0 | DZO40: 0 | DZP40: 0 | DZQ40: =DZQ20 -> 0 | DZR40: 0 | DZS40: 0 | DZT40: 0 | DZU40: 0 | DZV40: 0 | DZW40: 0 | DZX40: 0 | DZY40: 0 | DZZ40: 0 | EAA40: 0 | EAB40: 0 | EAC40: 0 | EAD40: 0 | EAE40: 0 | EAF40: 0 | EAG40: 0 | EAH40: 0 | EAI40: 0 | EAJ40: 0 | EAK40: 0 | EAL40: 0 | EAM40: 0 | EAN40: 0 | EAO40: 0 | EAP40: 0 | EAQ40: 0 | EAR40: 0 | EAS40: 0 | EAT40: 0 | EAU40: 0 | EAV40: 0 | EAW40: 0 | EAX40: 0 | EAY40: 0 | EAZ40: 0 | EBA40: 0 | EBB40: 0 | EBC40: 0 | EBD40: 0 | EBE40: 0 | EBF40: 0 | EBG40: 0 | EBH40: 0 | EBI40: 0 | EBJ40: 0 | EBK40: 0 | EBL40: 0 | EBM40: 0 | EBN40: 0 | EBO40: 0 | EBP40: 0 | EBQ40: 0 | EBR40: 0 | EBS40: 0 | EBT40: 0 | EBU40: 0 | EBV40: 0 | EBW40: 0 | EBX40: 0 | EBY40: 0 | EBZ40: 0 | ECA40: 0 | ECB40: 0 | ECC40: =ECC20 -> 0 | ECD40: 0 | ECE40: 0 | ECF40: 0 | ECG40: 0 | ECH40: 0 | ECI40: 0 | ECJ40: 0 | ECK40: 0 | ECL40: 0 | ECM40: 0 | ECN40: 0 | ECO40: 0 | ECP40: 0 | ECQ40: 0 | ECR40: 0 | ECS40: 0 | ECT40: 0 | ECU40: 0 | ECV40: 0 | ECW40: 0 | ECX40: 0 | ECY40: 0 | ECZ40: 0 | EDA40: 0 | EDB40: 0 | EDC40: 0 | EDD40: 0 | EDE40: 0 | EDF40: 0 | EDG40: 0 | EDH40: 0 | EDI40: 0 | EDJ40: 0 | EDK40: 0 | EDL40: 0 | EDM40: 0 | EDN40: 0 | EDO40: 0 | EDP40: 0 | EDQ40: 0 | EDR40: 0 | EDS40: 0 | EDT40: 0 | EDU40: 0 | EDV40: 0 | EDW40: 0 | EDX40: 0 | EDY40: 0 | EDZ40: 0 | EEA40: 0 | EEB40: 0 | EEC40: 0 | EED40: 0 | EEE40: 0 | EEF40: 0 | EEG40: 0 | EEH40: 0 | EEI40: 0 | EEJ40: 0 | EEK40: 0 | EEL40: 0 | EEM40: 0 | EEN40: 0 | EEO40: =EEO20 -> 0 | EEP40: 0 | EEQ40: 0 | EER40: 0 | EES40: 0 | EET40: 0 | EEU40: 0 | EEV40: 0 | EEW40: 0 | EEX40: 0 | EEY40: 0 | EEZ40: 0 | EFA40: 0 | EFB40: 0 | EFC40: 0 | EFD40: 0 | EFE40: 0 | EFF40: 0 | EFG40: 0 | EFH40: 0 | EFI40: 0 | EFJ40: 0 | EFK40: 0 | EFL40: 0 | EFM40: 0 | EFN40: 0 | EFO40: 0 | EFP40: 0 | EFQ40: 0 | EFR40: 0 | EFS40: 0 | EFT40: 0 | EFU40: 0 | EFV40: 0 | EFW40: 0 | EFX40: 0 | EFY40: 0 | EFZ40: 0 | EGA40: 0 | EGB40: 0 | EGC40: 0 | EGD40: 0 | EGE40: 0 | EGF40: 0 | EGG40: 0 | EGH40: 0 | EGI40: 0 | EGJ40: 0 | EGK40: 0 | EGL40: 0 | EGM40: 0 | EGN40: 0 | EGO40: 0 | EGP40: 0 | EGQ40: 0 | EGR40: 0 | EGS40: 0 | EGT40: 0 | EGU40: 0 | EGV40: 0 | EGW40: 0 | EGX40: 0 | EGY40: 0 | EGZ40: 0 | EHA40: =EHA20 -> 0 | EHB40: 0 | EHC40: 0 | EHD40: 0 | EHE40: 0 | EHF40: 0 | EHG40: 0 | EHH40: 0 | EHI40: 0 | EHJ40: 0 | EHK40: 0 | EHL40: 0 | EHM40: 0 | EHN40: 0 | EHO40: 0 | EHP40: 0 | EHQ40: 0 | EHR40: 0 | EHS40: 0 | EHT40: 0 | EHU40: 0 | EHV40: 0 | EHW40: 0 | EHX40: 0 | EHY40: 0 | EHZ40: 0 | EIA40: 0 | EIB40: 0 | EIC40: 0 | EID40: 0 | EIE40: 0 | EIF40: 0 | EIG40: 0 | EIH40: 0 | EII40: 0 | EIJ40: 0 | EIK40: 0 | EIL40: 0 | EIM40: 0 | EIN40: 0 | EIO40: 0 | EIP40: 0 | EIQ40: 0 | EIR40: 0 | EIS40: 0 | EIT40: 0 | EIU40: 0 | EIV40: 0 | EIW40: 0 | EIX40: 0 | EIY40: 0 | EIZ40: 0 | EJA40: 0 | EJB40: 0 | EJC40: 0 | EJD40: 0 | EJE40: 0 | EJF40: 0 | EJG40: 0 | EJH40: 0 | EJI40: 0 | EJJ40: 0 | EJK40: 0 | EJL40: 0 | EJM40: =EJM20 -> 0 | EJN40: 0 | EJO40: 0 | EJP40: 0 | EJQ40: 0 | EJR40: 0 | EJS40: 0 | EJT40: 0 | EJU40: 0 | EJV40: 0 | EJW40: 0 | EJX40: 0 | EJY40: 0 | EJZ40: 0 | EKA40: 0 | EKB40: 0 | EKC40: 0 | EKD40: 0 | EKE40: 0 | EKF40: 0 | EKG40: 0 | EKH40: 0 | EKI40: 0 | EKJ40: 0 | EKK40: 0 | EKL40: 0 | EKM40: 0 | EKN40: 0 | EKO40: 0 | EKP40: 0 | EKQ40: 0 | EKR40: 0 | EKS40: 0 | EKT40: 0 | EKU40: 0 | EKV40: 0 | EKW40: 0 | EKX40: 0 | EKY40: 0 | EKZ40: 0 | ELA40: 0 | ELB40: 0 | ELC40: 0 | ELD40: 0 | ELE40: 0 | ELF40: 0 | ELG40: 0 | ELH40: 0 | ELI40: 0 | ELJ40: 0 | ELK40: 0 | ELL40: 0 | ELM40: 0 | ELN40: 0 | ELO40: 0 | ELP40: 0 | ELQ40: 0 | ELR40: 0 | ELS40: 0 | ELT40: 0 | ELU40: 0 | ELV40: 0 | ELW40: 0 | ELX40: 0 | ELY40: =ELY20 -> 0 | ELZ40: 0 | EMA40: 0 | EMB40: 0 | EMC40: 0 | EMD40: 0 | EME40: 0 | EMF40: 0 | EMG40: 0 | EMH40: 0 | EMI40: 0 | EMJ40: 0 | EMK40: 0 | EML40: 0 | EMM40: 0 | EMN40: 0 | EMO40: 0 | EMP40: 0 | EMQ40: 0 | EMR40: 0 | EMS40: 0 | EMT40: 0 | EMU40: 0 | EMV40: 0 | EMW40: 0 | EMX40: 0 | EMY40: 0 | EMZ40: 0 | ENA40: 0 | ENB40: 0 | ENC40: 0 | END40: 0 | ENE40: 0 | ENF40: 0 | ENG40: 0 | ENH40: 0 | ENI40: 0 | ENJ40: 0 | ENK40: 0 | ENL40: 0 | ENM40: 0 | ENN40: 0 | ENO40: 0 | ENP40: 0 | ENQ40: 0 | ENR40: 0 | ENS40: 0 | ENT40: 0 | ENU40: 0 | ENV40: 0 | ENW40: 0 | ENX40: 0 | ENY40: 0 | ENZ40: 0 | EOA40: 0 | EOB40: 0 | EOC40: 0 | EOD40: 0 | EOE40: 0 | EOF40: 0 | EOG40: 0 | EOH40: 0 | EOI40: 0 | EOJ40: 0 | EOK40: =EOK20 -> 0 | EOL40: 0 | EOM40: 0 | EON40: 0 | EOO40: 0 | EOP40: 0 | EOQ40: 0 | EOR40: 0 | EOS40: 0 | EOT40: 0 | EOU40: 0 | EOV40: 0 | EOW40: 0 | EOX40: 0 | EOY40: 0 | EOZ40: 0 | EPA40: 0 | EPB40: 0 | EPC40: 0 | EPD40: 0 | EPE40: 0 | EPF40: 0 | EPG40: 0 | EPH40: 0 | EPI40: 0 | EPJ40: 0 | EPK40: 0 | EPL40: 0 | EPM40: 0 | EPN40: 0 | EPO40: 0 | EPP40: 0 | EPQ40: 0 | EPR40: 0 | EPS40: 0 | EPT40: 0 | EPU40: 0 | EPV40: 0 | EPW40: 0 | EPX40: 0 | EPY40: 0 | EPZ40: 0 | EQA40: 0 | EQB40: 0 | EQC40: 0 | EQD40: 0 | EQE40: 0 | EQF40: 0 | EQG40: 0 | EQH40: 0 | EQI40: 0 | EQJ40: 0 | EQK40: 0 | EQL40: 0 | EQM40: 0 | EQN40: 0 | EQO40: 0 | EQP40: 0 | EQQ40: 0 | EQR40: 0 | EQS40: 0 | EQT40: 0 | EQU40: 0 | EQV40: 0 | EQW40: =EQW20 -> 0 | EQX40: 0 | EQY40: 0 | EQZ40: 0 | ERA40: 0 | ERB40: 0 | ERC40: 0 | ERD40: 0 | ERE40: 0 | ERF40: 0 | ERG40: 0 | ERH40: 0 | ERI40: 0 | ERJ40: 0 | ERK40: 0 | ERL40: 0 | ERM40: 0 | ERN40: 0 | ERO40: 0 | ERP40: 0 | ERQ40: 0 | ERR40: 0 | ERS40: 0 | ERT40: 0 | ERU40: 0 | ERV40: 0 | ERW40: 0 | ERX40: 0 | ERY40: 0 | ERZ40: 0 | ESA40: 0 | ESB40: 0 | ESC40: 0 | ESD40: 0 | ESE40: 0 | ESF40: 0 | ESG40: 0 | ESH40: 0 | ESI40: 0 | ESJ40: 0 | ESK40: 0 | ESL40: 0 | ESM40: 0 | ESN40: 0 | ESO40: 0 | ESP40: 0 | ESQ40: 0 | ESR40: 0 | ESS40: 0 | EST40: 0 | ESU40: 0 | ESV40: 0 | ESW40: 0 | ESX40: 0 | ESY40: 0 | ESZ40: 0 | ETA40: 0 | ETB40: 0 | ETC40: 0 | ETD40: 0 | ETE40: 0 | ETF40: 0 | ETG40: 0 | ETH40: 0 | ETI40: =ETI20 -> 0 | ETJ40: 0 | ETK40: 0 | ETL40: 0 | ETM40: 0 | ETN40: 0 | ETO40: 0 | ETP40: 0 | ETQ40: 0 | ETR40: 0 | ETS40: 0 | ETT40: 0 | ETU40: 0 | ETV40: 0 | ETW40: 0 | ETX40: 0 | ETY40: 0 | ETZ40: 0 | EUA40: 0 | EUB40: 0 | EUC40: 0 | EUD40: 0 | EUE40: 0 | EUF40: 0 | EUG40: 0 | EUH40: 0 | EUI40: 0 | EUJ40: 0 | EUK40: 0 | EUL40: 0 | EUM40: 0 | EUN40: 0 | EUO40: 0 | EUP40: 0 | EUQ40: 0 | EUR40: 0 | EUS40: 0 | EUT40: 0 | EUU40: 0 | EUV40: 0 | EUW40: 0 | EUX40: 0 | EUY40: 0 | EUZ40: 0 | EVA40: 0 | EVB40: 0 | EVC40: 0 | EVD40: 0 | EVE40: 0 | EVF40: 0 | EVG40: 0 | EVH40: 0 | EVI40: 0 | EVJ40: 0 | EVK40: 0 | EVL40: 0 | EVM40: 0 | EVN40: 0 | EVO40: 0 | EVP40: 0 | EVQ40: 0 | EVR40: 0 | EVS40: 0 | EVT40: 0 | EVU40: =EVU20 -> 0 | EVV40: 0 | EVW40: 0 | EVX40: 0 | EVY40: 0 | EVZ40: 0 | EWA40: 0 | EWB40: 0 | EWC40: 0 | EWD40: 0 | EWE40: 0 | EWF40: 0 | EWG40: 0 | EWH40: 0 | EWI40: 0 | EWJ40: 0 | EWK40: 0 | EWL40: 0 | EWM40: 0 | EWN40: 0 | EWO40: 0 | EWP40: 0 | EWQ40: 0 | EWR40: 0 | EWS40: 0 | EWT40: 0 | EWU40: 0 | EWV40: 0 | EWW40: 0 | EWX40: 0 | EWY40: 0 | EWZ40: 0 | EXA40: 0 | EXB40: 0 | EXC40: 0 | EXD40: 0 | EXE40: 0 | EXF40: 0 | EXG40: 0 | EXH40: 0 | EXI40: 0 | EXJ40: 0 | EXK40: 0 | EXL40: 0 | EXM40: 0 | EXN40: 0 | EXO40: 0 | EXP40: 0 | EXQ40: 0 | EXR40: 0 | EXS40: 0 | EXT40: 0 | EXU40: 0 | EXV40: 0 | EXW40: 0 | EXX40: 0 | EXY40: 0 | EXZ40: 0 | EYA40: 0 | EYB40: 0 | EYC40: 0 | EYD40: 0 | EYE40: 0 | EYF40: 0 | EYG40: =EYG20 -> 0 | EYH40: 0 | EYI40: 0 | EYJ40: 0 | EYK40: 0 | EYL40: 0 | EYM40: 0 | EYN40: 0 | EYO40: 0 | EYP40: 0 | EYQ40: 0 | EYR40: 0 | EYS40: 0 | EYT40: 0 | EYU40: 0 | EYV40: 0 | EYW40: 0 | EYX40: 0 | EYY40: 0 | EYZ40: 0 | EZA40: 0 | EZB40: 0 | EZC40: 0 | EZD40: 0 | EZE40: 0 | EZF40: 0 | EZG40: 0 | EZH40: 0 | EZI40: 0 | EZJ40: 0 | EZK40: 0 | EZL40: 0 | EZM40: 0 | EZN40: 0 | EZO40: 0 | EZP40: 0 | EZQ40: 0 | EZR40: 0 | EZS40: 0 | EZT40: 0 | EZU40: 0 | EZV40: 0 | EZW40: 0 | EZX40: 0 | EZY40: 0 | EZZ40: 0 | FAA40: 0 | FAB40: 0 | FAC40: 0 | FAD40: 0 | FAE40: 0 | FAF40: 0 | FAG40: 0 | FAH40: 0 | FAI40: 0 | FAJ40: 0 | FAK40: 0 | FAL40: 0 | FAM40: 0 | FAN40: 0 | FAO40: 0 | FAP40: 0 | FAQ40: 0 | FAR40: 0 | FAS40: =FAS20 -> 0 | FAT40: 0 | FAU40: 0 | FAV40: 0 | FAW40: 0 | FAX40: 0 | FAY40: 0 | FAZ40: 0 | FBA40: 0 | FBB40: 0 | FBC40: 0 | FBD40: 0 | FBE40: 0 | FBF40: 0 | FBG40: 0 | FBH40: 0 | FBI40: 0 | FBJ40: 0 | FBK40: 0 | FBL40: 0 | FBM40: 0 | FBN40: 0 | FBO40: 0 | FBP40: 0 | FBQ40: 0 | FBR40: 0 | FBS40: 0 | FBT40: 0 | FBU40: 0 | FBV40: 0 | FBW40: 0 | FBX40: 0 | FBY40: 0 | FBZ40: 0 | FCA40: 0 | FCB40: 0 | FCC40: 0 | FCD40: 0 | FCE40: 0 | FCF40: 0 | FCG40: 0 | FCH40: 0 | FCI40: 0 | FCJ40: 0 | FCK40: 0 | FCL40: 0 | FCM40: 0 | FCN40: 0 | FCO40: 0 | FCP40: 0 | FCQ40: 0 | FCR40: 0 | FCS40: 0 | FCT40: 0 | FCU40: 0 | FCV40: 0 | FCW40: 0 | FCX40: 0 | FCY40: 0 | FCZ40: 0 | FDA40: 0 | FDB40: 0 | FDC40: 0 | FDD40: 0 | FDE40: =FDE20 -> 0 | FDF40: 0 | FDG40: 0 | FDH40: 0 | FDI40: 0 | FDJ40: 0 | FDK40: 0 | FDL40: 0 | FDM40: 0 | FDN40: 0 | FDO40: 0 | FDP40: 0 | FDQ40: 0 | FDR40: 0 | FDS40: 0 | FDT40: 0 | FDU40: 0 | FDV40: 0 | FDW40: 0 | FDX40: 0 | FDY40: 0 | FDZ40: 0 | FEA40: 0 | FEB40: 0 | FEC40: 0 | FED40: 0 | FEE40: 0 | FEF40: 0 | FEG40: 0 | FEH40: 0 | FEI40: 0 | FEJ40: 0 | FEK40: 0 | FEL40: 0 | FEM40: 0 | FEN40: 0 | FEO40: 0 | FEP40: 0 | FEQ40: 0 | FER40: 0 | FES40: 0 | FET40: 0 | FEU40: 0 | FEV40: 0 | FEW40: 0 | FEX40: 0 | FEY40: 0 | FEZ40: 0 | FFA40: 0 | FFB40: 0 | FFC40: 0 | FFD40: 0 | FFE40: 0 | FFF40: 0 | FFG40: 0 | FFH40: 0 | FFI40: 0 | FFJ40: 0 | FFK40: 0 | FFL40: 0 | FFM40: 0 | FFN40: 0 | FFO40: 0 | FFP40: 0 | FFQ40: =FFQ20 -> 0 | FFR40: 0 | FFS40: 0 | FFT40: 0 | FFU40: 0 | FFV40: 0 | FFW40: 0 | FFX40: 0 | FFY40: 0 | FFZ40: 0 | FGA40: 0 | FGB40: 0 | FGC40: 0 | FGD40: 0 | FGE40: 0 | FGF40: 0 | FGG40: 0 | FGH40: 0 | FGI40: 0 | FGJ40: 0 | FGK40: 0 | FGL40: 0 | FGM40: 0 | FGN40: 0 | FGO40: 0 | FGP40: 0 | FGQ40: 0 | FGR40: 0 | FGS40: 0 | FGT40: 0 | FGU40: 0 | FGV40: 0 | FGW40: 0 | FGX40: 0 | FGY40: 0 | FGZ40: 0 | FHA40: 0 | FHB40: 0 | FHC40: 0 | FHD40: 0 | FHE40: 0 | FHF40: 0 | FHG40: 0 | FHH40: 0 | FHI40: 0 | FHJ40: 0 | FHK40: 0 | FHL40: 0 | FHM40: 0 | FHN40: 0 | FHO40: 0 | FHP40: 0 | FHQ40: 0 | FHR40: 0 | FHS40: 0 | FHT40: 0 | FHU40: 0 | FHV40: 0 | FHW40: 0 | FHX40: 0 | FHY40: 0 | FHZ40: 0 | FIA40: 0 | FIB40: 0 | FIC40: =FIC20 -> 0 | FID40: 0 | FIE40: 0 | FIF40: 0 | FIG40: 0 | FIH40: 0 | FII40: 0 | FIJ40: 0 | FIK40: 0 | FIL40: 0 | FIM40: 0 | FIN40: 0 | FIO40: 0 | FIP40: 0 | FIQ40: 0 | FIR40: 0 | FIS40: 0 | FIT40: 0 | FIU40: 0 | FIV40: 0 | FIW40: 0 | FIX40: 0 | FIY40: 0 | FIZ40: 0 | FJA40: 0 | FJB40: 0 | FJC40: 0 | FJD40: 0 | FJE40: 0 | FJF40: 0 | FJG40: 0 | FJH40: 0 | FJI40: 0 | FJJ40: 0 | FJK40: 0 | FJL40: 0 | FJM40: 0 | FJN40: 0 | FJO40: 0 | FJP40: 0 | FJQ40: 0 | FJR40: 0 | FJS40: 0 | FJT40: 0 | FJU40: 0 | FJV40: 0 | FJW40: 0 | FJX40: 0 | FJY40: 0 | FJZ40: 0 | FKA40: 0 | FKB40: 0 | FKC40: 0 | FKD40: 0 | FKE40: 0 | FKF40: 0 | FKG40: 0 | FKH40: 0 | FKI40: 0 | FKJ40: 0 | FKK40: 0 | FKL40: 0 | FKM40: 0 | FKN40: 0 | FKO40: =FKO20 -> 0 | FKP40: 0 | FKQ40: 0 | FKR40: 0 | FKS40: 0 | FKT40: 0 | FKU40: 0 | FKV40: 0 | FKW40: 0 | FKX40: 0 | FKY40: 0 | FKZ40: 0 | FLA40: 0 | FLB40: 0 | FLC40: 0 | FLD40: 0 | FLE40: 0 | FLF40: 0 | FLG40: 0 | FLH40: 0 | FLI40: 0 | FLJ40: 0 | FLK40: 0 | FLL40: 0 | FLM40: 0 | FLN40: 0 | FLO40: 0 | FLP40: 0 | FLQ40: 0 | FLR40: 0 | FLS40: 0 | FLT40: 0 | FLU40: 0 | FLV40: 0 | FLW40: 0 | FLX40: 0 | FLY40: 0 | FLZ40: 0 | FMA40: 0 | FMB40: 0 | FMC40: 0 | FMD40: 0 | FME40: 0 | FMF40: 0 | FMG40: 0 | FMH40: 0 | FMI40: 0 | FMJ40: 0 | FMK40: 0 | FML40: 0 | FMM40: 0 | FMN40: 0 | FMO40: 0 | FMP40: 0 | FMQ40: 0 | FMR40: 0 | FMS40: 0 | FMT40: 0 | FMU40: 0 | FMV40: 0 | FMW40: 0 | FMX40: 0 | FMY40: 0 | FMZ40: 0 | FNA40: =FNA20 -> 0 | FNB40: 0 | FNC40: 0 | FND40: 0 | FNE40: 0 | FNF40: 0 | FNG40: 0 | FNH40: 0 | FNI40: 0 | FNJ40: 0 | FNK40: 0 | FNL40: 0 | FNM40: 0 | FNN40: 0 | FNO40: 0 | FNP40: 0 | FNQ40: 0 | FNR40: 0 | FNS40: 0 | FNT40: 0 | FNU40: 0 | FNV40: 0 | FNW40: 0 | FNX40: 0 | FNY40: 0 | FNZ40: 0 | FOA40: 0 | FOB40: 0 | FOC40: 0 | FOD40: 0 | FOE40: 0 | FOF40: 0 | FOG40: 0 | FOH40: 0 | FOI40: 0 | FOJ40: 0 | FOK40: 0 | FOL40: 0 | FOM40: 0 | FON40: 0 | FOO40: 0 | FOP40: 0 | FOQ40: 0 | FOR40: 0 | FOS40: 0 | FOT40: 0 | FOU40: 0 | FOV40: 0 | FOW40: 0 | FOX40: 0 | FOY40: 0 | FOZ40: 0 | FPA40: 0 | FPB40: 0 | FPC40: 0 | FPD40: 0 | FPE40: 0 | FPF40: 0 | FPG40: 0 | FPH40: 0 | FPI40: 0 | FPJ40: 0 | FPK40: 0 | FPL40: 0 | FPM40: =FPM20 -> 0 | FPN40: 0 | FPO40: 0 | FPP40: 0 | FPQ40: 0 | FPR40: 0 | FPS40: 0 | FPT40: 0 | FPU40: 0 | FPV40: 0 | FPW40: 0 | FPX40: 0 | FPY40: 0 | FPZ40: 0 | FQA40: 0 | FQB40: 0 | FQC40: 0 | FQD40: 0 | FQE40: 0 | FQF40: 0 | FQG40: 0 | FQH40: 0 | FQI40: 0 | FQJ40: 0 | FQK40: 0 | FQL40: 0 | FQM40: 0 | FQN40: 0 | FQO40: 0 | FQP40: 0 | FQQ40: 0 | FQR40: 0 | FQS40: 0 | FQT40: 0 | FQU40: 0 | FQV40: 0 | FQW40: 0 | FQX40: 0 | FQY40: 0 | FQZ40: 0 | FRA40: 0 | FRB40: 0 | FRC40: 0 | FRD40: 0 | FRE40: 0 | FRF40: 0 | FRG40: 0 | FRH40: 0 | FRI40: 0 | FRJ40: 0 | FRK40: 0 | FRL40: 0 | FRM40: 0 | FRN40: 0 | FRO40: 0 | FRP40: 0 | FRQ40: 0 | FRR40: 0 | FRS40: 0 | FRT40: 0 | FRU40: 0 | FRV40: 0 | FRW40: 0 | FRX40: 0 | FRY40: =FRY20 -> 0 | FRZ40: 0 | FSA40: 0 | FSB40: 0 | FSC40: 0 | FSD40: 0 | FSE40: 0 | FSF40: 0 | FSG40: 0 | FSH40: 0 | FSI40: 0 | FSJ40: 0 | FSK40: 0 | FSL40: 0 | FSM40: 0 | FSN40: 0 | FSO40: 0 | FSP40: 0 | FSQ40: 0 | FSR40: 0 | FSS40: 0 | FST40: 0 | FSU40: 0 | FSV40: 0 | FSW40: 0 | FSX40: 0 | FSY40: 0 | FSZ40: 0 | FTA40: 0 | FTB40: 0 | FTC40: 0 | FTD40: 0 | FTE40: 0 | FTF40: 0 | FTG40: 0 | FTH40: 0 | FTI40: 0 | FTJ40: 0 | FTK40: 0 | FTL40: 0 | FTM40: 0 | FTN40: 0 | FTO40: 0 | FTP40: 0 | FTQ40: 0 | FTR40: 0 | FTS40: 0 | FTT40: 0 | FTU40: 0 | FTV40: 0 | FTW40: 0 | FTX40: 0 | FTY40: 0 | FTZ40: 0 | FUA40: 0 | FUB40: 0 | FUC40: 0 | FUD40: 0 | FUE40: 0 | FUF40: 0 | FUG40: 0 | FUH40: 0 | FUI40: 0 | FUJ40: 0 | FUK40: =FUK20 -> 0 | FUL40: 0 | FUM40: 0 | FUN40: 0 | FUO40: 0 | FUP40: 0 | FUQ40: 0 | FUR40: 0 | FUS40: 0 | FUT40: 0 | FUU40: 0 | FUV40: 0 | FUW40: 0 | FUX40: 0 | FUY40: 0 | FUZ40: 0 | FVA40: 0 | FVB40: 0 | FVC40: 0 | FVD40: 0 | FVE40: 0 | FVF40: 0 | FVG40: 0 | FVH40: 0 | FVI40: 0 | FVJ40: 0 | FVK40: 0 | FVL40: 0 | FVM40: 0 | FVN40: 0 | FVO40: 0 | FVP40: 0 | FVQ40: 0 | FVR40: 0 | FVS40: 0 | FVT40: 0 | FVU40: 0 | FVV40: 0 | FVW40: 0 | FVX40: 0 | FVY40: 0 | FVZ40: 0 | FWA40: 0 | FWB40: 0 | FWC40: 0 | FWD40: 0 | FWE40: 0 | FWF40: 0 | FWG40: 0 | FWH40: 0 | FWI40: 0 | FWJ40: 0 | FWK40: 0 | FWL40: 0 | FWM40: 0 | FWN40: 0 | FWO40: 0 | FWP40: 0 | FWQ40: 0 | FWR40: 0 | FWS40: 0 | FWT40: 0 | FWU40: 0 | FWV40: 0 | FWW40: =FWW20 -> 0 | FWX40: 0 | FWY40: 0 | FWZ40: 0 | FXA40: 0 | FXB40: 0 | FXC40: 0 | FXD40: 0 | FXE40: 0 | FXF40: 0 | FXG40: 0 | FXH40: 0 | FXI40: 0 | FXJ40: 0 | FXK40: 0 | FXL40: 0 | FXM40: 0 | FXN40: 0 | FXO40: 0 | FXP40: 0 | FXQ40: 0 | FXR40: 0 | FXS40: 0 | FXT40: 0 | FXU40: 0 | FXV40: 0 | FXW40: 0 | FXX40: 0 | FXY40: 0 | FXZ40: 0 | FYA40: 0 | FYB40: 0 | FYC40: 0 | FYD40: 0 | FYE40: 0 | FYF40: 0 | FYG40: 0 | FYH40: 0 | FYI40: 0 | FYJ40: 0 | FYK40: 0 | FYL40: 0 | FYM40: 0 | FYN40: 0 | FYO40: 0 | FYP40: 0 | FYQ40: 0 | FYR40: 0 | FYS40: 0 | FYT40: 0 | FYU40: 0 | FYV40: 0 | FYW40: 0 | FYX40: 0 | FYY40: 0 | FYZ40: 0 | FZA40: 0 | FZB40: 0 | FZC40: 0 | FZD40: 0 | FZE40: 0 | FZF40: 0 | FZG40: 0 | FZH40: 0 | FZI40: =FZI20 -> 0 | FZJ40: 0 | FZK40: 0 | FZL40: 0 | FZM40: 0 | FZN40: 0 | FZO40: 0 | FZP40: 0 | FZQ40: 0 | FZR40: 0 | FZS40: 0 | FZT40: 0 | FZU40: 0 | FZV40: 0 | FZW40: 0 | FZX40: 0 | FZY40: 0 | FZZ40: 0 | GAA40: 0 | GAB40: 0 | GAC40: 0 | GAD40: 0 | GAE40: 0 | GAF40: 0 | GAG40: 0 | GAH40: 0 | GAI40: 0 | GAJ40: 0 | GAK40: 0 | GAL40: 0 | GAM40: 0 | GAN40: 0 | GAO40: 0 | GAP40: 0 | GAQ40: 0 | GAR40: 0 | GAS40: 0 | GAT40: 0 | GAU40: 0 | GAV40: 0 | GAW40: 0 | GAX40: 0 | GAY40: 0 | GAZ40: 0 | GBA40: 0 | GBB40: 0 | GBC40: 0 | GBD40: 0 | GBE40: 0 | GBF40: 0 | GBG40: 0 | GBH40: 0 | GBI40: 0 | GBJ40: 0 | GBK40: 0 | GBL40: 0 | GBM40: 0 | GBN40: 0 | GBO40: 0 | GBP40: 0 | GBQ40: 0 | GBR40: 0 | GBS40: 0 | GBT40: 0 | GBU40: =GBU20 -> 0 | GBV40: 0 | GBW40: 0 | GBX40: 0 | GBY40: 0 | GBZ40: 0 | GCA40: 0 | GCB40: 0 | GCC40: 0 | GCD40: 0 | GCE40: 0 | GCF40: 0 | GCG40: 0 | GCH40: 0 | GCI40: 0 | GCJ40: 0 | GCK40: 0 | GCL40: 0 | GCM40: 0 | GCN40: 0 | GCO40: 0 | GCP40: 0 | GCQ40: 0 | GCR40: 0 | GCS40: 0 | GCT40: 0 | GCU40: 0 | GCV40: 0 | GCW40: 0 | GCX40: 0 | GCY40: 0 | GCZ40: 0 | GDA40: 0 | GDB40: 0 | GDC40: 0 | GDD40: 0 | GDE40: 0 | GDF40: 0 | GDG40: 0 | GDH40: 0 | GDI40: 0 | GDJ40: 0 | GDK40: 0 | GDL40: 0 | GDM40: 0 | GDN40: 0 | GDO40: 0 | GDP40: 0 | GDQ40: 0 | GDR40: 0 | GDS40: 0 | GDT40: 0 | GDU40: 0 | GDV40: 0 | GDW40: 0 | GDX40: 0 | GDY40: 0 | GDZ40: 0 | GEA40: 0 | GEB40: 0 | GEC40: 0 | GED40: 0 | GEE40: 0 | GEF40: 0 | GEG40: =GEG20 -> 0 | GEH40: 0 | GEI40: 0 | GEJ40: 0 | GEK40: 0 | GEL40: 0 | GEM40: 0 | GEN40: 0 | GEO40: 0 | GEP40: 0 | GEQ40: 0 | GER40: 0 | GES40: 0 | GET40: 0 | GEU40: 0 | GEV40: 0 | GEW40: 0 | GEX40: 0 | GEY40: 0 | GEZ40: 0 | GFA40: 0 | GFB40: 0 | GFC40: 0 | GFD40: 0 | GFE40: 0 | GFF40: 0 | GFG40: 0 | GFH40: 0 | GFI40: 0 | GFJ40: 0 | GFK40: 0 | GFL40: 0 | GFM40: 0 | GFN40: 0 | GFO40: 0 | GFP40: 0 | GFQ40: 0 | GFR40: 0 | GFS40: 0 | GFT40: 0 | GFU40: 0 | GFV40: 0 | GFW40: 0 | GFX40: 0 | GFY40: 0 | GFZ40: 0 | GGA40: 0 | GGB40: 0 | GGC40: 0 | GGD40: 0 | GGE40: 0 | GGF40: 0 | GGG40: 0 | GGH40: 0 | GGI40: 0 | GGJ40: 0 | GGK40: 0 | GGL40: 0 | GGM40: 0 | GGN40: 0 | GGO40: 0 | GGP40: 0 | GGQ40: 0 | GGR40: 0 | GGS40: =GGS20 -> 0 | GGT40: 0 | GGU40: 0 | GGV40: 0 | GGW40: 0 | GGX40: 0 | GGY40: 0 | GGZ40: 0 | GHA40: 0 | GHB40: 0 | GHC40: 0 | GHD40: 0 | GHE40: 0 | GHF40: 0 | GHG40: 0 | GHH40: 0 | GHI40: 0 | GHJ40: 0 | GHK40: 0 | GHL40: 0 | GHM40: 0 | GHN40: 0 | GHO40: 0 | GHP40: 0 | GHQ40: 0 | GHR40: 0 | GHS40: 0 | GHT40: 0 | GHU40: 0 | GHV40: 0 | GHW40: 0 | GHX40: 0 | GHY40: 0 | GHZ40: 0 | GIA40: 0 | GIB40: 0 | GIC40: 0 | GID40: 0 | GIE40: 0 | GIF40: 0 | GIG40: 0 | GIH40: 0 | GII40: 0 | GIJ40: 0 | GIK40: 0 | GIL40: 0 | GIM40: 0 | GIN40: 0 | GIO40: 0 | GIP40: 0 | GIQ40: 0 | GIR40: 0 | GIS40: 0 | GIT40: 0 | GIU40: 0 | GIV40: 0 | GIW40: 0 | GIX40: 0 | GIY40: 0 | GIZ40: 0 | GJA40: 0 | GJB40: 0 | GJC40: 0 | GJD40: 0 | GJE40: =GJE20 -> 0 | GJF40: 0 | GJG40: 0 | GJH40: 0 | GJI40: 0 | GJJ40: 0 | GJK40: 0 | GJL40: 0 | GJM40: 0 | GJN40: 0 | GJO40: 0 | GJP40: 0 | GJQ40: 0 | GJR40: 0 | GJS40: 0 | GJT40: 0 | GJU40: 0 | GJV40: 0 | GJW40: 0 | GJX40: 0 | GJY40: 0 | GJZ40: 0 | GKA40: 0 | GKB40: 0 | GKC40: 0 | GKD40: 0 | GKE40: 0 | GKF40: 0 | GKG40: 0 | GKH40: 0 | GKI40: 0 | GKJ40: 0 | GKK40: 0 | GKL40: 0 | GKM40: 0 | GKN40: 0 | GKO40: 0 | GKP40: 0 | GKQ40: 0 | GKR40: 0 | GKS40: 0 | GKT40: 0 | GKU40: 0 | GKV40: 0 | GKW40: 0 | GKX40: 0 | GKY40: 0 | GKZ40: 0 | GLA40: 0 | GLB40: 0 | GLC40: 0 | GLD40: 0 | GLE40: 0 | GLF40: 0 | GLG40: 0 | GLH40: 0 | GLI40: 0 | GLJ40: 0 | GLK40: 0 | GLL40: 0 | GLM40: 0 | GLN40: 0 | GLO40: 0 | GLP40: 0 | GLQ40: =GLQ20 -> 0 | GLR40: 0 | GLS40: 0 | GLT40: 0 | GLU40: 0 | GLV40: 0 | GLW40: 0 | GLX40: 0 | GLY40: 0 | GLZ40: 0 | GMA40: 0 | GMB40: 0 | GMC40: 0 | GMD40: 0 | GME40: 0 | GMF40: 0 | GMG40: 0 | GMH40: 0 | GMI40: 0 | GMJ40: 0 | GMK40: 0 | GML40: 0 | GMM40: 0 | GMN40: 0 | GMO40: 0 | GMP40: 0 | GMQ40: 0 | GMR40: 0 | GMS40: 0 | GMT40: 0 | GMU40: 0 | GMV40: 0 | GMW40: 0 | GMX40: 0 | GMY40: 0 | GMZ40: 0 | GNA40: 0 | GNB40: 0 | GNC40: 0 | GND40: 0 | GNE40: 0 | GNF40: 0 | GNG40: 0 | GNH40: 0 | GNI40: 0 | GNJ40: 0 | GNK40: 0 | GNL40: 0 | GNM40: 0 | GNN40: 0 | GNO40: 0 | GNP40: 0 | GNQ40: 0 | GNR40: 0 | GNS40: 0 | GNT40: 0 | GNU40: 0 | GNV40: 0 | GNW40: 0 | GNX40: 0 | GNY40: 0 | GNZ40: 0 | GOA40: 0 | GOB40: 0 | GOC40: =GOC20 -> 0 | GOD40: 0 | GOE40: 0 | GOF40: 0 | GOG40: 0 | GOH40: 0 | GOI40: 0 | GOJ40: 0 | GOK40: 0 | GOL40: 0 | GOM40: 0 | GON40: 0 | GOO40: 0 | GOP40: 0 | GOQ40: 0 | GOR40: 0 | GOS40: 0 | GOT40: 0 | GOU40: 0 | GOV40: 0 | GOW40: 0 | GOX40: 0 | GOY40: 0 | GOZ40: 0 | GPA40: 0 | GPB40: 0 | GPC40: 0 | GPD40: 0 | GPE40: 0 | GPF40: 0 | GPG40: 0 | GPH40: 0 | GPI40: 0 | GPJ40: 0 | GPK40: 0 | GPL40: 0 | GPM40: 0 | GPN40: 0 | GPO40: 0 | GPP40: 0 | GPQ40: 0 | GPR40: 0 | GPS40: 0 | GPT40: 0 | GPU40: 0 | GPV40: 0 | GPW40: 0 | GPX40: 0 | GPY40: 0 | GPZ40: 0 | GQA40: 0 | GQB40: 0 | GQC40: 0 | GQD40: 0 | GQE40: 0 | GQF40: 0 | GQG40: 0 | GQH40: 0 | GQI40: 0 | GQJ40: 0 | GQK40: 0 | GQL40: 0 | GQM40: 0 | GQN40: 0 | GQO40: =GQO20 -> 0 | GQP40: 0 | GQQ40: 0 | GQR40: 0 | GQS40: 0 | GQT40: 0 | GQU40: 0 | GQV40: 0 | GQW40: 0 | GQX40: 0 | GQY40: 0 | GQZ40: 0 | GRA40: 0 | GRB40: 0 | GRC40: 0 | GRD40: 0 | GRE40: 0 | GRF40: 0 | GRG40: 0 | GRH40: 0 | GRI40: 0 | GRJ40: 0 | GRK40: 0 | GRL40: 0 | GRM40: 0 | GRN40: 0 | GRO40: 0 | GRP40: 0 | GRQ40: 0 | GRR40: 0 | GRS40: 0 | GRT40: 0 | GRU40: 0 | GRV40: 0 | GRW40: 0 | GRX40: 0 | GRY40: 0 | GRZ40: 0 | GSA40: 0 | GSB40: 0 | GSC40: 0 | GSD40: 0 | GSE40: 0 | GSF40: 0 | GSG40: 0 | GSH40: 0 | GSI40: 0 | GSJ40: 0 | GSK40: 0 | GSL40: 0 | GSM40: 0 | GSN40: 0 | GSO40: 0 | GSP40: 0 | GSQ40: 0 | GSR40: 0 | GSS40: 0 | GST40: 0 | GSU40: 0 | GSV40: 0 | GSW40: 0 | GSX40: 0 | GSY40: 0 | GSZ40: 0 | GTA40: =GTA20 -> 0 | GTB40: 0 | GTC40: 0 | GTD40: 0 | GTE40: 0 | GTF40: 0 | GTG40: 0 | GTH40: 0 | GTI40: 0 | GTJ40: 0 | GTK40: 0 | GTL40: 0 | GTM40: 0 | GTN40: 0 | GTO40: 0 | GTP40: 0 | GTQ40: 0 | GTR40: 0 | GTS40: 0 | GTT40: 0 | GTU40: 0 | GTV40: 0 | GTW40: 0 | GTX40: 0 | GTY40: 0 | GTZ40: 0 | GUA40: 0 | GUB40: 0 | GUC40: 0 | GUD40: 0 | GUE40: 0 | GUF40: 0 | GUG40: 0 | GUH40: 0 | GUI40: 0 | GUJ40: 0 | GUK40: 0 | GUL40: 0 | GUM40: 0 | GUN40: 0 | GUO40: 0 | GUP40: 0 | GUQ40: 0 | GUR40: 0 | GUS40: 0 | GUT40: 0 | GUU40: 0 | GUV40: 0 | GUW40: 0 | GUX40: 0 | GUY40: 0 | GUZ40: 0 | GVA40: 0 | GVB40: 0 | GVC40: 0 | GVD40: 0 | GVE40: 0 | GVF40: 0 | GVG40: 0 | GVH40: 0 | GVI40: 0 | GVJ40: 0 | GVK40: 0 | GVL40: 0 | GVM40: =GVM20 -> 0 | GVN40: 0 | GVO40: 0 | GVP40: 0 | GVQ40: 0 | GVR40: 0 | GVS40: 0 | GVT40: 0 | GVU40: 0 | GVV40: 0 | GVW40: 0 | GVX40: 0 | GVY40: 0 | GVZ40: 0 | GWA40: 0 | GWB40: 0 | GWC40: 0 | GWD40: 0 | GWE40: 0 | GWF40: 0 | GWG40: 0 | GWH40: 0 | GWI40: 0 | GWJ40: 0 | GWK40: 0 | GWL40: 0 | GWM40: 0 | GWN40: 0 | GWO40: 0 | GWP40: 0 | GWQ40: 0 | GWR40: 0 | GWS40: 0 | GWT40: 0 | GWU40: 0 | GWV40: 0 | GWW40: 0 | GWX40: 0 | GWY40: 0 | GWZ40: 0 | GXA40: 0 | GXB40: 0 | GXC40: 0 | GXD40: 0 | GXE40: 0 | GXF40: 0 | GXG40: 0 | GXH40: 0 | GXI40: 0 | GXJ40: 0 | GXK40: 0 | GXL40: 0 | GXM40: 0 | GXN40: 0 | GXO40: 0 | GXP40: 0 | GXQ40: 0 | GXR40: 0 | GXS40: 0 | GXT40: 0 | GXU40: 0 | GXV40: 0 | GXW40: 0 | GXX40: 0 | GXY40: =GXY20 -> 0 | GXZ40: 0 | GYA40: 0 | GYB40: 0 | GYC40: 0 | GYD40: 0 | GYE40: 0 | GYF40: 0 | GYG40: 0 | GYH40: 0 | GYI40: 0 | GYJ40: 0 | GYK40: 0 | GYL40: 0 | GYM40: 0 | GYN40: 0 | GYO40: 0 | GYP40: 0 | GYQ40: 0 | GYR40: 0 | GYS40: 0 | GYT40: 0 | GYU40: 0 | GYV40: 0 | GYW40: 0 | GYX40: 0 | GYY40: 0 | GYZ40: 0 | GZA40: 0 | GZB40: 0 | GZC40: 0 | GZD40: 0 | GZE40: 0 | GZF40: 0 | GZG40: 0 | GZH40: 0 | GZI40: 0 | GZJ40: 0 | GZK40: 0 | GZL40: 0 | GZM40: 0 | GZN40: 0 | GZO40: 0 | GZP40: 0 | GZQ40: 0 | GZR40: 0 | GZS40: 0 | GZT40: 0 | GZU40: 0 | GZV40: 0 | GZW40: 0 | GZX40: 0 | GZY40: 0 | GZZ40: 0 | HAA40: 0 | HAB40: 0 | HAC40: 0 | HAD40: 0 | HAE40: 0 | HAF40: 0 | HAG40: 0 | HAH40: 0 | HAI40: 0 | HAJ40: 0 | HAK40: =HAK20 -> 0 | HAL40: 0 | HAM40: 0 | HAN40: 0 | HAO40: 0 | HAP40: 0 | HAQ40: 0 | HAR40: 0 | HAS40: 0 | HAT40: 0 | HAU40: 0 | HAV40: 0 | HAW40: 0 | HAX40: 0 | HAY40: 0 | HAZ40: 0 | HBA40: 0 | HBB40: 0 | HBC40: 0 | HBD40: 0 | HBE40: 0 | HBF40: 0 | HBG40: 0 | HBH40: 0 | HBI40: 0 | HBJ40: 0 | HBK40: 0 | HBL40: 0 | HBM40: 0 | HBN40: 0 | HBO40: 0 | HBP40: 0 | HBQ40: 0 | HBR40: 0 | HBS40: 0 | HBT40: 0 | HBU40: 0 | HBV40: 0 | HBW40: 0 | HBX40: 0 | HBY40: 0 | HBZ40: 0 | HCA40: 0 | HCB40: 0 | HCC40: 0 | HCD40: 0 | HCE40: 0 | HCF40: 0 | HCG40: 0 | HCH40: 0 | HCI40: 0 | HCJ40: 0 | HCK40: 0 | HCL40: 0 | HCM40: 0 | HCN40: 0 | HCO40: 0 | HCP40: 0 | HCQ40: 0 | HCR40: 0 | HCS40: 0 | HCT40: 0 | HCU40: 0 | HCV40: 0 | HCW40: =HCW20 -> 0 | HCX40: 0 | HCY40: 0 | HCZ40: 0 | HDA40: 0 | HDB40: 0 | HDC40: 0 | HDD40: 0 | HDE40: 0 | HDF40: 0 | HDG40: 0 | HDH40: 0 | HDI40: 0 | HDJ40: 0 | HDK40: 0 | HDL40: 0 | HDM40: 0 | HDN40: 0 | HDO40: 0 | HDP40: 0 | HDQ40: 0 | HDR40: 0 | HDS40: 0 | HDT40: 0 | HDU40: 0 | HDV40: 0 | HDW40: 0 | HDX40: 0 | HDY40: 0 | HDZ40: 0 | HEA40: 0 | HEB40: 0 | HEC40: 0 | HED40: 0 | HEE40: 0 | HEF40: 0 | HEG40: 0 | HEH40: 0 | HEI40: 0 | HEJ40: 0 | HEK40: 0 | HEL40: 0 | HEM40: 0 | HEN40: 0 | HEO40: 0 | HEP40: 0 | HEQ40: 0 | HER40: 0 | HES40: 0 | HET40: 0 | HEU40: 0 | HEV40: 0 | HEW40: 0 | HEX40: 0 | HEY40: 0 | HEZ40: 0 | HFA40: 0 | HFB40: 0 | HFC40: 0 | HFD40: 0 | HFE40: 0 | HFF40: 0 | HFG40: 0 | HFH40: 0 | HFI40: =HFI20 -> 0 | HFJ40: 0 | HFK40: 0 | HFL40: 0 | HFM40: 0 | HFN40: 0 | HFO40: 0 | HFP40: 0 | HFQ40: 0 | HFR40: 0 | HFS40: 0 | HFT40: 0 | HFU40: 0 | HFV40: 0 | HFW40: 0 | HFX40: 0 | HFY40: 0 | HFZ40: 0 | HGA40: 0 | HGB40: 0 | HGC40: 0 | HGD40: 0 | HGE40: 0 | HGF40: 0 | HGG40: 0 | HGH40: 0 | HGI40: 0 | HGJ40: 0 | HGK40: 0 | HGL40: 0 | HGM40: 0 | HGN40: 0 | HGO40: 0 | HGP40: 0 | HGQ40: 0 | HGR40: 0 | HGS40: 0 | HGT40: 0 | HGU40: 0 | HGV40: 0 | HGW40: 0 | HGX40: 0 | HGY40: 0 | HGZ40: 0 | HHA40: 0 | HHB40: 0 | HHC40: 0 | HHD40: 0 | HHE40: 0 | HHF40: 0 | HHG40: 0 | HHH40: 0 | HHI40: 0 | HHJ40: 0 | HHK40: 0 | HHL40: 0 | HHM40: 0 | HHN40: 0 | HHO40: 0 | HHP40: 0 | HHQ40: 0 | HHR40: 0 | HHS40: 0 | HHT40: 0 | HHU40: =HHU20 -> 0 | HHV40: 0 | HHW40: 0 | HHX40: 0 | HHY40: 0 | HHZ40: 0 | HIA40: 0 | HIB40: 0 | HIC40: 0 | HID40: 0 | HIE40: 0 | HIF40: 0 | HIG40: 0 | HIH40: 0 | HII40: 0 | HIJ40: 0 | HIK40: 0 | HIL40: 0 | HIM40: 0 | HIN40: 0 | HIO40: 0 | HIP40: 0 | HIQ40: 0 | HIR40: 0 | HIS40: 0 | HIT40: 0 | HIU40: 0 | HIV40: 0 | HIW40: 0 | HIX40: 0 | HIY40: 0 | HIZ40: 0 | HJA40: 0 | HJB40: 0 | HJC40: 0 | HJD40: 0 | HJE40: 0 | HJF40: 0 | HJG40: 0 | HJH40: 0 | HJI40: 0 | HJJ40: 0 | HJK40: 0 | HJL40: 0 | HJM40: 0 | HJN40: 0 | HJO40: 0 | HJP40: 0 | HJQ40: 0 | HJR40: 0 | HJS40: 0 | HJT40: 0 | HJU40: 0 | HJV40: 0 | HJW40: 0 | HJX40: 0 | HJY40: 0 | HJZ40: 0 | HKA40: 0 | HKB40: 0 | HKC40: 0 | HKD40: 0 | HKE40: 0 | HKF40: 0 | HKG40: =HKG20 -> 0 | HKH40: 0 | HKI40: 0 | HKJ40: 0 | HKK40: 0 | HKL40: 0 | HKM40: 0 | HKN40: 0 | HKO40: 0 | HKP40: 0 | HKQ40: 0 | HKR40: 0 | HKS40: 0 | HKT40: 0 | HKU40: 0 | HKV40: 0 | HKW40: 0 | HKX40: 0 | HKY40: 0 | HKZ40: 0 | HLA40: 0 | HLB40: 0 | HLC40: 0 | HLD40: 0 | HLE40: 0 | HLF40: 0 | HLG40: 0 | HLH40: 0 | HLI40: 0 | HLJ40: 0 | HLK40: 0 | HLL40: 0 | HLM40: 0 | HLN40: 0 | HLO40: 0 | HLP40: 0 | HLQ40: 0 | HLR40: 0 | HLS40: 0 | HLT40: 0 | HLU40: 0 | HLV40: 0 | HLW40: 0 | HLX40: 0 | HLY40: 0 | HLZ40: 0 | HMA40: 0 | HMB40: 0 | HMC40: 0 | HMD40: 0 | HME40: 0 | HMF40: 0 | HMG40: 0 | HMH40: 0 | HMI40: 0 | HMJ40: 0 | HMK40: 0 | HML40: 0 | HMM40: 0 | HMN40: 0 | HMO40: 0 | HMP40: 0 | HMQ40: 0 | HMR40: 0 | HMS40: =HMS20 -> 0 | HMT40: 0 | HMU40: 0 | HMV40: 0 | HMW40: 0 | HMX40: 0 | HMY40: 0 | HMZ40: 0 | HNA40: 0 | HNB40: 0 | HNC40: 0 | HND40: 0 | HNE40: 0 | HNF40: 0 | HNG40: 0 | HNH40: 0 | HNI40: 0 | HNJ40: 0 | HNK40: 0 | HNL40: 0 | HNM40: 0 | HNN40: 0 | HNO40: 0 | HNP40: 0 | HNQ40: 0 | HNR40: 0 | HNS40: 0 | HNT40: 0 | HNU40: 0 | HNV40: 0 | HNW40: 0 | HNX40: 0 | HNY40: 0 | HNZ40: 0 | HOA40: 0 | HOB40: 0 | HOC40: 0 | HOD40: 0 | HOE40: 0 | HOF40: 0 | HOG40: 0 | HOH40: 0 | HOI40: 0 | HOJ40: 0 | HOK40: 0 | HOL40: 0 | HOM40: 0 | HON40: 0 | HOO40: 0 | HOP40: 0 | HOQ40: 0 | HOR40: 0 | HOS40: 0 | HOT40: 0 | HOU40: 0 | HOV40: 0 | HOW40: 0 | HOX40: 0 | HOY40: 0 | HOZ40: 0 | HPA40: 0 | HPB40: 0 | HPC40: 0 | HPD40: 0 | HPE40: =HPE20 -> 0 | HPF40: 0 | HPG40: 0 | HPH40: 0 | HPI40: 0 | HPJ40: 0 | HPK40: 0 | HPL40: 0 | HPM40: 0 | HPN40: 0 | HPO40: 0 | HPP40: 0 | HPQ40: 0 | HPR40: 0 | HPS40: 0 | HPT40: 0 | HPU40: 0 | HPV40: 0 | HPW40: 0 | HPX40: 0 | HPY40: 0 | HPZ40: 0 | HQA40: 0 | HQB40: 0 | HQC40: 0 | HQD40: 0 | HQE40: 0 | HQF40: 0 | HQG40: 0 | HQH40: 0 | HQI40: 0 | HQJ40: 0 | HQK40: 0 | HQL40: 0 | HQM40: 0 | HQN40: 0 | HQO40: 0 | HQP40: 0 | HQQ40: 0 | HQR40: 0 | HQS40: 0 | HQT40: 0 | HQU40: 0 | HQV40: 0 | HQW40: 0 | HQX40: 0 | HQY40: 0 | HQZ40: 0 | HRA40: 0 | HRB40: 0 | HRC40: 0 | HRD40: 0 | HRE40: 0 | HRF40: 0 | HRG40: 0 | HRH40: 0 | HRI40: 0 | HRJ40: 0 | HRK40: 0 | HRL40: 0 | HRM40: 0 | HRN40: 0 | HRO40: 0 | HRP40: 0 | HRQ40: =HRQ20 -> 0 | HRR40: 0 | HRS40: 0 | HRT40: 0 | HRU40: 0 | HRV40: 0 | HRW40: 0 | HRX40: 0 | HRY40: 0 | HRZ40: 0 | HSA40: 0 | HSB40: 0 | HSC40: 0 | HSD40: 0 | HSE40: 0 | HSF40: 0 | HSG40: 0 | HSH40: 0 | HSI40: 0 | HSJ40: 0 | HSK40: 0 | HSL40: 0 | HSM40: 0 | HSN40: 0 | HSO40: 0 | HSP40: 0 | HSQ40: 0 | HSR40: 0 | HSS40: 0 | HST40: 0 | HSU40: 0 | HSV40: 0 | HSW40: 0 | HSX40: 0 | HSY40: 0 | HSZ40: 0 | HTA40: 0 | HTB40: 0 | HTC40: 0 | HTD40: 0 | HTE40: 0 | HTF40: 0 | HTG40: 0 | HTH40: 0 | HTI40: 0 | HTJ40: 0 | HTK40: 0 | HTL40: 0 | HTM40: 0 | HTN40: 0 | HTO40: 0 | HTP40: 0 | HTQ40: 0 | HTR40: 0 | HTS40: 0 | HTT40: 0 | HTU40: 0 | HTV40: 0 | HTW40: 0 | HTX40: 0 | HTY40: 0 | HTZ40: 0 | HUA40: 0 | HUB40: 0 | HUC40: =HUC20 -> 0 | HUD40: 0 | HUE40: 0 | HUF40: 0 | HUG40: 0 | HUH40: 0 | HUI40: 0 | HUJ40: 0 | HUK40: 0 | HUL40: 0 | HUM40: 0 | HUN40: 0 | HUO40: 0 | HUP40: 0 | HUQ40: 0 | HUR40: 0 | HUS40: 0 | HUT40: 0 | HUU40: 0 | HUV40: 0 | HUW40: 0 | HUX40: 0 | HUY40: 0 | HUZ40: 0 | HVA40: 0 | HVB40: 0 | HVC40: 0 | HVD40: 0 | HVE40: 0 | HVF40: 0 | HVG40: 0 | HVH40: 0 | HVI40: 0 | HVJ40: 0 | HVK40: 0 | HVL40: 0 | HVM40: 0 | HVN40: 0 | HVO40: 0 | HVP40: 0 | HVQ40: 0 | HVR40: 0 | HVS40: 0 | HVT40: 0 | HVU40: 0 | HVV40: 0 | HVW40: 0 | HVX40: 0 | HVY40: 0 | HVZ40: 0 | HWA40: 0 | HWB40: 0 | HWC40: 0 | HWD40: 0 | HWE40: 0 | HWF40: 0 | HWG40: 0 | HWH40: 0 | HWI40: 0 | HWJ40: 0 | HWK40: 0 | HWL40: 0 | HWM40: 0 | HWN40: 0 | HWO40: =HWO20 -> 0 | HWP40: 0 | HWQ40: 0 | HWR40: 0 | HWS40: 0 | HWT40: 0 | HWU40: 0 | HWV40: 0 | HWW40: 0 | HWX40: 0 | HWY40: 0 | HWZ40: 0 | HXA40: 0 | HXB40: 0 | HXC40: 0 | HXD40: 0 | HXE40: 0 | HXF40: 0 | HXG40: 0 | HXH40: 0 | HXI40: 0 | HXJ40: 0 | HXK40: 0 | HXL40: 0 | HXM40: 0 | HXN40: 0 | HXO40: 0 | HXP40: 0 | HXQ40: 0 | HXR40: 0 | HXS40: 0 | HXT40: 0 | HXU40: 0 | HXV40: 0 | HXW40: 0 | HXX40: 0 | HXY40: 0 | HXZ40: 0 | HYA40: 0 | HYB40: 0 | HYC40: 0 | HYD40: 0 | HYE40: 0 | HYF40: 0 | HYG40: 0 | HYH40: 0 | HYI40: 0 | HYJ40: 0 | HYK40: 0 | HYL40: 0 | HYM40: 0 | HYN40: 0 | HYO40: 0 | HYP40: 0 | HYQ40: 0 | HYR40: 0 | HYS40: 0 | HYT40: 0 | HYU40: 0 | HYV40: 0 | HYW40: 0 | HYX40: 0 | HYY40: 0 | HYZ40: 0 | HZA40: =HZA20 -> 0 | HZB40: 0 | HZC40: 0 | HZD40: 0 | HZE40: 0 | HZF40: 0 | HZG40: 0 | HZH40: 0 | HZI40: 0 | HZJ40: 0 | HZK40: 0 | HZL40: 0 | HZM40: 0 | HZN40: 0 | HZO40: 0 | HZP40: 0 | HZQ40: 0 | HZR40: 0 | HZS40: 0 | HZT40: 0 | HZU40: 0 | HZV40: 0 | HZW40: 0 | HZX40: 0 | HZY40: 0 | HZZ40: 0 | IAA40: 0 | IAB40: 0 | IAC40: 0 | IAD40: 0 | IAE40: 0 | IAF40: 0 | IAG40: 0 | IAH40: 0 | IAI40: 0 | IAJ40: 0 | IAK40: 0 | IAL40: 0 | IAM40: 0 | IAN40: 0 | IAO40: 0 | IAP40: 0 | IAQ40: 0 | IAR40: 0 | IAS40: 0 | IAT40: 0 | IAU40: 0 | IAV40: 0 | IAW40: 0 | IAX40: 0 | IAY40: 0 | IAZ40: 0 | IBA40: 0 | IBB40: 0 | IBC40: 0 | IBD40: 0 | IBE40: 0 | IBF40: 0 | IBG40: 0 | IBH40: 0 | IBI40: 0 | IBJ40: 0 | IBK40: 0 | IBL40: 0 | IBM40: =IBM20 -> 0 | IBN40: 0 | IBO40: 0 | IBP40: 0 | IBQ40: 0 | IBR40: 0 | IBS40: 0 | IBT40: 0 | IBU40: 0 | IBV40: 0 | IBW40: 0 | IBX40: 0 | IBY40: 0 | IBZ40: 0 | ICA40: 0 | ICB40: 0 | ICC40: 0 | ICD40: 0 | ICE40: 0 | ICF40: 0 | ICG40: 0 | ICH40: 0 | ICI40: 0 | ICJ40: 0 | ICK40: 0 | ICL40: 0 | ICM40: 0 | ICN40: 0 | ICO40: 0 | ICP40: 0 | ICQ40: 0 | ICR40: 0 | ICS40: 0 | ICT40: 0 | ICU40: 0 | ICV40: 0 | ICW40: 0 | ICX40: 0 | ICY40: 0 | ICZ40: 0 | IDA40: 0 | IDB40: 0 | IDC40: 0 | IDD40: 0 | IDE40: 0 | IDF40: 0 | IDG40: 0 | IDH40: 0 | IDI40: 0 | IDJ40: 0 | IDK40: 0 | IDL40: 0 | IDM40: 0 | IDN40: 0 | IDO40: 0 | IDP40: 0 | IDQ40: 0 | IDR40: 0 | IDS40: 0 | IDT40: 0 | IDU40: 0 | IDV40: 0 | IDW40: 0 | IDX40: 0 | IDY40: =IDY20 -> 0 | IDZ40: 0 | IEA40: 0 | IEB40: 0 | IEC40: 0 | IED40: 0 | IEE40: 0 | IEF40: 0 | IEG40: 0 | IEH40: 0 | IEI40: 0 | IEJ40: 0 | IEK40: 0 | IEL40: 0 | IEM40: 0 | IEN40: 0 | IEO40: 0 | IEP40: 0 | IEQ40: 0 | IER40: 0 | IES40: 0 | IET40: 0 | IEU40: 0 | IEV40: 0 | IEW40: 0 | IEX40: 0 | IEY40: 0 | IEZ40: 0 | IFA40: 0 | IFB40: 0 | IFC40: 0 | IFD40: 0 | IFE40: 0 | IFF40: 0 | IFG40: 0 | IFH40: 0 | IFI40: 0 | IFJ40: 0 | IFK40: 0 | IFL40: 0 | IFM40: 0 | IFN40: 0 | IFO40: 0 | IFP40: 0 | IFQ40: 0 | IFR40: 0 | IFS40: 0 | IFT40: 0 | IFU40: 0 | IFV40: 0 | IFW40: 0 | IFX40: 0 | IFY40: 0 | IFZ40: 0 | IGA40: 0 | IGB40: 0 | IGC40: 0 | IGD40: 0 | IGE40: 0 | IGF40: 0 | IGG40: 0 | IGH40: 0 | IGI40: 0 | IGJ40: 0 | IGK40: =IGK20 -> 0 | IGL40: 0 | IGM40: 0 | IGN40: 0 | IGO40: 0 | IGP40: 0 | IGQ40: 0 | IGR40: 0 | IGS40: 0 | IGT40: 0 | IGU40: 0 | IGV40: 0 | IGW40: 0 | IGX40: 0 | IGY40: 0 | IGZ40: 0 | IHA40: 0 | IHB40: 0 | IHC40: 0 | IHD40: 0 | IHE40: 0 | IHF40: 0 | IHG40: 0 | IHH40: 0 | IHI40: 0 | IHJ40: 0 | IHK40: 0 | IHL40: 0 | IHM40: 0 | IHN40: 0 | IHO40: 0 | IHP40: 0 | IHQ40: 0 | IHR40: 0 | IHS40: 0 | IHT40: 0 | IHU40: 0 | IHV40: 0 | IHW40: 0 | IHX40: 0 | IHY40: 0 | IHZ40: 0 | IIA40: 0 | IIB40: 0 | IIC40: 0 | IID40: 0 | IIE40: 0 | IIF40: 0 | IIG40: 0 | IIH40: 0 | III40: 0 | IIJ40: 0 | IIK40: 0 | IIL40: 0 | IIM40: 0 | IIN40: 0 | IIO40: 0 | IIP40: 0 | IIQ40: 0 | IIR40: 0 | IIS40: 0 | IIT40: 0 | IIU40: 0 | IIV40: 0 | IIW40: =IIW20 -> 0 | IIX40: 0 | IIY40: 0 | IIZ40: 0 | IJA40: 0 | IJB40: 0 | IJC40: 0 | IJD40: 0 | IJE40: 0 | IJF40: 0 | IJG40: 0 | IJH40: 0 | IJI40: 0 | IJJ40: 0 | IJK40: 0 | IJL40: 0 | IJM40: 0 | IJN40: 0 | IJO40: 0 | IJP40: 0 | IJQ40: 0 | IJR40: 0 | IJS40: 0 | IJT40: 0 | IJU40: 0 | IJV40: 0 | IJW40: 0 | IJX40: 0 | IJY40: 0 | IJZ40: 0 | IKA40: 0 | IKB40: 0 | IKC40: 0 | IKD40: 0 | IKE40: 0 | IKF40: 0 | IKG40: 0 | IKH40: 0 | IKI40: 0 | IKJ40: 0 | IKK40: 0 | IKL40: 0 | IKM40: 0 | IKN40: 0 | IKO40: 0 | IKP40: 0 | IKQ40: 0 | IKR40: 0 | IKS40: 0 | IKT40: 0 | IKU40: 0 | IKV40: 0 | IKW40: 0 | IKX40: 0 | IKY40: 0 | IKZ40: 0 | ILA40: 0 | ILB40: 0 | ILC40: 0 | ILD40: 0 | ILE40: 0 | ILF40: 0 | ILG40: 0 | ILH40: 0 | ILI40: =ILI20 -> 0 | ILJ40: 0 | ILK40: 0 | ILL40: 0 | ILM40: 0 | ILN40: 0 | ILO40: 0 | ILP40: 0 | ILQ40: 0 | ILR40: 0 | ILS40: 0 | ILT40: 0 | ILU40: 0 | ILV40: 0 | ILW40: 0 | ILX40: 0 | ILY40: 0 | ILZ40: 0 | IMA40: 0 | IMB40: 0 | IMC40: 0 | IMD40: 0 | IME40: 0 | IMF40: 0 | IMG40: 0 | IMH40: 0 | IMI40: 0 | IMJ40: 0 | IMK40: 0 | IML40: 0 | IMM40: 0 | IMN40: 0 | IMO40: 0 | IMP40: 0 | IMQ40: 0 | IMR40: 0 | IMS40: 0 | IMT40: 0 | IMU40: 0 | IMV40: 0 | IMW40: 0 | IMX40: 0 | IMY40: 0 | IMZ40: 0 | INA40: 0 | INB40: 0 | INC40: 0 | IND40: 0 | INE40: 0 | INF40: 0 | ING40: 0 | INH40: 0 | INI40: 0 | INJ40: 0 | INK40: 0 | INL40: 0 | INM40: 0 | INN40: 0 | INO40: 0 | INP40: 0 | INQ40: 0 | INR40: 0 | INS40: 0 | INT40: 0 | INU40: =INU20 -> 0 | INV40: 0 | INW40: 0 | INX40: 0 | INY40: 0 | INZ40: 0 | IOA40: 0 | IOB40: 0 | IOC40: 0 | IOD40: 0 | IOE40: 0 | IOF40: 0 | IOG40: 0 | IOH40: 0 | IOI40: 0 | IOJ40: 0 | IOK40: 0 | IOL40: 0 | IOM40: 0 | ION40: 0 | IOO40: 0 | IOP40: 0 | IOQ40: 0 | IOR40: 0 | IOS40: 0 | IOT40: 0 | IOU40: 0 | IOV40: 0 | IOW40: 0 | IOX40: 0 | IOY40: 0 | IOZ40: 0 | IPA40: 0 | IPB40: 0 | IPC40: 0 | IPD40: 0 | IPE40: 0 | IPF40: 0 | IPG40: 0 | IPH40: 0 | IPI40: 0 | IPJ40: 0 | IPK40: 0 | IPL40: 0 | IPM40: 0 | IPN40: 0 | IPO40: 0 | IPP40: 0 | IPQ40: 0 | IPR40: 0 | IPS40: 0 | IPT40: 0 | IPU40: 0 | IPV40: 0 | IPW40: 0 | IPX40: 0 | IPY40: 0 | IPZ40: 0 | IQA40: 0 | IQB40: 0 | IQC40: 0 | IQD40: 0 | IQE40: 0 | IQF40: 0 | IQG40: =IQG20 -> 0 | IQH40: 0 | IQI40: 0 | IQJ40: 0 | IQK40: 0 | IQL40: 0 | IQM40: 0 | IQN40: 0 | IQO40: 0 | IQP40: 0 | IQQ40: 0 | IQR40: 0 | IQS40: 0 | IQT40: 0 | IQU40: 0 | IQV40: 0 | IQW40: 0 | IQX40: 0 | IQY40: 0 | IQZ40: 0 | IRA40: 0 | IRB40: 0 | IRC40: 0 | IRD40: 0 | IRE40: 0 | IRF40: 0 | IRG40: 0 | IRH40: 0 | IRI40: 0 | IRJ40: 0 | IRK40: 0 | IRL40: 0 | IRM40: 0 | IRN40: 0 | IRO40: 0 | IRP40: 0 | IRQ40: 0 | IRR40: 0 | IRS40: 0 | IRT40: 0 | IRU40: 0 | IRV40: 0 | IRW40: 0 | IRX40: 0 | IRY40: 0 | IRZ40: 0 | ISA40: 0 | ISB40: 0 | ISC40: 0 | ISD40: 0 | ISE40: 0 | ISF40: 0 | ISG40: 0 | ISH40: 0 | ISI40: 0 | ISJ40: 0 | ISK40: 0 | ISL40: 0 | ISM40: 0 | ISN40: 0 | ISO40: 0 | ISP40: 0 | ISQ40: 0 | ISR40: 0 | ISS40: =ISS20 -> 0 | IST40: 0 | ISU40: 0 | ISV40: 0 | ISW40: 0 | ISX40: 0 | ISY40: 0 | ISZ40: 0 | ITA40: 0 | ITB40: 0 | ITC40: 0 | ITD40: 0 | ITE40: 0 | ITF40: 0 | ITG40: 0 | ITH40: 0 | ITI40: 0 | ITJ40: 0 | ITK40: 0 | ITL40: 0 | ITM40: 0 | ITN40: 0 | ITO40: 0 | ITP40: 0 | ITQ40: 0 | ITR40: 0 | ITS40: 0 | ITT40: 0 | ITU40: 0 | ITV40: 0 | ITW40: 0 | ITX40: 0 | ITY40: 0 | ITZ40: 0 | IUA40: 0 | IUB40: 0 | IUC40: 0 | IUD40: 0 | IUE40: 0 | IUF40: 0 | IUG40: 0 | IUH40: 0 | IUI40: 0 | IUJ40: 0 | IUK40: 0 | IUL40: 0 | IUM40: 0 | IUN40: 0 | IUO40: 0 | IUP40: 0 | IUQ40: 0 | IUR40: 0 | IUS40: 0 | IUT40: 0 | IUU40: 0 | IUV40: 0 | IUW40: 0 | IUX40: 0 | IUY40: 0 | IUZ40: 0 | IVA40: 0 | IVB40: 0 | IVC40: 0 | IVD40: 0 | IVE40: =IVE20 -> 0 | IVF40: 0 | IVG40: 0 | IVH40: 0 | IVI40: 0 | IVJ40: 0 | IVK40: 0 | IVL40: 0 | IVM40: 0 | IVN40: 0 | IVO40: 0 | IVP40: 0 | IVQ40: 0 | IVR40: 0 | IVS40: 0 | IVT40: 0 | IVU40: 0 | IVV40: 0 | IVW40: 0 | IVX40: 0 | IVY40: 0 | IVZ40: 0 | IWA40: 0 | IWB40: 0 | IWC40: 0 | IWD40: 0 | IWE40: 0 | IWF40: 0 | IWG40: 0 | IWH40: 0 | IWI40: 0 | IWJ40: 0 | IWK40: 0 | IWL40: 0 | IWM40: 0 | IWN40: 0 | IWO40: 0 | IWP40: 0 | IWQ40: 0 | IWR40: 0 | IWS40: 0 | IWT40: 0 | IWU40: 0 | IWV40: 0 | IWW40: 0 | IWX40: 0 | IWY40: 0 | IWZ40: 0 | IXA40: 0 | IXB40: 0 | IXC40: 0 | IXD40: 0 | IXE40: 0 | IXF40: 0 | IXG40: 0 | IXH40: 0 | IXI40: 0 | IXJ40: 0 | IXK40: 0 | IXL40: 0 | IXM40: 0 | IXN40: 0 | IXO40: 0 | IXP40: 0 | IXQ40: =IXQ20 -> 0 | IXR40: 0 | IXS40: 0 | IXT40: 0 | IXU40: 0 | IXV40: 0 | IXW40: 0 | IXX40: 0 | IXY40: 0 | IXZ40: 0 | IYA40: 0 | IYB40: 0 | IYC40: 0 | IYD40: 0 | IYE40: 0 | IYF40: 0 | IYG40: 0 | IYH40: 0 | IYI40: 0 | IYJ40: 0 | IYK40: 0 | IYL40: 0 | IYM40: 0 | IYN40: 0 | IYO40: 0 | IYP40: 0 | IYQ40: 0 | IYR40: 0 | IYS40: 0 | IYT40: 0 | IYU40: 0 | IYV40: 0 | IYW40: 0 | IYX40: 0 | IYY40: 0 | IYZ40: 0 | IZA40: 0 | IZB40: 0 | IZC40: 0 | IZD40: 0 | IZE40: 0 | IZF40: 0 | IZG40: 0 | IZH40: 0 | IZI40: 0 | IZJ40: 0 | IZK40: 0 | IZL40: 0 | IZM40: 0 | IZN40: 0 | IZO40: 0 | IZP40: 0 | IZQ40: 0 | IZR40: 0 | IZS40: 0 | IZT40: 0 | IZU40: 0 | IZV40: 0 | IZW40: 0 | IZX40: 0 | IZY40: 0 | IZZ40: 0 | JAA40: 0 | JAB40: 0 | JAC40: =JAC20 -> 0 | JAD40: 0 | JAE40: 0 | JAF40: 0 | JAG40: 0 | JAH40: 0 | JAI40: 0 | JAJ40: 0 | JAK40: 0 | JAL40: 0 | JAM40: 0 | JAN40: 0 | JAO40: 0 | JAP40: 0 | JAQ40: 0 | JAR40: 0 | JAS40: 0 | JAT40: 0 | JAU40: 0 | JAV40: 0 | JAW40: 0 | JAX40: 0 | JAY40: 0 | JAZ40: 0 | JBA40: 0 | JBB40: 0 | JBC40: 0 | JBD40: 0 | JBE40: 0 | JBF40: 0 | JBG40: 0 | JBH40: 0 | JBI40: 0 | JBJ40: 0 | JBK40: 0 | JBL40: 0 | JBM40: 0 | JBN40: 0 | JBO40: 0 | JBP40: 0 | JBQ40: 0 | JBR40: 0 | JBS40: 0 | JBT40: 0 | JBU40: 0 | JBV40: 0 | JBW40: 0 | JBX40: 0 | JBY40: 0 | JBZ40: 0 | JCA40: 0 | JCB40: 0 | JCC40: 0 | JCD40: 0 | JCE40: 0 | JCF40: 0 | JCG40: 0 | JCH40: 0 | JCI40: 0 | JCJ40: 0 | JCK40: 0 | JCL40: 0 | JCM40: 0 | JCN40: 0 | JCO40: =JCO20 -> 0 | JCP40: 0 | JCQ40: 0 | JCR40: 0 | JCS40: 0 | JCT40: 0 | JCU40: 0 | JCV40: 0 | JCW40: 0 | JCX40: 0 | JCY40: 0 | JCZ40: 0 | JDA40: 0 | JDB40: 0 | JDC40: 0 | JDD40: 0 | JDE40: 0 | JDF40: 0 | JDG40: 0 | JDH40: 0 | JDI40: 0 | JDJ40: 0 | JDK40: 0 | JDL40: 0 | JDM40: 0 | JDN40: 0 | JDO40: 0 | JDP40: 0 | JDQ40: 0 | JDR40: 0 | JDS40: 0 | JDT40: 0 | JDU40: 0 | JDV40: 0 | JDW40: 0 | JDX40: 0 | JDY40: 0 | JDZ40: 0 | JEA40: 0 | JEB40: 0 | JEC40: 0 | JED40: 0 | JEE40: 0 | JEF40: 0 | JEG40: 0 | JEH40: 0 | JEI40: 0 | JEJ40: 0 | JEK40: 0 | JEL40: 0 | JEM40: 0 | JEN40: 0 | JEO40: 0 | JEP40: 0 | JEQ40: 0 | JER40: 0 | JES40: 0 | JET40: 0 | JEU40: 0 | JEV40: 0 | JEW40: 0 | JEX40: 0 | JEY40: 0 | JEZ40: 0 | JFA40: =JFA20 -> 0 | JFB40: 0 | JFC40: 0 | JFD40: 0 | JFE40: 0 | JFF40: 0 | JFG40: 0 | JFH40: 0 | JFI40: 0 | JFJ40: 0 | JFK40: 0 | JFL40: 0 | JFM40: 0 | JFN40: 0 | JFO40: 0 | JFP40: 0 | JFQ40: 0 | JFR40: 0 | JFS40: 0 | JFT40: 0 | JFU40: 0 | JFV40: 0 | JFW40: 0 | JFX40: 0 | JFY40: 0 | JFZ40: 0 | JGA40: 0 | JGB40: 0 | JGC40: 0 | JGD40: 0 | JGE40: 0 | JGF40: 0 | JGG40: 0 | JGH40: 0 | JGI40: 0 | JGJ40: 0 | JGK40: 0 | JGL40: 0 | JGM40: 0 | JGN40: 0 | JGO40: 0 | JGP40: 0 | JGQ40: 0 | JGR40: 0 | JGS40: 0 | JGT40: 0 | JGU40: 0 | JGV40: 0 | JGW40: 0 | JGX40: 0 | JGY40: 0 | JGZ40: 0 | JHA40: 0 | JHB40: 0 | JHC40: 0 | JHD40: 0 | JHE40: 0 | JHF40: 0 | JHG40: 0 | JHH40: 0 | JHI40: 0 | JHJ40: 0 | JHK40: 0 | JHL40: 0 | JHM40: =JHM20 -> 0 | JHN40: 0 | JHO40: 0 | JHP40: 0 | JHQ40: 0 | JHR40: 0 | JHS40: 0 | JHT40: 0 | JHU40: 0 | JHV40: 0 | JHW40: 0 | JHX40: 0 | JHY40: 0 | JHZ40: 0 | JIA40: 0 | JIB40: 0 | JIC40: 0 | JID40: 0 | JIE40: 0 | JIF40: 0 | JIG40: 0 | JIH40: 0 | JII40: 0 | JIJ40: 0 | JIK40: 0 | JIL40: 0 | JIM40: 0 | JIN40: 0 | JIO40: 0 | JIP40: 0 | JIQ40: 0 | JIR40: 0 | JIS40: 0 | JIT40: 0 | JIU40: 0 | JIV40: 0 | JIW40: 0 | JIX40: 0 | JIY40: 0 | JIZ40: 0 | JJA40: 0 | JJB40: 0 | JJC40: 0 | JJD40: 0 | JJE40: 0 | JJF40: 0 | JJG40: 0 | JJH40: 0 | JJI40: 0 | JJJ40: 0 | JJK40: 0 | JJL40: 0 | JJM40: 0 | JJN40: 0 | JJO40: 0 | JJP40: 0 | JJQ40: 0 | JJR40: 0 | JJS40: 0 | JJT40: 0 | JJU40: 0 | JJV40: 0 | JJW40: 0 | JJX40: 0 | JJY40: =JJY20 -> 0 | JJZ40: 0 | JKA40: 0 | JKB40: 0 | JKC40: 0 | JKD40: 0 | JKE40: 0 | JKF40: 0 | JKG40: 0 | JKH40: 0 | JKI40: 0 | JKJ40: 0 | JKK40: 0 | JKL40: 0 | JKM40: 0 | JKN40: 0 | JKO40: 0 | JKP40: 0 | JKQ40: 0 | JKR40: 0 | JKS40: 0 | JKT40: 0 | JKU40: 0 | JKV40: 0 | JKW40: 0 | JKX40: 0 | JKY40: 0 | JKZ40: 0 | JLA40: 0 | JLB40: 0 | JLC40: 0 | JLD40: 0 | JLE40: 0 | JLF40: 0 | JLG40: 0 | JLH40: 0 | JLI40: 0 | JLJ40: 0 | JLK40: 0 | JLL40: 0 | JLM40: 0 | JLN40: 0 | JLO40: 0 | JLP40: 0 | JLQ40: 0 | JLR40: 0 | JLS40: 0 | JLT40: 0 | JLU40: 0 | JLV40: 0 | JLW40: 0 | JLX40: 0 | JLY40: 0 | JLZ40: 0 | JMA40: 0 | JMB40: 0 | JMC40: 0 | JMD40: 0 | JME40: 0 | JMF40: 0 | JMG40: 0 | JMH40: 0 | JMI40: 0 | JMJ40: 0 | JMK40: =JMK20 -> 0 | JML40: 0 | JMM40: 0 | JMN40: 0 | JMO40: 0 | JMP40: 0 | JMQ40: 0 | JMR40: 0 | JMS40: 0 | JMT40: 0 | JMU40: 0 | JMV40: 0 | JMW40: 0 | JMX40: 0 | JMY40: 0 | JMZ40: 0 | JNA40: 0 | JNB40: 0 | JNC40: 0 | JND40: 0 | JNE40: 0 | JNF40: 0 | JNG40: 0 | JNH40: 0 | JNI40: 0 | JNJ40: 0 | JNK40: 0 | JNL40: 0 | JNM40: 0 | JNN40: 0 | JNO40: 0 | JNP40: 0 | JNQ40: 0 | JNR40: 0 | JNS40: 0 | JNT40: 0 | JNU40: 0 | JNV40: 0 | JNW40: 0 | JNX40: 0 | JNY40: 0 | JNZ40: 0 | JOA40: 0 | JOB40: 0 | JOC40: 0 | JOD40: 0 | JOE40: 0 | JOF40: 0 | JOG40: 0 | JOH40: 0 | JOI40: 0 | JOJ40: 0 | JOK40: 0 | JOL40: 0 | JOM40: 0 | JON40: 0 | JOO40: 0 | JOP40: 0 | JOQ40: 0 | JOR40: 0 | JOS40: 0 | JOT40: 0 | JOU40: 0 | JOV40: 0 | JOW40: =JOW20 -> 0 | JOX40: 0 | JOY40: 0 | JOZ40: 0 | JPA40: 0 | JPB40: 0 | JPC40: 0 | JPD40: 0 | JPE40: 0 | JPF40: 0 | JPG40: 0 | JPH40: 0 | JPI40: 0 | JPJ40: 0 | JPK40: 0 | JPL40: 0 | JPM40: 0 | JPN40: 0 | JPO40: 0 | JPP40: 0 | JPQ40: 0 | JPR40: 0 | JPS40: 0 | JPT40: 0 | JPU40: 0 | JPV40: 0 | JPW40: 0 | JPX40: 0 | JPY40: 0 | JPZ40: 0 | JQA40: 0 | JQB40: 0 | JQC40: 0 | JQD40: 0 | JQE40: 0 | JQF40: 0 | JQG40: 0 | JQH40: 0 | JQI40: 0 | JQJ40: 0 | JQK40: 0 | JQL40: 0 | JQM40: 0 | JQN40: 0 | JQO40: 0 | JQP40: 0 | JQQ40: 0 | JQR40: 0 | JQS40: 0 | JQT40: 0 | JQU40: 0 | JQV40: 0 | JQW40: 0 | JQX40: 0 | JQY40: 0 | JQZ40: 0 | JRA40: 0 | JRB40: 0 | JRC40: 0 | JRD40: 0 | JRE40: 0 | JRF40: 0 | JRG40: 0 | JRH40: 0 | JRI40: =JRI20 -> 0 | JRJ40: 0 | JRK40: 0 | JRL40: 0 | JRM40: 0 | JRN40: 0 | JRO40: 0 | JRP40: 0 | JRQ40: 0 | JRR40: 0 | JRS40: 0 | JRT40: 0 | JRU40: 0 | JRV40: 0 | JRW40: 0 | JRX40: 0 | JRY40: 0 | JRZ40: 0 | JSA40: 0 | JSB40: 0 | JSC40: 0 | JSD40: 0 | JSE40: 0 | JSF40: 0 | JSG40: 0 | JSH40: 0 | JSI40: 0 | JSJ40: 0 | JSK40: 0 | JSL40: 0 | JSM40: 0 | JSN40: 0 | JSO40: 0 | JSP40: 0 | JSQ40: 0 | JSR40: 0 | JSS40: 0 | JST40: 0 | JSU40: 0 | JSV40: 0 | JSW40: 0 | JSX40: 0 | JSY40: 0 | JSZ40: 0 | JTA40: 0 | JTB40: 0 | JTC40: 0 | JTD40: 0 | JTE40: 0 | JTF40: 0 | JTG40: 0 | JTH40: 0 | JTI40: 0 | JTJ40: 0 | JTK40: 0 | JTL40: 0 | JTM40: 0 | JTN40: 0 | JTO40: 0 | JTP40: 0 | JTQ40: 0 | JTR40: 0 | JTS40: 0 | JTT40: 0 | JTU40: =JTU20 -> 0 | JTV40: 0 | JTW40: 0 | JTX40: 0 | JTY40: 0 | JTZ40: 0 | JUA40: 0 | JUB40: 0 | JUC40: 0 | JUD40: 0 | JUE40: 0 | JUF40: 0 | JUG40: 0 | JUH40: 0 | JUI40: 0 | JUJ40: 0 | JUK40: 0 | JUL40: 0 | JUM40: 0 | JUN40: 0 | JUO40: 0 | JUP40: 0 | JUQ40: 0 | JUR40: 0 | JUS40: 0 | JUT40: 0 | JUU40: 0 | JUV40: 0 | JUW40: 0 | JUX40: 0 | JUY40: 0 | JUZ40: 0 | JVA40: 0 | JVB40: 0 | JVC40: 0 | JVD40: 0 | JVE40: 0 | JVF40: 0 | JVG40: 0 | JVH40: 0 | JVI40: 0 | JVJ40: 0 | JVK40: 0 | JVL40: 0 | JVM40: 0 | JVN40: 0 | JVO40: 0 | JVP40: 0 | JVQ40: 0 | JVR40: 0 | JVS40: 0 | JVT40: 0 | JVU40: 0 | JVV40: 0 | JVW40: 0 | JVX40: 0 | JVY40: 0 | JVZ40: 0 | JWA40: 0 | JWB40: 0 | JWC40: 0 | JWD40: 0 | JWE40: 0 | JWF40: 0 | JWG40: =JWG20 -> 0 | JWH40: 0 | JWI40: 0 | JWJ40: 0 | JWK40: 0 | JWL40: 0 | JWM40: 0 | JWN40: 0 | JWO40: 0 | JWP40: 0 | JWQ40: 0 | JWR40: 0 | JWS40: 0 | JWT40: 0 | JWU40: 0 | JWV40: 0 | JWW40: 0 | JWX40: 0 | JWY40: 0 | JWZ40: 0 | JXA40: 0 | JXB40: 0 | JXC40: 0 | JXD40: 0 | JXE40: 0 | JXF40: 0 | JXG40: 0 | JXH40: 0 | JXI40: 0 | JXJ40: 0 | JXK40: 0 | JXL40: 0 | JXM40: 0 | JXN40: 0 | JXO40: 0 | JXP40: 0 | JXQ40: 0 | JXR40: 0 | JXS40: 0 | JXT40: 0 | JXU40: 0 | JXV40: 0 | JXW40: 0 | JXX40: 0 | JXY40: 0 | JXZ40: 0 | JYA40: 0 | JYB40: 0 | JYC40: 0 | JYD40: 0 | JYE40: 0 | JYF40: 0 | JYG40: 0 | JYH40: 0 | JYI40: 0 | JYJ40: 0 | JYK40: 0 | JYL40: 0 | JYM40: 0 | JYN40: 0 | JYO40: 0 | JYP40: 0 | JYQ40: 0 | JYR40: 0 | JYS40: =JYS20 -> 0 | JYT40: 0 | JYU40: 0 | JYV40: 0 | JYW40: 0 | JYX40: 0 | JYY40: 0 | JYZ40: 0 | JZA40: 0 | JZB40: 0 | JZC40: 0 | JZD40: 0 | JZE40: 0 | JZF40: 0 | JZG40: 0 | JZH40: 0 | JZI40: 0 | JZJ40: 0 | JZK40: 0 | JZL40: 0 | JZM40: 0 | JZN40: 0 | JZO40: 0 | JZP40: 0 | JZQ40: 0 | JZR40: 0 | JZS40: 0 | JZT40: 0 | JZU40: 0 | JZV40: 0 | JZW40: 0 | JZX40: 0 | JZY40: 0 | JZZ40: 0 | KAA40: 0 | KAB40: 0 | KAC40: 0 | KAD40: 0 | KAE40: 0 | KAF40: 0 | KAG40: 0 | KAH40: 0 | KAI40: 0 | KAJ40: 0 | KAK40: 0 | KAL40: 0 | KAM40: 0 | KAN40: 0 | KAO40: 0 | KAP40: 0 | KAQ40: 0 | KAR40: 0 | KAS40: 0 | KAT40: 0 | KAU40: 0 | KAV40: 0 | KAW40: 0 | KAX40: 0 | KAY40: 0 | KAZ40: 0 | KBA40: 0 | KBB40: 0 | KBC40: 0 | KBD40: 0 | KBE40: =KBE20 -> 0 | KBF40: 0 | KBG40: 0 | KBH40: 0 | KBI40: 0 | KBJ40: 0 | KBK40: 0 | KBL40: 0 | KBM40: 0 | KBN40: 0 | KBO40: 0 | KBP40: 0 | KBQ40: 0 | KBR40: 0 | KBS40: 0 | KBT40: 0 | KBU40: 0 | KBV40: 0 | KBW40: 0 | KBX40: 0 | KBY40: 0 | KBZ40: 0 | KCA40: 0 | KCB40: 0 | KCC40: 0 | KCD40: 0 | KCE40: 0 | KCF40: 0 | KCG40: 0 | KCH40: 0 | KCI40: 0 | KCJ40: 0 | KCK40: 0 | KCL40: 0 | KCM40: 0 | KCN40: 0 | KCO40: 0 | KCP40: 0 | KCQ40: 0 | KCR40: 0 | KCS40: 0 | KCT40: 0 | KCU40: 0 | KCV40: 0 | KCW40: 0 | KCX40: 0 | KCY40: 0 | KCZ40: 0 | KDA40: 0 | KDB40: 0 | KDC40: 0 | KDD40: 0 | KDE40: 0 | KDF40: 0 | KDG40: 0 | KDH40: 0 | KDI40: 0 | KDJ40: 0 | KDK40: 0 | KDL40: 0 | KDM40: 0 | KDN40: 0 | KDO40: 0 | KDP40: 0 | KDQ40: =KDQ20 -> 0 | KDR40: 0 | KDS40: 0 | KDT40: 0 | KDU40: 0 | KDV40: 0 | KDW40: 0 | KDX40: 0 | KDY40: 0 | KDZ40: 0 | KEA40: 0 | KEB40: 0 | KEC40: 0 | KED40: 0 | KEE40: 0 | KEF40: 0 | KEG40: 0 | KEH40: 0 | KEI40: 0 | KEJ40: 0 | KEK40: 0 | KEL40: 0 | KEM40: 0 | KEN40: 0 | KEO40: 0 | KEP40: 0 | KEQ40: 0 | KER40: 0 | KES40: 0 | KET40: 0 | KEU40: 0 | KEV40: 0 | KEW40: 0 | KEX40: 0 | KEY40: 0 | KEZ40: 0 | KFA40: 0 | KFB40: 0 | KFC40: 0 | KFD40: 0 | KFE40: 0 | KFF40: 0 | KFG40: 0 | KFH40: 0 | KFI40: 0 | KFJ40: 0 | KFK40: 0 | KFL40: 0 | KFM40: 0 | KFN40: 0 | KFO40: 0 | KFP40: 0 | KFQ40: 0 | KFR40: 0 | KFS40: 0 | KFT40: 0 | KFU40: 0 | KFV40: 0 | KFW40: 0 | KFX40: 0 | KFY40: 0 | KFZ40: 0 | KGA40: 0 | KGB40: 0 | KGC40: =KGC20 -> 0 | KGD40: 0 | KGE40: 0 | KGF40: 0 | KGG40: 0 | KGH40: 0 | KGI40: 0 | KGJ40: 0 | KGK40: 0 | KGL40: 0 | KGM40: 0 | KGN40: 0 | KGO40: 0 | KGP40: 0 | KGQ40: 0 | KGR40: 0 | KGS40: 0 | KGT40: 0 | KGU40: 0 | KGV40: 0 | KGW40: 0 | KGX40: 0 | KGY40: 0 | KGZ40: 0 | KHA40: 0 | KHB40: 0 | KHC40: 0 | KHD40: 0 | KHE40: 0 | KHF40: 0 | KHG40: 0 | KHH40: 0 | KHI40: 0 | KHJ40: 0 | KHK40: 0 | KHL40: 0 | KHM40: 0 | KHN40: 0 | KHO40: 0 | KHP40: 0 | KHQ40: 0 | KHR40: 0 | KHS40: 0 | KHT40: 0 | KHU40: 0 | KHV40: 0 | KHW40: 0 | KHX40: 0 | KHY40: 0 | KHZ40: 0 | KIA40: 0 | KIB40: 0 | KIC40: 0 | KID40: 0 | KIE40: 0 | KIF40: 0 | KIG40: 0 | KIH40: 0 | KII40: 0 | KIJ40: 0 | KIK40: 0 | KIL40: 0 | KIM40: 0 | KIN40: 0 | KIO40: =KIO20 -> 0 | KIP40: 0 | KIQ40: 0 | KIR40: 0 | KIS40: 0 | KIT40: 0 | KIU40: 0 | KIV40: 0 | KIW40: 0 | KIX40: 0 | KIY40: 0 | KIZ40: 0 | KJA40: 0 | KJB40: 0 | KJC40: 0 | KJD40: 0 | KJE40: 0 | KJF40: 0 | KJG40: 0 | KJH40: 0 | KJI40: 0 | KJJ40: 0 | KJK40: 0 | KJL40: 0 | KJM40: 0 | KJN40: 0 | KJO40: 0 | KJP40: 0 | KJQ40: 0 | KJR40: 0 | KJS40: 0 | KJT40: 0 | KJU40: 0 | KJV40: 0 | KJW40: 0 | KJX40: 0 | KJY40: 0 | KJZ40: 0 | KKA40: 0 | KKB40: 0 | KKC40: 0 | KKD40: 0 | KKE40: 0 | KKF40: 0 | KKG40: 0 | KKH40: 0 | KKI40: 0 | KKJ40: 0 | KKK40: 0 | KKL40: 0 | KKM40: 0 | KKN40: 0 | KKO40: 0 | KKP40: 0 | KKQ40: 0 | KKR40: 0 | KKS40: 0 | KKT40: 0 | KKU40: 0 | KKV40: 0 | KKW40: 0 | KKX40: 0 | KKY40: 0 | KKZ40: 0 | KLA40: =KLA20 -> 0 | KLB40: 0 | KLC40: 0 | KLD40: 0 | KLE40: 0 | KLF40: 0 | KLG40: 0 | KLH40: 0 | KLI40: 0 | KLJ40: 0 | KLK40: 0 | KLL40: 0 | KLM40: 0 | KLN40: 0 | KLO40: 0 | KLP40: 0 | KLQ40: 0 | KLR40: 0 | KLS40: 0 | KLT40: 0 | KLU40: 0 | KLV40: 0 | KLW40: 0 | KLX40: 0 | KLY40: 0 | KLZ40: 0 | KMA40: 0 | KMB40: 0 | KMC40: 0 | KMD40: 0 | KME40: 0 | KMF40: 0 | KMG40: 0 | KMH40: 0 | KMI40: 0 | KMJ40: 0 | KMK40: 0 | KML40: 0 | KMM40: 0 | KMN40: 0 | KMO40: 0 | KMP40: 0 | KMQ40: 0 | KMR40: 0 | KMS40: 0 | KMT40: 0 | KMU40: 0 | KMV40: 0 | KMW40: 0 | KMX40: 0 | KMY40: 0 | KMZ40: 0 | KNA40: 0 | KNB40: 0 | KNC40: 0 | KND40: 0 | KNE40: 0 | KNF40: 0 | KNG40: 0 | KNH40: 0 | KNI40: 0 | KNJ40: 0 | KNK40: 0 | KNL40: 0 | KNM40: =KNM20 -> 0 | KNN40: 0 | KNO40: 0 | KNP40: 0 | KNQ40: 0 | KNR40: 0 | KNS40: 0 | KNT40: 0 | KNU40: 0 | KNV40: 0 | KNW40: 0 | KNX40: 0 | KNY40: 0 | KNZ40: 0 | KOA40: 0 | KOB40: 0 | KOC40: 0 | KOD40: 0 | KOE40: 0 | KOF40: 0 | KOG40: 0 | KOH40: 0 | KOI40: 0 | KOJ40: 0 | KOK40: 0 | KOL40: 0 | KOM40: 0 | KON40: 0 | KOO40: 0 | KOP40: 0 | KOQ40: 0 | KOR40: 0 | KOS40: 0 | KOT40: 0 | KOU40: 0 | KOV40: 0 | KOW40: 0 | KOX40: 0 | KOY40: 0 | KOZ40: 0 | KPA40: 0 | KPB40: 0 | KPC40: 0 | KPD40: 0 | KPE40: 0 | KPF40: 0 | KPG40: 0 | KPH40: 0 | KPI40: 0 | KPJ40: 0 | KPK40: 0 | KPL40: 0 | KPM40: 0 | KPN40: 0 | KPO40: 0 | KPP40: 0 | KPQ40: 0 | KPR40: 0 | KPS40: 0 | KPT40: 0 | KPU40: 0 | KPV40: 0 | KPW40: 0 | KPX40: 0 | KPY40: =KPY20 -> 0 | KPZ40: 0 | KQA40: 0 | KQB40: 0 | KQC40: 0 | KQD40: 0 | KQE40: 0 | KQF40: 0 | KQG40: 0 | KQH40: 0 | KQI40: 0 | KQJ40: 0 | KQK40: 0 | KQL40: 0 | KQM40: 0 | KQN40: 0 | KQO40: 0 | KQP40: 0 | KQQ40: 0 | KQR40: 0 | KQS40: 0 | KQT40: 0 | KQU40: 0 | KQV40: 0 | KQW40: 0 | KQX40: 0 | KQY40: 0 | KQZ40: 0 | KRA40: 0 | KRB40: 0 | KRC40: 0 | KRD40: 0 | KRE40: 0 | KRF40: 0 | KRG40: 0 | KRH40: 0 | KRI40: 0 | KRJ40: 0 | KRK40: 0 | KRL40: 0 | KRM40: 0 | KRN40: 0 | KRO40: 0 | KRP40: 0 | KRQ40: 0 | KRR40: 0 | KRS40: 0 | KRT40: 0 | KRU40: 0 | KRV40: 0 | KRW40: 0 | KRX40: 0 | KRY40: 0 | KRZ40: 0 | KSA40: 0 | KSB40: 0 | KSC40: 0 | KSD40: 0 | KSE40: 0 | KSF40: 0 | KSG40: 0 | KSH40: 0 | KSI40: 0 | KSJ40: 0 | KSK40: =KSK20 -> 0 | KSL40: 0 | KSM40: 0 | KSN40: 0 | KSO40: 0 | KSP40: 0 | KSQ40: 0 | KSR40: 0 | KSS40: 0 | KST40: 0 | KSU40: 0 | KSV40: 0 | KSW40: 0 | KSX40: 0 | KSY40: 0 | KSZ40: 0 | KTA40: 0 | KTB40: 0 | KTC40: 0 | KTD40: 0 | KTE40: 0 | KTF40: 0 | KTG40: 0 | KTH40: 0 | KTI40: 0 | KTJ40: 0 | KTK40: 0 | KTL40: 0 | KTM40: 0 | KTN40: 0 | KTO40: 0 | KTP40: 0 | KTQ40: 0 | KTR40: 0 | KTS40: 0 | KTT40: 0 | KTU40: 0 | KTV40: 0 | KTW40: 0 | KTX40: 0 | KTY40: 0 | KTZ40: 0 | KUA40: 0 | KUB40: 0 | KUC40: 0 | KUD40: 0 | KUE40: 0 | KUF40: 0 | KUG40: 0 | KUH40: 0 | KUI40: 0 | KUJ40: 0 | KUK40: 0 | KUL40: 0 | KUM40: 0 | KUN40: 0 | KUO40: 0 | KUP40: 0 | KUQ40: 0 | KUR40: 0 | KUS40: 0 | KUT40: 0 | KUU40: 0 | KUV40: 0 | KUW40: =KUW20 -> 0 | KUX40: 0 | KUY40: 0 | KUZ40: 0 | KVA40: 0 | KVB40: 0 | KVC40: 0 | KVD40: 0 | KVE40: 0 | KVF40: 0 | KVG40: 0 | KVH40: 0 | KVI40: 0 | KVJ40: 0 | KVK40: 0 | KVL40: 0 | KVM40: 0 | KVN40: 0 | KVO40: 0 | KVP40: 0 | KVQ40: 0 | KVR40: 0 | KVS40: 0 | KVT40: 0 | KVU40: 0 | KVV40: 0 | KVW40: 0 | KVX40: 0 | KVY40: 0 | KVZ40: 0 | KWA40: 0 | KWB40: 0 | KWC40: 0 | KWD40: 0 | KWE40: 0 | KWF40: 0 | KWG40: 0 | KWH40: 0 | KWI40: 0 | KWJ40: 0 | KWK40: 0 | KWL40: 0 | KWM40: 0 | KWN40: 0 | KWO40: 0 | KWP40: 0 | KWQ40: 0 | KWR40: 0 | KWS40: 0 | KWT40: 0 | KWU40: 0 | KWV40: 0 | KWW40: 0 | KWX40: 0 | KWY40: 0 | KWZ40: 0 | KXA40: 0 | KXB40: 0 | KXC40: 0 | KXD40: 0 | KXE40: 0 | KXF40: 0 | KXG40: 0 | KXH40: 0 | KXI40: =KXI20 -> 0 | KXJ40: 0 | KXK40: 0 | KXL40: 0 | KXM40: 0 | KXN40: 0 | KXO40: 0 | KXP40: 0 | KXQ40: 0 | KXR40: 0 | KXS40: 0 | KXT40: 0 | KXU40: 0 | KXV40: 0 | KXW40: 0 | KXX40: 0 | KXY40: 0 | KXZ40: 0 | KYA40: 0 | KYB40: 0 | KYC40: 0 | KYD40: 0 | KYE40: 0 | KYF40: 0 | KYG40: 0 | KYH40: 0 | KYI40: 0 | KYJ40: 0 | KYK40: 0 | KYL40: 0 | KYM40: 0 | KYN40: 0 | KYO40: 0 | KYP40: 0 | KYQ40: 0 | KYR40: 0 | KYS40: 0 | KYT40: 0 | KYU40: 0 | KYV40: 0 | KYW40: 0 | KYX40: 0 | KYY40: 0 | KYZ40: 0 | KZA40: 0 | KZB40: 0 | KZC40: 0 | KZD40: 0 | KZE40: 0 | KZF40: 0 | KZG40: 0 | KZH40: 0 | KZI40: 0 | KZJ40: 0 | KZK40: 0 | KZL40: 0 | KZM40: 0 | KZN40: 0 | KZO40: 0 | KZP40: 0 | KZQ40: 0 | KZR40: 0 | KZS40: 0 | KZT40: 0 | KZU40: =KZU20 -> 0 | KZV40: 0 | KZW40: 0 | KZX40: 0 | KZY40: 0 | KZZ40: 0 | LAA40: 0 | LAB40: 0 | LAC40: 0 | LAD40: 0 | LAE40: 0 | LAF40: 0 | LAG40: 0 | LAH40: 0 | LAI40: 0 | LAJ40: 0 | LAK40: 0 | LAL40: 0 | LAM40: 0 | LAN40: 0 | LAO40: 0 | LAP40: 0 | LAQ40: 0 | LAR40: 0 | LAS40: 0 | LAT40: 0 | LAU40: 0 | LAV40: 0 | LAW40: 0 | LAX40: 0 | LAY40: 0 | LAZ40: 0 | LBA40: 0 | LBB40: 0 | LBC40: 0 | LBD40: 0 | LBE40: 0 | LBF40: 0 | LBG40: 0 | LBH40: 0 | LBI40: 0 | LBJ40: 0 | LBK40: 0 | LBL40: 0 | LBM40: 0 | LBN40: 0 | LBO40: 0 | LBP40: 0 | LBQ40: 0 | LBR40: 0 | LBS40: 0 | LBT40: 0 | LBU40: 0 | LBV40: 0 | LBW40: 0 | LBX40: 0 | LBY40: 0 | LBZ40: 0 | LCA40: 0 | LCB40: 0 | LCC40: 0 | LCD40: 0 | LCE40: 0 | LCF40: 0 | LCG40: =LCG20 -> 0 | LCH40: 0 | LCI40: 0 | LCJ40: 0 | LCK40: 0 | LCL40: 0 | LCM40: 0 | LCN40: 0 | LCO40: 0 | LCP40: 0 | LCQ40: 0 | LCR40: 0 | LCS40: 0 | LCT40: 0 | LCU40: 0 | LCV40: 0 | LCW40: 0 | LCX40: 0 | LCY40: 0 | LCZ40: 0 | LDA40: 0 | LDB40: 0 | LDC40: 0 | LDD40: 0 | LDE40: 0 | LDF40: 0 | LDG40: 0 | LDH40: 0 | LDI40: 0 | LDJ40: 0 | LDK40: 0 | LDL40: 0 | LDM40: 0 | LDN40: 0 | LDO40: 0 | LDP40: 0 | LDQ40: 0 | LDR40: 0 | LDS40: 0 | LDT40: 0 | LDU40: 0 | LDV40: 0 | LDW40: 0 | LDX40: 0 | LDY40: 0 | LDZ40: 0 | LEA40: 0 | LEB40: 0 | LEC40: 0 | LED40: 0 | LEE40: 0 | LEF40: 0 | LEG40: 0 | LEH40: 0 | LEI40: 0 | LEJ40: 0 | LEK40: 0 | LEL40: 0 | LEM40: 0 | LEN40: 0 | LEO40: 0 | LEP40: 0 | LEQ40: 0 | LER40: 0 | LES40: =LES20 -> 0 | LET40: 0 | LEU40: 0 | LEV40: 0 | LEW40: 0 | LEX40: 0 | LEY40: 0 | LEZ40: 0 | LFA40: 0 | LFB40: 0 | LFC40: 0 | LFD40: 0 | LFE40: 0 | LFF40: 0 | LFG40: 0 | LFH40: 0 | LFI40: 0 | LFJ40: 0 | LFK40: 0 | LFL40: 0 | LFM40: 0 | LFN40: 0 | LFO40: 0 | LFP40: 0 | LFQ40: 0 | LFR40: 0 | LFS40: 0 | LFT40: 0 | LFU40: 0 | LFV40: 0 | LFW40: 0 | LFX40: 0 | LFY40: 0 | LFZ40: 0 | LGA40: 0 | LGB40: 0 | LGC40: 0 | LGD40: 0 | LGE40: 0 | LGF40: 0 | LGG40: 0 | LGH40: 0 | LGI40: 0 | LGJ40: 0 | LGK40: 0 | LGL40: 0 | LGM40: 0 | LGN40: 0 | LGO40: 0 | LGP40: 0 | LGQ40: 0 | LGR40: 0 | LGS40: 0 | LGT40: 0 | LGU40: 0 | LGV40: 0 | LGW40: 0 | LGX40: 0 | LGY40: 0 | LGZ40: 0 | LHA40: 0 | LHB40: 0 | LHC40: 0 | LHD40: 0 | LHE40: =LHE20 -> 0 | LHF40: 0 | LHG40: 0 | LHH40: 0 | LHI40: 0 | LHJ40: 0 | LHK40: 0 | LHL40: 0 | LHM40: 0 | LHN40: 0 | LHO40: 0 | LHP40: 0 | LHQ40: 0 | LHR40: 0 | LHS40: 0 | LHT40: 0 | LHU40: 0 | LHV40: 0 | LHW40: 0 | LHX40: 0 | LHY40: 0 | LHZ40: 0 | LIA40: 0 | LIB40: 0 | LIC40: 0 | LID40: 0 | LIE40: 0 | LIF40: 0 | LIG40: 0 | LIH40: 0 | LII40: 0 | LIJ40: 0 | LIK40: 0 | LIL40: 0 | LIM40: 0 | LIN40: 0 | LIO40: 0 | LIP40: 0 | LIQ40: 0 | LIR40: 0 | LIS40: 0 | LIT40: 0 | LIU40: 0 | LIV40: 0 | LIW40: 0 | LIX40: 0 | LIY40: 0 | LIZ40: 0 | LJA40: 0 | LJB40: 0 | LJC40: 0 | LJD40: 0 | LJE40: 0 | LJF40: 0 | LJG40: 0 | LJH40: 0 | LJI40: 0 | LJJ40: 0 | LJK40: 0 | LJL40: 0 | LJM40: 0 | LJN40: 0 | LJO40: 0 | LJP40: 0 | LJQ40: =LJQ20 -> 0 | LJR40: 0 | LJS40: 0 | LJT40: 0 | LJU40: 0 | LJV40: 0 | LJW40: 0 | LJX40: 0 | LJY40: 0 | LJZ40: 0 | LKA40: 0 | LKB40: 0 | LKC40: 0 | LKD40: 0 | LKE40: 0 | LKF40: 0 | LKG40: 0 | LKH40: 0 | LKI40: 0 | LKJ40: 0 | LKK40: 0 | LKL40: 0 | LKM40: 0 | LKN40: 0 | LKO40: 0 | LKP40: 0 | LKQ40: 0 | LKR40: 0 | LKS40: 0 | LKT40: 0 | LKU40: 0 | LKV40: 0 | LKW40: 0 | LKX40: 0 | LKY40: 0 | LKZ40: 0 | LLA40: 0 | LLB40: 0 | LLC40: 0 | LLD40: 0 | LLE40: 0 | LLF40: 0 | LLG40: 0 | LLH40: 0 | LLI40: 0 | LLJ40: 0 | LLK40: 0 | LLL40: 0 | LLM40: 0 | LLN40: 0 | LLO40: 0 | LLP40: 0 | LLQ40: 0 | LLR40: 0 | LLS40: 0 | LLT40: 0 | LLU40: 0 | LLV40: 0 | LLW40: 0 | LLX40: 0 | LLY40: 0 | LLZ40: 0 | LMA40: 0 | LMB40: 0 | LMC40: =LMC20 -> 0 | LMD40: 0 | LME40: 0 | LMF40: 0 | LMG40: 0 | LMH40: 0 | LMI40: 0 | LMJ40: 0 | LMK40: 0 | LML40: 0 | LMM40: 0 | LMN40: 0 | LMO40: 0 | LMP40: 0 | LMQ40: 0 | LMR40: 0 | LMS40: 0 | LMT40: 0 | LMU40: 0 | LMV40: 0 | LMW40: 0 | LMX40: 0 | LMY40: 0 | LMZ40: 0 | LNA40: 0 | LNB40: 0 | LNC40: 0 | LND40: 0 | LNE40: 0 | LNF40: 0 | LNG40: 0 | LNH40: 0 | LNI40: 0 | LNJ40: 0 | LNK40: 0 | LNL40: 0 | LNM40: 0 | LNN40: 0 | LNO40: 0 | LNP40: 0 | LNQ40: 0 | LNR40: 0 | LNS40: 0 | LNT40: 0 | LNU40: 0 | LNV40: 0 | LNW40: 0 | LNX40: 0 | LNY40: 0 | LNZ40: 0 | LOA40: 0 | LOB40: 0 | LOC40: 0 | LOD40: 0 | LOE40: 0 | LOF40: 0 | LOG40: 0 | LOH40: 0 | LOI40: 0 | LOJ40: 0 | LOK40: 0 | LOL40: 0 | LOM40: 0 | LON40: 0 | LOO40: =LOO20 -> 0 | LOP40: 0 | LOQ40: 0 | LOR40: 0 | LOS40: 0 | LOT40: 0 | LOU40: 0 | LOV40: 0 | LOW40: 0 | LOX40: 0 | LOY40: 0 | LOZ40: 0 | LPA40: 0 | LPB40: 0 | LPC40: 0 | LPD40: 0 | LPE40: 0 | LPF40: 0 | LPG40: 0 | LPH40: 0 | LPI40: 0 | LPJ40: 0 | LPK40: 0 | LPL40: 0 | LPM40: 0 | LPN40: 0 | LPO40: 0 | LPP40: 0 | LPQ40: 0 | LPR40: 0 | LPS40: 0 | LPT40: 0 | LPU40: 0 | LPV40: 0 | LPW40: 0 | LPX40: 0 | LPY40: 0 | LPZ40: 0 | LQA40: 0 | LQB40: 0 | LQC40: 0 | LQD40: 0 | LQE40: 0 | LQF40: 0 | LQG40: 0 | LQH40: 0 | LQI40: 0 | LQJ40: 0 | LQK40: 0 | LQL40: 0 | LQM40: 0 | LQN40: 0 | LQO40: 0 | LQP40: 0 | LQQ40: 0 | LQR40: 0 | LQS40: 0 | LQT40: 0 | LQU40: 0 | LQV40: 0 | LQW40: 0 | LQX40: 0 | LQY40: 0 | LQZ40: 0 | LRA40: =LRA20 -> 0 | LRB40: 0 | LRC40: 0 | LRD40: 0 | LRE40: 0 | LRF40: 0 | LRG40: 0 | LRH40: 0 | LRI40: 0 | LRJ40: 0 | LRK40: 0 | LRL40: 0 | LRM40: 0 | LRN40: 0 | LRO40: 0 | LRP40: 0 | LRQ40: 0 | LRR40: 0 | LRS40: 0 | LRT40: 0 | LRU40: 0 | LRV40: 0 | LRW40: 0 | LRX40: 0 | LRY40: 0 | LRZ40: 0 | LSA40: 0 | LSB40: 0 | LSC40: 0 | LSD40: 0 | LSE40: 0 | LSF40: 0 | LSG40: 0 | LSH40: 0 | LSI40: 0 | LSJ40: 0 | LSK40: 0 | LSL40: 0 | LSM40: 0 | LSN40: 0 | LSO40: 0 | LSP40: 0 | LSQ40: 0 | LSR40: 0 | LSS40: 0 | LST40: 0 | LSU40: 0 | LSV40: 0 | LSW40: 0 | LSX40: 0 | LSY40: 0 | LSZ40: 0 | LTA40: 0 | LTB40: 0 | LTC40: 0 | LTD40: 0 | LTE40: 0 | LTF40: 0 | LTG40: 0 | LTH40: 0 | LTI40: 0 | LTJ40: 0 | LTK40: 0 | LTL40: 0 | LTM40: =LTM20 -> 0 | LTN40: 0 | LTO40: 0 | LTP40: 0 | LTQ40: 0 | LTR40: 0 | LTS40: 0 | LTT40: 0 | LTU40: 0 | LTV40: 0 | LTW40: 0 | LTX40: 0 | LTY40: 0 | LTZ40: 0 | LUA40: 0 | LUB40: 0 | LUC40: 0 | LUD40: 0 | LUE40: 0 | LUF40: 0 | LUG40: 0 | LUH40: 0 | LUI40: 0 | LUJ40: 0 | LUK40: 0 | LUL40: 0 | LUM40: 0 | LUN40: 0 | LUO40: 0 | LUP40: 0 | LUQ40: 0 | LUR40: 0 | LUS40: 0 | LUT40: 0 | LUU40: 0 | LUV40: 0 | LUW40: 0 | LUX40: 0 | LUY40: 0 | LUZ40: 0 | LVA40: 0 | LVB40: 0 | LVC40: 0 | LVD40: 0 | LVE40: 0 | LVF40: 0 | LVG40: 0 | LVH40: 0 | LVI40: 0 | LVJ40: 0 | LVK40: 0 | LVL40: 0 | LVM40: 0 | LVN40: 0 | LVO40: 0 | LVP40: 0 | LVQ40: 0 | LVR40: 0 | LVS40: 0 | LVT40: 0 | LVU40: 0 | LVV40: 0 | LVW40: 0 | LVX40: 0 | LVY40: =LVY20 -> 0 | LVZ40: 0 | LWA40: 0 | LWB40: 0 | LWC40: 0 | LWD40: 0 | LWE40: 0 | LWF40: 0 | LWG40: 0 | LWH40: 0 | LWI40: 0 | LWJ40: 0 | LWK40: 0 | LWL40: 0 | LWM40: 0 | LWN40: 0 | LWO40: 0 | LWP40: 0 | LWQ40: 0 | LWR40: 0 | LWS40: 0 | LWT40: 0 | LWU40: 0 | LWV40: 0 | LWW40: 0 | LWX40: 0 | LWY40: 0 | LWZ40: 0 | LXA40: 0 | LXB40: 0 | LXC40: 0 | LXD40: 0 | LXE40: 0 | LXF40: 0 | LXG40: 0 | LXH40: 0 | LXI40: 0 | LXJ40: 0 | LXK40: 0 | LXL40: 0 | LXM40: 0 | LXN40: 0 | LXO40: 0 | LXP40: 0 | LXQ40: 0 | LXR40: 0 | LXS40: 0 | LXT40: 0 | LXU40: 0 | LXV40: 0 | LXW40: 0 | LXX40: 0 | LXY40: 0 | LXZ40: 0 | LYA40: 0 | LYB40: 0 | LYC40: 0 | LYD40: 0 | LYE40: 0 | LYF40: 0 | LYG40: 0 | LYH40: 0 | LYI40: 0 | LYJ40: 0 | LYK40: =LYK20 -> 0 | LYL40: 0 | LYM40: 0 | LYN40: 0 | LYO40: 0 | LYP40: 0 | LYQ40: 0 | LYR40: 0 | LYS40: 0 | LYT40: 0 | LYU40: 0 | LYV40: 0 | LYW40: 0 | LYX40: 0 | LYY40: 0 | LYZ40: 0 | LZA40: 0 | LZB40: 0 | LZC40: 0 | LZD40: 0 | LZE40: 0 | LZF40: 0 | LZG40: 0 | LZH40: 0 | LZI40: 0 | LZJ40: 0 | LZK40: 0 | LZL40: 0 | LZM40: 0 | LZN40: 0 | LZO40: 0 | LZP40: 0 | LZQ40: 0 | LZR40: 0 | LZS40: 0 | LZT40: 0 | LZU40: 0 | LZV40: 0 | LZW40: 0 | LZX40: 0 | LZY40: 0 | LZZ40: 0 | MAA40: 0 | MAB40: 0 | MAC40: 0 | MAD40: 0 | MAE40: 0 | MAF40: 0 | MAG40: 0 | MAH40: 0 | MAI40: 0 | MAJ40: 0 | MAK40: 0 | MAL40: 0 | MAM40: 0 | MAN40: 0 | MAO40: 0 | MAP40: 0 | MAQ40: 0 | MAR40: 0 | MAS40: 0 | MAT40: 0 | MAU40: 0 | MAV40: 0 | MAW40: =MAW20 -> 0 | MAX40: 0 | MAY40: 0 | MAZ40: 0 | MBA40: 0 | MBB40: 0 | MBC40: 0 | MBD40: 0 | MBE40: 0 | MBF40: 0 | MBG40: 0 | MBH40: 0 | MBI40: 0 | MBJ40: 0 | MBK40: 0 | MBL40: 0 | MBM40: 0 | MBN40: 0 | MBO40: 0 | MBP40: 0 | MBQ40: 0 | MBR40: 0 | MBS40: 0 | MBT40: 0 | MBU40: 0 | MBV40: 0 | MBW40: 0 | MBX40: 0 | MBY40: 0 | MBZ40: 0 | MCA40: 0 | MCB40: 0 | MCC40: 0 | MCD40: 0 | MCE40: 0 | MCF40: 0 | MCG40: 0 | MCH40: 0 | MCI40: 0 | MCJ40: 0 | MCK40: 0 | MCL40: 0 | MCM40: 0 | MCN40: 0 | MCO40: 0 | MCP40: 0 | MCQ40: 0 | MCR40: 0 | MCS40: 0 | MCT40: 0 | MCU40: 0 | MCV40: 0 | MCW40: 0 | MCX40: 0 | MCY40: 0 | MCZ40: 0 | MDA40: 0 | MDB40: 0 | MDC40: 0 | MDD40: 0 | MDE40: 0 | MDF40: 0 | MDG40: 0 | MDH40: 0 | MDI40: =MDI20 -> 0 | MDJ40: 0 | MDK40: 0 | MDL40: 0 | MDM40: 0 | MDN40: 0 | MDO40: 0 | MDP40: 0 | MDQ40: 0 | MDR40: 0 | MDS40: 0 | MDT40: 0 | MDU40: 0 | MDV40: 0 | MDW40: 0 | MDX40: 0 | MDY40: 0 | MDZ40: 0 | MEA40: 0 | MEB40: 0 | MEC40: 0 | MED40: 0 | MEE40: 0 | MEF40: 0 | MEG40: 0 | MEH40: 0 | MEI40: 0 | MEJ40: 0 | MEK40: 0 | MEL40: 0 | MEM40: 0 | MEN40: 0 | MEO40: 0 | MEP40: 0 | MEQ40: 0 | MER40: 0 | MES40: 0 | MET40: 0 | MEU40: 0 | MEV40: 0 | MEW40: 0 | MEX40: 0 | MEY40: 0 | MEZ40: 0 | MFA40: 0 | MFB40: 0 | MFC40: 0 | MFD40: 0 | MFE40: 0 | MFF40: 0 | MFG40: 0 | MFH40: 0 | MFI40: 0 | MFJ40: 0 | MFK40: 0 | MFL40: 0 | MFM40: 0 | MFN40: 0 | MFO40: 0 | MFP40: 0 | MFQ40: 0 | MFR40: 0 | MFS40: 0 | MFT40: 0 | MFU40: =MFU20 -> 0 | MFV40: 0 | MFW40: 0 | MFX40: 0 | MFY40: 0 | MFZ40: 0 | MGA40: 0 | MGB40: 0 | MGC40: 0 | MGD40: 0 | MGE40: 0 | MGF40: 0 | MGG40: 0 | MGH40: 0 | MGI40: 0 | MGJ40: 0 | MGK40: 0 | MGL40: 0 | MGM40: 0 | MGN40: 0 | MGO40: 0 | MGP40: 0 | MGQ40: 0 | MGR40: 0 | MGS40: 0 | MGT40: 0 | MGU40: 0 | MGV40: 0 | MGW40: 0 | MGX40: 0 | MGY40: 0 | MGZ40: 0 | MHA40: 0 | MHB40: 0 | MHC40: 0 | MHD40: 0 | MHE40: 0 | MHF40: 0 | MHG40: 0 | MHH40: 0 | MHI40: 0 | MHJ40: 0 | MHK40: 0 | MHL40: 0 | MHM40: 0 | MHN40: 0 | MHO40: 0 | MHP40: 0 | MHQ40: 0 | MHR40: 0 | MHS40: 0 | MHT40: 0 | MHU40: 0 | MHV40: 0 | MHW40: 0 | MHX40: 0 | MHY40: 0 | MHZ40: 0 | MIA40: 0 | MIB40: 0 | MIC40: 0 | MID40: 0 | MIE40: 0 | MIF40: 0 | MIG40: =MIG20 -> 0 | MIH40: 0 | MII40: 0 | MIJ40: 0 | MIK40: 0 | MIL40: 0 | MIM40: 0 | MIN40: 0 | MIO40: 0 | MIP40: 0 | MIQ40: 0 | MIR40: 0 | MIS40: 0 | MIT40: 0 | MIU40: 0 | MIV40: 0 | MIW40: 0 | MIX40: 0 | MIY40: 0 | MIZ40: 0 | MJA40: 0 | MJB40: 0 | MJC40: 0 | MJD40: 0 | MJE40: 0 | MJF40: 0 | MJG40: 0 | MJH40: 0 | MJI40: 0 | MJJ40: 0 | MJK40: 0 | MJL40: 0 | MJM40: 0 | MJN40: 0 | MJO40: 0 | MJP40: 0 | MJQ40: 0 | MJR40: 0 | MJS40: 0 | MJT40: 0 | MJU40: 0 | MJV40: 0 | MJW40: 0 | MJX40: 0 | MJY40: 0 | MJZ40: 0 | MKA40: 0 | MKB40: 0 | MKC40: 0 | MKD40: 0 | MKE40: 0 | MKF40: 0 | MKG40: 0 | MKH40: 0 | MKI40: 0 | MKJ40: 0 | MKK40: 0 | MKL40: 0 | MKM40: 0 | MKN40: 0 | MKO40: 0 | MKP40: 0 | MKQ40: 0 | MKR40: 0 | MKS40: =MKS20 -> 0 | MKT40: 0 | MKU40: 0 | MKV40: 0 | MKW40: 0 | MKX40: 0 | MKY40: 0 | MKZ40: 0 | MLA40: 0 | MLB40: 0 | MLC40: 0 | MLD40: 0 | MLE40: 0 | MLF40: 0 | MLG40: 0 | MLH40: 0 | MLI40: 0 | MLJ40: 0 | MLK40: 0 | MLL40: 0 | MLM40: 0 | MLN40: 0 | MLO40: 0 | MLP40: 0 | MLQ40: 0 | MLR40: 0 | MLS40: 0 | MLT40: 0 | MLU40: 0 | MLV40: 0 | MLW40: 0 | MLX40: 0 | MLY40: 0 | MLZ40: 0 | MMA40: 0 | MMB40: 0 | MMC40: 0 | MMD40: 0 | MME40: 0 | MMF40: 0 | MMG40: 0 | MMH40: 0 | MMI40: 0 | MMJ40: 0 | MMK40: 0 | MML40: 0 | MMM40: 0 | MMN40: 0 | MMO40: 0 | MMP40: 0 | MMQ40: 0 | MMR40: 0 | MMS40: 0 | MMT40: 0 | MMU40: 0 | MMV40: 0 | MMW40: 0 | MMX40: 0 | MMY40: 0 | MMZ40: 0 | MNA40: 0 | MNB40: 0 | MNC40: 0 | MND40: 0 | MNE40: =MNE20 -> 0 | MNF40: 0 | MNG40: 0 | MNH40: 0 | MNI40: 0 | MNJ40: 0 | MNK40: 0 | MNL40: 0 | MNM40: 0 | MNN40: 0 | MNO40: 0 | MNP40: 0 | MNQ40: 0 | MNR40: 0 | MNS40: 0 | MNT40: 0 | MNU40: 0 | MNV40: 0 | MNW40: 0 | MNX40: 0 | MNY40: 0 | MNZ40: 0 | MOA40: 0 | MOB40: 0 | MOC40: 0 | MOD40: 0 | MOE40: 0 | MOF40: 0 | MOG40: 0 | MOH40: 0 | MOI40: 0 | MOJ40: 0 | MOK40: 0 | MOL40: 0 | MOM40: 0 | MON40: 0 | MOO40: 0 | MOP40: 0 | MOQ40: 0 | MOR40: 0 | MOS40: 0 | MOT40: 0 | MOU40: 0 | MOV40: 0 | MOW40: 0 | MOX40: 0 | MOY40: 0 | MOZ40: 0 | MPA40: 0 | MPB40: 0 | MPC40: 0 | MPD40: 0 | MPE40: 0 | MPF40: 0 | MPG40: 0 | MPH40: 0 | MPI40: 0 | MPJ40: 0 | MPK40: 0 | MPL40: 0 | MPM40: 0 | MPN40: 0 | MPO40: 0 | MPP40: 0 | MPQ40: =MPQ20 -> 0 | MPR40: 0 | MPS40: 0 | MPT40: 0 | MPU40: 0 | MPV40: 0 | MPW40: 0 | MPX40: 0 | MPY40: 0 | MPZ40: 0 | MQA40: 0 | MQB40: 0 | MQC40: 0 | MQD40: 0 | MQE40: 0 | MQF40: 0 | MQG40: 0 | MQH40: 0 | MQI40: 0 | MQJ40: 0 | MQK40: 0 | MQL40: 0 | MQM40: 0 | MQN40: 0 | MQO40: 0 | MQP40: 0 | MQQ40: 0 | MQR40: 0 | MQS40: 0 | MQT40: 0 | MQU40: 0 | MQV40: 0 | MQW40: 0 | MQX40: 0 | MQY40: 0 | MQZ40: 0 | MRA40: 0 | MRB40: 0 | MRC40: 0 | MRD40: 0 | MRE40: 0 | MRF40: 0 | MRG40: 0 | MRH40: 0 | MRI40: 0 | MRJ40: 0 | MRK40: 0 | MRL40: 0 | MRM40: 0 | MRN40: 0 | MRO40: 0 | MRP40: 0 | MRQ40: 0 | MRR40: 0 | MRS40: 0 | MRT40: 0 | MRU40: 0 | MRV40: 0 | MRW40: 0 | MRX40: 0 | MRY40: 0 | MRZ40: 0 | MSA40: 0 | MSB40: 0 | MSC40: =MSC20 -> 0 | MSD40: 0 | MSE40: 0 | MSF40: 0 | MSG40: 0 | MSH40: 0 | MSI40: 0 | MSJ40: 0 | MSK40: 0 | MSL40: 0 | MSM40: 0 | MSN40: 0 | MSO40: 0 | MSP40: 0 | MSQ40: 0 | MSR40: 0 | MSS40: 0 | MST40: 0 | MSU40: 0 | MSV40: 0 | MSW40: 0 | MSX40: 0 | MSY40: 0 | MSZ40: 0 | MTA40: 0 | MTB40: 0 | MTC40: 0 | MTD40: 0 | MTE40: 0 | MTF40: 0 | MTG40: 0 | MTH40: 0 | MTI40: 0 | MTJ40: 0 | MTK40: 0 | MTL40: 0 | MTM40: 0 | MTN40: 0 | MTO40: 0 | MTP40: 0 | MTQ40: 0 | MTR40: 0 | MTS40: 0 | MTT40: 0 | MTU40: 0 | MTV40: 0 | MTW40: 0 | MTX40: 0 | MTY40: 0 | MTZ40: 0 | MUA40: 0 | MUB40: 0 | MUC40: 0 | MUD40: 0 | MUE40: 0 | MUF40: 0 | MUG40: 0 | MUH40: 0 | MUI40: 0 | MUJ40: 0 | MUK40: 0 | MUL40: 0 | MUM40: 0 | MUN40: 0 | MUO40: =MUO20 -> 0 | MUP40: 0 | MUQ40: 0 | MUR40: 0 | MUS40: 0 | MUT40: 0 | MUU40: 0 | MUV40: 0 | MUW40: 0 | MUX40: 0 | MUY40: 0 | MUZ40: 0 | MVA40: 0 | MVB40: 0 | MVC40: 0 | MVD40: 0 | MVE40: 0 | MVF40: 0 | MVG40: 0 | MVH40: 0 | MVI40: 0 | MVJ40: 0 | MVK40: 0 | MVL40: 0 | MVM40: 0 | MVN40: 0 | MVO40: 0 | MVP40: 0 | MVQ40: 0 | MVR40: 0 | MVS40: 0 | MVT40: 0 | MVU40: 0 | MVV40: 0 | MVW40: 0 | MVX40: 0 | MVY40: 0 | MVZ40: 0 | MWA40: 0 | MWB40: 0 | MWC40: 0 | MWD40: 0 | MWE40: 0 | MWF40: 0 | MWG40: 0 | MWH40: 0 | MWI40: 0 | MWJ40: 0 | MWK40: 0 | MWL40: 0 | MWM40: 0 | MWN40: 0 | MWO40: 0 | MWP40: 0 | MWQ40: 0 | MWR40: 0 | MWS40: 0 | MWT40: 0 | MWU40: 0 | MWV40: 0 | MWW40: 0 | MWX40: 0 | MWY40: 0 | MWZ40: 0 | MXA40: =MXA20 -> 0 | MXB40: 0 | MXC40: 0 | MXD40: 0 | MXE40: 0 | MXF40: 0 | MXG40: 0 | MXH40: 0 | MXI40: 0 | MXJ40: 0 | MXK40: 0 | MXL40: 0 | MXM40: 0 | MXN40: 0 | MXO40: 0 | MXP40: 0 | MXQ40: 0 | MXR40: 0 | MXS40: 0 | MXT40: 0 | MXU40: 0 | MXV40: 0 | MXW40: 0 | MXX40: 0 | MXY40: 0 | MXZ40: 0 | MYA40: 0 | MYB40: 0 | MYC40: 0 | MYD40: 0 | MYE40: 0 | MYF40: 0 | MYG40: 0 | MYH40: 0 | MYI40: 0 | MYJ40: 0 | MYK40: 0 | MYL40: 0 | MYM40: 0 | MYN40: 0 | MYO40: 0 | MYP40: 0 | MYQ40: 0 | MYR40: 0 | MYS40: 0 | MYT40: 0 | MYU40: 0 | MYV40: 0 | MYW40: 0 | MYX40: 0 | MYY40: 0 | MYZ40: 0 | MZA40: 0 | MZB40: 0 | MZC40: 0 | MZD40: 0 | MZE40: 0 | MZF40: 0 | MZG40: 0 | MZH40: 0 | MZI40: 0 | MZJ40: 0 | MZK40: 0 | MZL40: 0 | MZM40: =MZM20 -> 0 | MZN40: 0 | MZO40: 0 | MZP40: 0 | MZQ40: 0 | MZR40: 0 | MZS40: 0 | MZT40: 0 | MZU40: 0 | MZV40: 0 | MZW40: 0 | MZX40: 0 | MZY40: 0 | MZZ40: 0 | NAA40: 0 | NAB40: 0 | NAC40: 0 | NAD40: 0 | NAE40: 0 | NAF40: 0 | NAG40: 0 | NAH40: 0 | NAI40: 0 | NAJ40: 0 | NAK40: 0 | NAL40: 0 | NAM40: 0 | NAN40: 0 | NAO40: 0 | NAP40: 0 | NAQ40: 0 | NAR40: 0 | NAS40: 0 | NAT40: 0 | NAU40: 0 | NAV40: 0 | NAW40: 0 | NAX40: 0 | NAY40: 0 | NAZ40: 0 | NBA40: 0 | NBB40: 0 | NBC40: 0 | NBD40: 0 | NBE40: 0 | NBF40: 0 | NBG40: 0 | NBH40: 0 | NBI40: 0 | NBJ40: 0 | NBK40: 0 | NBL40: 0 | NBM40: 0 | NBN40: 0 | NBO40: 0 | NBP40: 0 | NBQ40: 0 | NBR40: 0 | NBS40: 0 | NBT40: 0 | NBU40: 0 | NBV40: 0 | NBW40: 0 | NBX40: 0 | NBY40: =NBY20 -> 0 | NBZ40: 0 | NCA40: 0 | NCB40: 0 | NCC40: 0 | NCD40: 0 | NCE40: 0 | NCF40: 0 | NCG40: 0 | NCH40: 0 | NCI40: 0 | NCJ40: 0 | NCK40: 0 | NCL40: 0 | NCM40: 0 | NCN40: 0 | NCO40: 0 | NCP40: 0 | NCQ40: 0 | NCR40: 0 | NCS40: 0 | NCT40: 0 | NCU40: 0 | NCV40: 0 | NCW40: 0 | NCX40: 0 | NCY40: 0 | NCZ40: 0 | NDA40: 0 | NDB40: 0 | NDC40: 0 | NDD40: 0 | NDE40: 0 | NDF40: 0 | NDG40: 0 | NDH40: 0 | NDI40: 0 | NDJ40: 0 | NDK40: 0 | NDL40: 0 | NDM40: 0 | NDN40: 0 | NDO40: 0 | NDP40: 0 | NDQ40: 0 | NDR40: 0 | NDS40: 0 | NDT40: 0 | NDU40: 0 | NDV40: 0 | NDW40: 0 | NDX40: 0 | NDY40: 0 | NDZ40: 0 | NEA40: 0 | NEB40: 0 | NEC40: 0 | NED40: 0 | NEE40: 0 | NEF40: 0 | NEG40: 0 | NEH40: 0 | NEI40: 0 | NEJ40: 0 | NEK40: =NEK20 -> 0 | NEL40: 0 | NEM40: 0 | NEN40: 0 | NEO40: 0 | NEP40: 0 | NEQ40: 0 | NER40: 0 | NES40: 0 | NET40: 0 | NEU40: 0 | NEV40: 0 | NEW40: 0 | NEX40: 0 | NEY40: 0 | NEZ40: 0 | NFA40: 0 | NFB40: 0 | NFC40: 0 | NFD40: 0 | NFE40: 0 | NFF40: 0 | NFG40: 0 | NFH40: 0 | NFI40: 0 | NFJ40: 0 | NFK40: 0 | NFL40: 0 | NFM40: 0 | NFN40: 0 | NFO40: 0 | NFP40: 0 | NFQ40: 0 | NFR40: 0 | NFS40: 0 | NFT40: 0 | NFU40: 0 | NFV40: 0 | NFW40: 0 | NFX40: 0 | NFY40: 0 | NFZ40: 0 | NGA40: 0 | NGB40: 0 | NGC40: 0 | NGD40: 0 | NGE40: 0 | NGF40: 0 | NGG40: 0 | NGH40: 0 | NGI40: 0 | NGJ40: 0 | NGK40: 0 | NGL40: 0 | NGM40: 0 | NGN40: 0 | NGO40: 0 | NGP40: 0 | NGQ40: 0 | NGR40: 0 | NGS40: 0 | NGT40: 0 | NGU40: 0 | NGV40: 0 | NGW40: =NGW20 -> 0 | NGX40: 0 | NGY40: 0 | NGZ40: 0 | NHA40: 0 | NHB40: 0 | NHC40: 0 | NHD40: 0 | NHE40: 0 | NHF40: 0 | NHG40: 0 | NHH40: 0 | NHI40: 0 | NHJ40: 0 | NHK40: 0 | NHL40: 0 | NHM40: 0 | NHN40: 0 | NHO40: 0 | NHP40: 0 | NHQ40: 0 | NHR40: 0 | NHS40: 0 | NHT40: 0 | NHU40: 0 | NHV40: 0 | NHW40: 0 | NHX40: 0 | NHY40: 0 | NHZ40: 0 | NIA40: 0 | NIB40: 0 | NIC40: 0 | NID40: 0 | NIE40: 0 | NIF40: 0 | NIG40: 0 | NIH40: 0 | NII40: 0 | NIJ40: 0 | NIK40: 0 | NIL40: 0 | NIM40: 0 | NIN40: 0 | NIO40: 0 | NIP40: 0 | NIQ40: 0 | NIR40: 0 | NIS40: 0 | NIT40: 0 | NIU40: 0 | NIV40: 0 | NIW40: 0 | NIX40: 0 | NIY40: 0 | NIZ40: 0 | NJA40: 0 | NJB40: 0 | NJC40: 0 | NJD40: 0 | NJE40: 0 | NJF40: 0 | NJG40: 0 | NJH40: 0 | NJI40: =NJI20 -> 0 | NJJ40: 0 | NJK40: 0 | NJL40: 0 | NJM40: 0 | NJN40: 0 | NJO40: 0 | NJP40: 0 | NJQ40: 0 | NJR40: 0 | NJS40: 0 | NJT40: 0 | NJU40: 0 | NJV40: 0 | NJW40: 0 | NJX40: 0 | NJY40: 0 | NJZ40: 0 | NKA40: 0 | NKB40: 0 | NKC40: 0 | NKD40: 0 | NKE40: 0 | NKF40: 0 | NKG40: 0 | NKH40: 0 | NKI40: 0 | NKJ40: 0 | NKK40: 0 | NKL40: 0 | NKM40: 0 | NKN40: 0 | NKO40: 0 | NKP40: 0 | NKQ40: 0 | NKR40: 0 | NKS40: 0 | NKT40: 0 | NKU40: 0 | NKV40: 0 | NKW40: 0 | NKX40: 0 | NKY40: 0 | NKZ40: 0 | NLA40: 0 | NLB40: 0 | NLC40: 0 | NLD40: 0 | NLE40: 0 | NLF40: 0 | NLG40: 0 | NLH40: 0 | NLI40: 0 | NLJ40: 0 | NLK40: 0 | NLL40: 0 | NLM40: 0 | NLN40: 0 | NLO40: 0 | NLP40: 0 | NLQ40: 0 | NLR40: 0 | NLS40: 0 | NLT40: 0 | NLU40: =NLU20 -> 0 | NLV40: 0 | NLW40: 0 | NLX40: 0 | NLY40: 0 | NLZ40: 0 | NMA40: 0 | NMB40: 0 | NMC40: 0 | NMD40: 0 | NME40: 0 | NMF40: 0 | NMG40: 0 | NMH40: 0 | NMI40: 0 | NMJ40: 0 | NMK40: 0 | NML40: 0 | NMM40: 0 | NMN40: 0 | NMO40: 0 | NMP40: 0 | NMQ40: 0 | NMR40: 0 | NMS40: 0 | NMT40: 0 | NMU40: 0 | NMV40: 0 | NMW40: 0 | NMX40: 0 | NMY40: 0 | NMZ40: 0 | NNA40: 0 | NNB40: 0 | NNC40: 0 | NND40: 0 | NNE40: 0 | NNF40: 0 | NNG40: 0 | NNH40: 0 | NNI40: 0 | NNJ40: 0 | NNK40: 0 | NNL40: 0 | NNM40: 0 | NNN40: 0 | NNO40: 0 | NNP40: 0 | NNQ40: 0 | NNR40: 0 | NNS40: 0 | NNT40: 0 | NNU40: 0 | NNV40: 0 | NNW40: 0 | NNX40: 0 | NNY40: 0 | NNZ40: 0 | NOA40: 0 | NOB40: 0 | NOC40: 0 | NOD40: 0 | NOE40: 0 | NOF40: 0 | NOG40: =NOG20 -> 0 | NOH40: 0 | NOI40: 0 | NOJ40: 0 | NOK40: 0 | NOL40: 0 | NOM40: 0 | NON40: 0 | NOO40: 0 | NOP40: 0 | NOQ40: 0 | NOR40: 0 | NOS40: 0 | NOT40: 0 | NOU40: 0 | NOV40: 0 | NOW40: 0 | NOX40: 0 | NOY40: 0 | NOZ40: 0 | NPA40: 0 | NPB40: 0 | NPC40: 0 | NPD40: 0 | NPE40: 0 | NPF40: 0 | NPG40: 0 | NPH40: 0 | NPI40: 0 | NPJ40: 0 | NPK40: 0 | NPL40: 0 | NPM40: 0 | NPN40: 0 | NPO40: 0 | NPP40: 0 | NPQ40: 0 | NPR40: 0 | NPS40: 0 | NPT40: 0 | NPU40: 0 | NPV40: 0 | NPW40: 0 | NPX40: 0 | NPY40: 0 | NPZ40: 0 | NQA40: 0 | NQB40: 0 | NQC40: 0 | NQD40: 0 | NQE40: 0 | NQF40: 0 | NQG40: 0 | NQH40: 0 | NQI40: 0 | NQJ40: 0 | NQK40: 0 | NQL40: 0 | NQM40: 0 | NQN40: 0 | NQO40: 0 | NQP40: 0 | NQQ40: 0 | NQR40: 0 | NQS40: =NQS20 -> 0 | NQT40: 0 | NQU40: 0 | NQV40: 0 | NQW40: 0 | NQX40: 0 | NQY40: 0 | NQZ40: 0 | NRA40: 0 | NRB40: 0 | NRC40: 0 | NRD40: 0 | NRE40: 0 | NRF40: 0 | NRG40: 0 | NRH40: 0 | NRI40: 0 | NRJ40: 0 | NRK40: 0 | NRL40: 0 | NRM40: 0 | NRN40: 0 | NRO40: 0 | NRP40: 0 | NRQ40: 0 | NRR40: 0 | NRS40: 0 | NRT40: 0 | NRU40: 0 | NRV40: 0 | NRW40: 0 | NRX40: 0 | NRY40: 0 | NRZ40: 0 | NSA40: 0 | NSB40: 0 | NSC40: 0 | NSD40: 0 | NSE40: 0 | NSF40: 0 | NSG40: 0 | NSH40: 0 | NSI40: 0 | NSJ40: 0 | NSK40: 0 | NSL40: 0 | NSM40: 0 | NSN40: 0 | NSO40: 0 | NSP40: 0 | NSQ40: 0 | NSR40: 0 | NSS40: 0 | NST40: 0 | NSU40: 0 | NSV40: 0 | NSW40: 0 | NSX40: 0 | NSY40: 0 | NSZ40: 0 | NTA40: 0 | NTB40: 0 | NTC40: 0 | NTD40: 0 | NTE40: =NTE20 -> 0 | NTF40: 0 | NTG40: 0 | NTH40: 0 | NTI40: 0 | NTJ40: 0 | NTK40: 0 | NTL40: 0 | NTM40: 0 | NTN40: 0 | NTO40: 0 | NTP40: 0 | NTQ40: 0 | NTR40: 0 | NTS40: 0 | NTT40: 0 | NTU40: 0 | NTV40: 0 | NTW40: 0 | NTX40: 0 | NTY40: 0 | NTZ40: 0 | NUA40: 0 | NUB40: 0 | NUC40: 0 | NUD40: 0 | NUE40: 0 | NUF40: 0 | NUG40: 0 | NUH40: 0 | NUI40: 0 | NUJ40: 0 | NUK40: 0 | NUL40: 0 | NUM40: 0 | NUN40: 0 | NUO40: 0 | NUP40: 0 | NUQ40: 0 | NUR40: 0 | NUS40: 0 | NUT40: 0 | NUU40: 0 | NUV40: 0 | NUW40: 0 | NUX40: 0 | NUY40: 0 | NUZ40: 0 | NVA40: 0 | NVB40: 0 | NVC40: 0 | NVD40: 0 | NVE40: 0 | NVF40: 0 | NVG40: 0 | NVH40: 0 | NVI40: 0 | NVJ40: 0 | NVK40: 0 | NVL40: 0 | NVM40: 0 | NVN40: 0 | NVO40: 0 | NVP40: 0 | NVQ40: =NVQ20 -> 0 | NVR40: 0 | NVS40: 0 | NVT40: 0 | NVU40: 0 | NVV40: 0 | NVW40: 0 | NVX40: 0 | NVY40: 0 | NVZ40: 0 | NWA40: 0 | NWB40: 0 | NWC40: 0 | NWD40: 0 | NWE40: 0 | NWF40: 0 | NWG40: 0 | NWH40: 0 | NWI40: 0 | NWJ40: 0 | NWK40: 0 | NWL40: 0 | NWM40: 0 | NWN40: 0 | NWO40: 0 | NWP40: 0 | NWQ40: 0 | NWR40: 0 | NWS40: 0 | NWT40: 0 | NWU40: 0 | NWV40: 0 | NWW40: 0 | NWX40: 0 | NWY40: 0 | NWZ40: 0 | NXA40: 0 | NXB40: 0 | NXC40: 0 | NXD40: 0 | NXE40: 0 | NXF40: 0 | NXG40: 0 | NXH40: 0 | NXI40: 0 | NXJ40: 0 | NXK40: 0 | NXL40: 0 | NXM40: 0 | NXN40: 0 | NXO40: 0 | NXP40: 0 | NXQ40: 0 | NXR40: 0 | NXS40: 0 | NXT40: 0 | NXU40: 0 | NXV40: 0 | NXW40: 0 | NXX40: 0 | NXY40: 0 | NXZ40: 0 | NYA40: 0 | NYB40: 0 | NYC40: =NYC20 -> 0 | NYD40: 0 | NYE40: 0 | NYF40: 0 | NYG40: 0 | NYH40: 0 | NYI40: 0 | NYJ40: 0 | NYK40: 0 | NYL40: 0 | NYM40: 0 | NYN40: 0 | NYO40: 0 | NYP40: 0 | NYQ40: 0 | NYR40: 0 | NYS40: 0 | NYT40: 0 | NYU40: 0 | NYV40: 0 | NYW40: 0 | NYX40: 0 | NYY40: 0 | NYZ40: 0 | NZA40: 0 | NZB40: 0 | NZC40: 0 | NZD40: 0 | NZE40: 0 | NZF40: 0 | NZG40: 0 | NZH40: 0 | NZI40: 0 | NZJ40: 0 | NZK40: 0 | NZL40: 0 | NZM40: 0 | NZN40: 0 | NZO40: 0 | NZP40: 0 | NZQ40: 0 | NZR40: 0 | NZS40: 0 | NZT40: 0 | NZU40: 0 | NZV40: 0 | NZW40: 0 | NZX40: 0 | NZY40: 0 | NZZ40: 0 | OAA40: 0 | OAB40: 0 | OAC40: 0 | OAD40: 0 | OAE40: 0 | OAF40: 0 | OAG40: 0 | OAH40: 0 | OAI40: 0 | OAJ40: 0 | OAK40: 0 | OAL40: 0 | OAM40: 0 | OAN40: 0 | OAO40: =OAO20 -> 0 | OAP40: 0 | OAQ40: 0 | OAR40: 0 | OAS40: 0 | OAT40: 0 | OAU40: 0 | OAV40: 0 | OAW40: 0 | OAX40: 0 | OAY40: 0 | OAZ40: 0 | OBA40: 0 | OBB40: 0 | OBC40: 0 | OBD40: 0 | OBE40: 0 | OBF40: 0 | OBG40: 0 | OBH40: 0 | OBI40: 0 | OBJ40: 0 | OBK40: 0 | OBL40: 0 | OBM40: 0 | OBN40: 0 | OBO40: 0 | OBP40: 0 | OBQ40: 0 | OBR40: 0 | OBS40: 0 | OBT40: 0 | OBU40: 0 | OBV40: 0 | OBW40: 0 | OBX40: 0 | OBY40: 0 | OBZ40: 0 | OCA40: 0 | OCB40: 0 | OCC40: 0 | OCD40: 0 | OCE40: 0 | OCF40: 0 | OCG40: 0 | OCH40: 0 | OCI40: 0 | OCJ40: 0 | OCK40: 0 | OCL40: 0 | OCM40: 0 | OCN40: 0 | OCO40: 0 | OCP40: 0 | OCQ40: 0 | OCR40: 0 | OCS40: 0 | OCT40: 0 | OCU40: 0 | OCV40: 0 | OCW40: 0 | OCX40: 0 | OCY40: 0 | OCZ40: 0 | ODA40: =ODA20 -> 0 | ODB40: 0 | ODC40: 0 | ODD40: 0 | ODE40: 0 | ODF40: 0 | ODG40: 0 | ODH40: 0 | ODI40: 0 | ODJ40: 0 | ODK40: 0 | ODL40: 0 | ODM40: 0 | ODN40: 0 | ODO40: 0 | ODP40: 0 | ODQ40: 0 | ODR40: 0 | ODS40: 0 | ODT40: 0 | ODU40: 0 | ODV40: 0 | ODW40: 0 | ODX40: 0 | ODY40: 0 | ODZ40: 0 | OEA40: 0 | OEB40: 0 | OEC40: 0 | OED40: 0 | OEE40: 0 | OEF40: 0 | OEG40: 0 | OEH40: 0 | OEI40: 0 | OEJ40: 0 | OEK40: 0 | OEL40: 0 | OEM40: 0 | OEN40: 0 | OEO40: 0 | OEP40: 0 | OEQ40: 0 | OER40: 0 | OES40: 0 | OET40: 0 | OEU40: 0 | OEV40: 0 | OEW40: 0 | OEX40: 0 | OEY40: 0 | OEZ40: 0 | OFA40: 0 | OFB40: 0 | OFC40: 0 | OFD40: 0 | OFE40: 0 | OFF40: 0 | OFG40: 0 | OFH40: 0 | OFI40: 0 | OFJ40: 0 | OFK40: 0 | OFL40: 0 | OFM40: =OFM20 -> 0 | OFN40: 0 | OFO40: 0 | OFP40: 0 | OFQ40: 0 | OFR40: 0 | OFS40: 0 | OFT40: 0 | OFU40: 0 | OFV40: 0 | OFW40: 0 | OFX40: 0 | OFY40: 0 | OFZ40: 0 | OGA40: 0 | OGB40: 0 | OGC40: 0 | OGD40: 0 | OGE40: 0 | OGF40: 0 | OGG40: 0 | OGH40: 0 | OGI40: 0 | OGJ40: 0 | OGK40: 0 | OGL40: 0 | OGM40: 0 | OGN40: 0 | OGO40: 0 | OGP40: 0 | OGQ40: 0 | OGR40: 0 | OGS40: 0 | OGT40: 0 | OGU40: 0 | OGV40: 0 | OGW40: 0 | OGX40: 0 | OGY40: 0 | OGZ40: 0 | OHA40: 0 | OHB40: 0 | OHC40: 0 | OHD40: 0 | OHE40: 0 | OHF40: 0 | OHG40: 0 | OHH40: 0 | OHI40: 0 | OHJ40: 0 | OHK40: 0 | OHL40: 0 | OHM40: 0 | OHN40: 0 | OHO40: 0 | OHP40: 0 | OHQ40: 0 | OHR40: 0 | OHS40: 0 | OHT40: 0 | OHU40: 0 | OHV40: 0 | OHW40: 0 | OHX40: 0 | OHY40: =OHY20 -> 0 | OHZ40: 0 | OIA40: 0 | OIB40: 0 | OIC40: 0 | OID40: 0 | OIE40: 0 | OIF40: 0 | OIG40: 0 | OIH40: 0 | OII40: 0 | OIJ40: 0 | OIK40: 0 | OIL40: 0 | OIM40: 0 | OIN40: 0 | OIO40: 0 | OIP40: 0 | OIQ40: 0 | OIR40: 0 | OIS40: 0 | OIT40: 0 | OIU40: 0 | OIV40: 0 | OIW40: 0 | OIX40: 0 | OIY40: 0 | OIZ40: 0 | OJA40: 0 | OJB40: 0 | OJC40: 0 | OJD40: 0 | OJE40: 0 | OJF40: 0 | OJG40: 0 | OJH40: 0 | OJI40: 0 | OJJ40: 0 | OJK40: 0 | OJL40: 0 | OJM40: 0 | OJN40: 0 | OJO40: 0 | OJP40: 0 | OJQ40: 0 | OJR40: 0 | OJS40: 0 | OJT40: 0 | OJU40: 0 | OJV40: 0 | OJW40: 0 | OJX40: 0 | OJY40: 0 | OJZ40: 0 | OKA40: 0 | OKB40: 0 | OKC40: 0 | OKD40: 0 | OKE40: 0 | OKF40: 0 | OKG40: 0 | OKH40: 0 | OKI40: 0 | OKJ40: 0 | OKK40: =OKK20 -> 0 | OKL40: 0 | OKM40: 0 | OKN40: 0 | OKO40: 0 | OKP40: 0 | OKQ40: 0 | OKR40: 0 | OKS40: 0 | OKT40: 0 | OKU40: 0 | OKV40: 0 | OKW40: 0 | OKX40: 0 | OKY40: 0 | OKZ40: 0 | OLA40: 0 | OLB40: 0 | OLC40: 0 | OLD40: 0 | OLE40: 0 | OLF40: 0 | OLG40: 0 | OLH40: 0 | OLI40: 0 | OLJ40: 0 | OLK40: 0 | OLL40: 0 | OLM40: 0 | OLN40: 0 | OLO40: 0 | OLP40: 0 | OLQ40: 0 | OLR40: 0 | OLS40: 0 | OLT40: 0 | OLU40: 0 | OLV40: 0 | OLW40: 0 | OLX40: 0 | OLY40: 0 | OLZ40: 0 | OMA40: 0 | OMB40: 0 | OMC40: 0 | OMD40: 0 | OME40: 0 | OMF40: 0 | OMG40: 0 | OMH40: 0 | OMI40: 0 | OMJ40: 0 | OMK40: 0 | OML40: 0 | OMM40: 0 | OMN40: 0 | OMO40: 0 | OMP40: 0 | OMQ40: 0 | OMR40: 0 | OMS40: 0 | OMT40: 0 | OMU40: 0 | OMV40: 0 | OMW40: =OMW20 -> 0 | OMX40: 0 | OMY40: 0 | OMZ40: 0 | ONA40: 0 | ONB40: 0 | ONC40: 0 | OND40: 0 | ONE40: 0 | ONF40: 0 | ONG40: 0 | ONH40: 0 | ONI40: 0 | ONJ40: 0 | ONK40: 0 | ONL40: 0 | ONM40: 0 | ONN40: 0 | ONO40: 0 | ONP40: 0 | ONQ40: 0 | ONR40: 0 | ONS40: 0 | ONT40: 0 | ONU40: 0 | ONV40: 0 | ONW40: 0 | ONX40: 0 | ONY40: 0 | ONZ40: 0 | OOA40: 0 | OOB40: 0 | OOC40: 0 | OOD40: 0 | OOE40: 0 | OOF40: 0 | OOG40: 0 | OOH40: 0 | OOI40: 0 | OOJ40: 0 | OOK40: 0 | OOL40: 0 | OOM40: 0 | OON40: 0 | OOO40: 0 | OOP40: 0 | OOQ40: 0 | OOR40: 0 | OOS40: 0 | OOT40: 0 | OOU40: 0 | OOV40: 0 | OOW40: 0 | OOX40: 0 | OOY40: 0 | OOZ40: 0 | OPA40: 0 | OPB40: 0 | OPC40: 0 | OPD40: 0 | OPE40: 0 | OPF40: 0 | OPG40: 0 | OPH40: 0 | OPI40: =OPI20 -> 0 | OPJ40: 0 | OPK40: 0 | OPL40: 0 | OPM40: 0 | OPN40: 0 | OPO40: 0 | OPP40: 0 | OPQ40: 0 | OPR40: 0 | OPS40: 0 | OPT40: 0 | OPU40: 0 | OPV40: 0 | OPW40: 0 | OPX40: 0 | OPY40: 0 | OPZ40: 0 | OQA40: 0 | OQB40: 0 | OQC40: 0 | OQD40: 0 | OQE40: 0 | OQF40: 0 | OQG40: 0 | OQH40: 0 | OQI40: 0 | OQJ40: 0 | OQK40: 0 | OQL40: 0 | OQM40: 0 | OQN40: 0 | OQO40: 0 | OQP40: 0 | OQQ40: 0 | OQR40: 0 | OQS40: 0 | OQT40: 0 | OQU40: 0 | OQV40: 0 | OQW40: 0 | OQX40: 0 | OQY40: 0 | OQZ40: 0 | ORA40: 0 | ORB40: 0 | ORC40: 0 | ORD40: 0 | ORE40: 0 | ORF40: 0 | ORG40: 0 | ORH40: 0 | ORI40: 0 | ORJ40: 0 | ORK40: 0 | ORL40: 0 | ORM40: 0 | ORN40: 0 | ORO40: 0 | ORP40: 0 | ORQ40: 0 | ORR40: 0 | ORS40: 0 | ORT40: 0 | ORU40: =ORU20 -> 0 | ORV40: 0 | ORW40: 0 | ORX40: 0 | ORY40: 0 | ORZ40: 0 | OSA40: 0 | OSB40: 0 | OSC40: 0 | OSD40: 0 | OSE40: 0 | OSF40: 0 | OSG40: 0 | OSH40: 0 | OSI40: 0 | OSJ40: 0 | OSK40: 0 | OSL40: 0 | OSM40: 0 | OSN40: 0 | OSO40: 0 | OSP40: 0 | OSQ40: 0 | OSR40: 0 | OSS40: 0 | OST40: 0 | OSU40: 0 | OSV40: 0 | OSW40: 0 | OSX40: 0 | OSY40: 0 | OSZ40: 0 | OTA40: 0 | OTB40: 0 | OTC40: 0 | OTD40: 0 | OTE40: 0 | OTF40: 0 | OTG40: 0 | OTH40: 0 | OTI40: 0 | OTJ40: 0 | OTK40: 0 | OTL40: 0 | OTM40: 0 | OTN40: 0 | OTO40: 0 | OTP40: 0 | OTQ40: 0 | OTR40: 0 | OTS40: 0 | OTT40: 0 | OTU40: 0 | OTV40: 0 | OTW40: 0 | OTX40: 0 | OTY40: 0 | OTZ40: 0 | OUA40: 0 | OUB40: 0 | OUC40: 0 | OUD40: 0 | OUE40: 0 | OUF40: 0 | OUG40: =OUG20 -> 0 | OUH40: 0 | OUI40: 0 | OUJ40: 0 | OUK40: 0 | OUL40: 0 | OUM40: 0 | OUN40: 0 | OUO40: 0 | OUP40: 0 | OUQ40: 0 | OUR40: 0 | OUS40: 0 | OUT40: 0 | OUU40: 0 | OUV40: 0 | OUW40: 0 | OUX40: 0 | OUY40: 0 | OUZ40: 0 | OVA40: 0 | OVB40: 0 | OVC40: 0 | OVD40: 0 | OVE40: 0 | OVF40: 0 | OVG40: 0 | OVH40: 0 | OVI40: 0 | OVJ40: 0 | OVK40: 0 | OVL40: 0 | OVM40: 0 | OVN40: 0 | OVO40: 0 | OVP40: 0 | OVQ40: 0 | OVR40: 0 | OVS40: 0 | OVT40: 0 | OVU40: 0 | OVV40: 0 | OVW40: 0 | OVX40: 0 | OVY40: 0 | OVZ40: 0 | OWA40: 0 | OWB40: 0 | OWC40: 0 | OWD40: 0 | OWE40: 0 | OWF40: 0 | OWG40: 0 | OWH40: 0 | OWI40: 0 | OWJ40: 0 | OWK40: 0 | OWL40: 0 | OWM40: 0 | OWN40: 0 | OWO40: 0 | OWP40: 0 | OWQ40: 0 | OWR40: 0 | OWS40: =OWS20 -> 0 | OWT40: 0 | OWU40: 0 | OWV40: 0 | OWW40: 0 | OWX40: 0 | OWY40: 0 | OWZ40: 0 | OXA40: 0 | OXB40: 0 | OXC40: 0 | OXD40: 0 | OXE40: 0 | OXF40: 0 | OXG40: 0 | OXH40: 0 | OXI40: 0 | OXJ40: 0 | OXK40: 0 | OXL40: 0 | OXM40: 0 | OXN40: 0 | OXO40: 0 | OXP40: 0 | OXQ40: 0 | OXR40: 0 | OXS40: 0 | OXT40: 0 | OXU40: 0 | OXV40: 0 | OXW40: 0 | OXX40: 0 | OXY40: 0 | OXZ40: 0 | OYA40: 0 | OYB40: 0 | OYC40: 0 | OYD40: 0 | OYE40: 0 | OYF40: 0 | OYG40: 0 | OYH40: 0 | OYI40: 0 | OYJ40: 0 | OYK40: 0 | OYL40: 0 | OYM40: 0 | OYN40: 0 | OYO40: 0 | OYP40: 0 | OYQ40: 0 | OYR40: 0 | OYS40: 0 | OYT40: 0 | OYU40: 0 | OYV40: 0 | OYW40: 0 | OYX40: 0 | OYY40: 0 | OYZ40: 0 | OZA40: 0 | OZB40: 0 | OZC40: 0 | OZD40: 0 | OZE40: =OZE20 -> 0 | OZF40: 0 | OZG40: 0 | OZH40: 0 | OZI40: 0 | OZJ40: 0 | OZK40: 0 | OZL40: 0 | OZM40: 0 | OZN40: 0 | OZO40: 0 | OZP40: 0 | OZQ40: 0 | OZR40: 0 | OZS40: 0 | OZT40: 0 | OZU40: 0 | OZV40: 0 | OZW40: 0 | OZX40: 0 | OZY40: 0 | OZZ40: 0 | PAA40: 0 | PAB40: 0 | PAC40: 0 | PAD40: 0 | PAE40: 0 | PAF40: 0 | PAG40: 0 | PAH40: 0 | PAI40: 0 | PAJ40: 0 | PAK40: 0 | PAL40: 0 | PAM40: 0 | PAN40: 0 | PAO40: 0 | PAP40: 0 | PAQ40: 0 | PAR40: 0 | PAS40: 0 | PAT40: 0 | PAU40: 0 | PAV40: 0 | PAW40: 0 | PAX40: 0 | PAY40: 0 | PAZ40: 0 | PBA40: 0 | PBB40: 0 | PBC40: 0 | PBD40: 0 | PBE40: 0 | PBF40: 0 | PBG40: 0 | PBH40: 0 | PBI40: 0 | PBJ40: 0 | PBK40: 0 | PBL40: 0 | PBM40: 0 | PBN40: 0 | PBO40: 0 | PBP40: 0 | PBQ40: =PBQ20 -> 0 | PBR40: 0 | PBS40: 0 | PBT40: 0 | PBU40: 0 | PBV40: 0 | PBW40: 0 | PBX40: 0 | PBY40: 0 | PBZ40: 0 | PCA40: 0 | PCB40: 0 | PCC40: 0 | PCD40: 0 | PCE40: 0 | PCF40: 0 | PCG40: 0 | PCH40: 0 | PCI40: 0 | PCJ40: 0 | PCK40: 0 | PCL40: 0 | PCM40: 0 | PCN40: 0 | PCO40: 0 | PCP40: 0 | PCQ40: 0 | PCR40: 0 | PCS40: 0 | PCT40: 0 | PCU40: 0 | PCV40: 0 | PCW40: 0 | PCX40: 0 | PCY40: 0 | PCZ40: 0 | PDA40: 0 | PDB40: 0 | PDC40: 0 | PDD40: 0 | PDE40: 0 | PDF40: 0 | PDG40: 0 | PDH40: 0 | PDI40: 0 | PDJ40: 0 | PDK40: 0 | PDL40: 0 | PDM40: 0 | PDN40: 0 | PDO40: 0 | PDP40: 0 | PDQ40: 0 | PDR40: 0 | PDS40: 0 | PDT40: 0 | PDU40: 0 | PDV40: 0 | PDW40: 0 | PDX40: 0 | PDY40: 0 | PDZ40: 0 | PEA40: 0 | PEB40: 0 | PEC40: =PEC20 -> 0 | PED40: 0 | PEE40: 0 | PEF40: 0 | PEG40: 0 | PEH40: 0 | PEI40: 0 | PEJ40: 0 | PEK40: 0 | PEL40: 0 | PEM40: 0 | PEN40: 0 | PEO40: 0 | PEP40: 0 | PEQ40: 0 | PER40: 0 | PES40: 0 | PET40: 0 | PEU40: 0 | PEV40: 0 | PEW40: 0 | PEX40: 0 | PEY40: 0 | PEZ40: 0 | PFA40: 0 | PFB40: 0 | PFC40: 0 | PFD40: 0 | PFE40: 0 | PFF40: 0 | PFG40: 0 | PFH40: 0 | PFI40: 0 | PFJ40: 0 | PFK40: 0 | PFL40: 0 | PFM40: 0 | PFN40: 0 | PFO40: 0 | PFP40: 0 | PFQ40: 0 | PFR40: 0 | PFS40: 0 | PFT40: 0 | PFU40: 0 | PFV40: 0 | PFW40: 0 | PFX40: 0 | PFY40: 0 | PFZ40: 0 | PGA40: 0 | PGB40: 0 | PGC40: 0 | PGD40: 0 | PGE40: 0 | PGF40: 0 | PGG40: 0 | PGH40: 0 | PGI40: 0 | PGJ40: 0 | PGK40: 0 | PGL40: 0 | PGM40: 0 | PGN40: 0 | PGO40: =PGO20 -> 0 | PGP40: 0 | PGQ40: 0 | PGR40: 0 | PGS40: 0 | PGT40: 0 | PGU40: 0 | PGV40: 0 | PGW40: 0 | PGX40: 0 | PGY40: 0 | PGZ40: 0 | PHA40: 0 | PHB40: 0 | PHC40: 0 | PHD40: 0 | PHE40: 0 | PHF40: 0 | PHG40: 0 | PHH40: 0 | PHI40: 0 | PHJ40: 0 | PHK40: 0 | PHL40: 0 | PHM40: 0 | PHN40: 0 | PHO40: 0 | PHP40: 0 | PHQ40: 0 | PHR40: 0 | PHS40: 0 | PHT40: 0 | PHU40: 0 | PHV40: 0 | PHW40: 0 | PHX40: 0 | PHY40: 0 | PHZ40: 0 | PIA40: 0 | PIB40: 0 | PIC40: 0 | PID40: 0 | PIE40: 0 | PIF40: 0 | PIG40: 0 | PIH40: 0 | PII40: 0 | PIJ40: 0 | PIK40: 0 | PIL40: 0 | PIM40: 0 | PIN40: 0 | PIO40: 0 | PIP40: 0 | PIQ40: 0 | PIR40: 0 | PIS40: 0 | PIT40: 0 | PIU40: 0 | PIV40: 0 | PIW40: 0 | PIX40: 0 | PIY40: 0 | PIZ40: 0 | PJA40: =PJA20 -> 0 | PJB40: 0 | PJC40: 0 | PJD40: 0 | PJE40: 0 | PJF40: 0 | PJG40: 0 | PJH40: 0 | PJI40: 0 | PJJ40: 0 | PJK40: 0 | PJL40: 0 | PJM40: 0 | PJN40: 0 | PJO40: 0 | PJP40: 0 | PJQ40: 0 | PJR40: 0 | PJS40: 0 | PJT40: 0 | PJU40: 0 | PJV40: 0 | PJW40: 0 | PJX40: 0 | PJY40: 0 | PJZ40: 0 | PKA40: 0 | PKB40: 0 | PKC40: 0 | PKD40: 0 | PKE40: 0 | PKF40: 0 | PKG40: 0 | PKH40: 0 | PKI40: 0 | PKJ40: 0 | PKK40: 0 | PKL40: 0 | PKM40: 0 | PKN40: 0 | PKO40: 0 | PKP40: 0 | PKQ40: 0 | PKR40: 0 | PKS40: 0 | PKT40: 0 | PKU40: 0 | PKV40: 0 | PKW40: 0 | PKX40: 0 | PKY40: 0 | PKZ40: 0 | PLA40: 0 | PLB40: 0 | PLC40: 0 | PLD40: 0 | PLE40: 0 | PLF40: 0 | PLG40: 0 | PLH40: 0 | PLI40: 0 | PLJ40: 0 | PLK40: 0 | PLL40: 0 | PLM40: =PLM20 -> 0 | PLN40: 0 | PLO40: 0 | PLP40: 0 | PLQ40: 0 | PLR40: 0 | PLS40: 0 | PLT40: 0 | PLU40: 0 | PLV40: 0 | PLW40: 0 | PLX40: 0 | PLY40: 0 | PLZ40: 0 | PMA40: 0 | PMB40: 0 | PMC40: 0 | PMD40: 0 | PME40: 0 | PMF40: 0 | PMG40: 0 | PMH40: 0 | PMI40: 0 | PMJ40: 0 | PMK40: 0 | PML40: 0 | PMM40: 0 | PMN40: 0 | PMO40: 0 | PMP40: 0 | PMQ40: 0 | PMR40: 0 | PMS40: 0 | PMT40: 0 | PMU40: 0 | PMV40: 0 | PMW40: 0 | PMX40: 0 | PMY40: 0 | PMZ40: 0 | PNA40: 0 | PNB40: 0 | PNC40: 0 | PND40: 0 | PNE40: 0 | PNF40: 0 | PNG40: 0 | PNH40: 0 | PNI40: 0 | PNJ40: 0 | PNK40: 0 | PNL40: 0 | PNM40: 0 | PNN40: 0 | PNO40: 0 | PNP40: 0 | PNQ40: 0 | PNR40: 0 | PNS40: 0 | PNT40: 0 | PNU40: 0 | PNV40: 0 | PNW40: 0 | PNX40: 0 | PNY40: =PNY20 -> 0 | PNZ40: 0 | POA40: 0 | POB40: 0 | POC40: 0 | POD40: 0 | POE40: 0 | POF40: 0 | POG40: 0 | POH40: 0 | POI40: 0 | POJ40: 0 | POK40: 0 | POL40: 0 | POM40: 0 | PON40: 0 | POO40: 0 | POP40: 0 | POQ40: 0 | POR40: 0 | POS40: 0 | POT40: 0 | POU40: 0 | POV40: 0 | POW40: 0 | POX40: 0 | POY40: 0 | POZ40: 0 | PPA40: 0 | PPB40: 0 | PPC40: 0 | PPD40: 0 | PPE40: 0 | PPF40: 0 | PPG40: 0 | PPH40: 0 | PPI40: 0 | PPJ40: 0 | PPK40: 0 | PPL40: 0 | PPM40: 0 | PPN40: 0 | PPO40: 0 | PPP40: 0 | PPQ40: 0 | PPR40: 0 | PPS40: 0 | PPT40: 0 | PPU40: 0 | PPV40: 0 | PPW40: 0 | PPX40: 0 | PPY40: 0 | PPZ40: 0 | PQA40: 0 | PQB40: 0 | PQC40: 0 | PQD40: 0 | PQE40: 0 | PQF40: 0 | PQG40: 0 | PQH40: 0 | PQI40: 0 | PQJ40: 0 | PQK40: =PQK20 -> 0 | PQL40: 0 | PQM40: 0 | PQN40: 0 | PQO40: 0 | PQP40: 0 | PQQ40: 0 | PQR40: 0 | PQS40: 0 | PQT40: 0 | PQU40: 0 | PQV40: 0 | PQW40: 0 | PQX40: 0 | PQY40: 0 | PQZ40: 0 | PRA40: 0 | PRB40: 0 | PRC40: 0 | PRD40: 0 | PRE40: 0 | PRF40: 0 | PRG40: 0 | PRH40: 0 | PRI40: 0 | PRJ40: 0 | PRK40: 0 | PRL40: 0 | PRM40: 0 | PRN40: 0 | PRO40: 0 | PRP40: 0 | PRQ40: 0 | PRR40: 0 | PRS40: 0 | PRT40: 0 | PRU40: 0 | PRV40: 0 | PRW40: 0 | PRX40: 0 | PRY40: 0 | PRZ40: 0 | PSA40: 0 | PSB40: 0 | PSC40: 0 | PSD40: 0 | PSE40: 0 | PSF40: 0 | PSG40: 0 | PSH40: 0 | PSI40: 0 | PSJ40: 0 | PSK40: 0 | PSL40: 0 | PSM40: 0 | PSN40: 0 | PSO40: 0 | PSP40: 0 | PSQ40: 0 | PSR40: 0 | PSS40: 0 | PST40: 0 | PSU40: 0 | PSV40: 0 | PSW40: =PSW20 -> 0 | PSX40: 0 | PSY40: 0 | PSZ40: 0 | PTA40: 0 | PTB40: 0 | PTC40: 0 | PTD40: 0 | PTE40: 0 | PTF40: 0 | PTG40: 0 | PTH40: 0 | PTI40: 0 | PTJ40: 0 | PTK40: 0 | PTL40: 0 | PTM40: 0 | PTN40: 0 | PTO40: 0 | PTP40: 0 | PTQ40: 0 | PTR40: 0 | PTS40: 0 | PTT40: 0 | PTU40: 0 | PTV40: 0 | PTW40: 0 | PTX40: 0 | PTY40: 0 | PTZ40: 0 | PUA40: 0 | PUB40: 0 | PUC40: 0 | PUD40: 0 | PUE40: 0 | PUF40: 0 | PUG40: 0 | PUH40: 0 | PUI40: 0 | PUJ40: 0 | PUK40: 0 | PUL40: 0 | PUM40: 0 | PUN40: 0 | PUO40: 0 | PUP40: 0 | PUQ40: 0 | PUR40: 0 | PUS40: 0 | PUT40: 0 | PUU40: 0 | PUV40: 0 | PUW40: 0 | PUX40: 0 | PUY40: 0 | PUZ40: 0 | PVA40: 0 | PVB40: 0 | PVC40: 0 | PVD40: 0 | PVE40: 0 | PVF40: 0 | PVG40: 0 | PVH40: 0 | PVI40: =PVI20 -> 0 | PVJ40: 0 | PVK40: 0 | PVL40: 0 | PVM40: 0 | PVN40: 0 | PVO40: 0 | PVP40: 0 | PVQ40: 0 | PVR40: 0 | PVS40: 0 | PVT40: 0 | PVU40: 0 | PVV40: 0 | PVW40: 0 | PVX40: 0 | PVY40: 0 | PVZ40: 0 | PWA40: 0 | PWB40: 0 | PWC40: 0 | PWD40: 0 | PWE40: 0 | PWF40: 0 | PWG40: 0 | PWH40: 0 | PWI40: 0 | PWJ40: 0 | PWK40: 0 | PWL40: 0 | PWM40: 0 | PWN40: 0 | PWO40: 0 | PWP40: 0 | PWQ40: 0 | PWR40: 0 | PWS40: 0 | PWT40: 0 | PWU40: 0 | PWV40: 0 | PWW40: 0 | PWX40: 0 | PWY40: 0 | PWZ40: 0 | PXA40: 0 | PXB40: 0 | PXC40: 0 | PXD40: 0 | PXE40: 0 | PXF40: 0 | PXG40: 0 | PXH40: 0 | PXI40: 0 | PXJ40: 0 | PXK40: 0 | PXL40: 0 | PXM40: 0 | PXN40: 0 | PXO40: 0 | PXP40: 0 | PXQ40: 0 | PXR40: 0 | PXS40: 0 | PXT40: 0 | PXU40: =PXU20 -> 0 | PXV40: 0 | PXW40: 0 | PXX40: 0 | PXY40: 0 | PXZ40: 0 | PYA40: 0 | PYB40: 0 | PYC40: 0 | PYD40: 0 | PYE40: 0 | PYF40: 0 | PYG40: 0 | PYH40: 0 | PYI40: 0 | PYJ40: 0 | PYK40: 0 | PYL40: 0 | PYM40: 0 | PYN40: 0 | PYO40: 0 | PYP40: 0 | PYQ40: 0 | PYR40: 0 | PYS40: 0 | PYT40: 0 | PYU40: 0 | PYV40: 0 | PYW40: 0 | PYX40: 0 | PYY40: 0 | PYZ40: 0 | PZA40: 0 | PZB40: 0 | PZC40: 0 | PZD40: 0 | PZE40: 0 | PZF40: 0 | PZG40: 0 | PZH40: 0 | PZI40: 0 | PZJ40: 0 | PZK40: 0 | PZL40: 0 | PZM40: 0 | PZN40: 0 | PZO40: 0 | PZP40: 0 | PZQ40: 0 | PZR40: 0 | PZS40: 0 | PZT40: 0 | PZU40: 0 | PZV40: 0 | PZW40: 0 | PZX40: 0 | PZY40: 0 | PZZ40: 0 | QAA40: 0 | QAB40: 0 | QAC40: 0 | QAD40: 0 | QAE40: 0 | QAF40: 0 | QAG40: =QAG20 -> 0 | QAH40: 0 | QAI40: 0 | QAJ40: 0 | QAK40: 0 | QAL40: 0 | QAM40: 0 | QAN40: 0 | QAO40: 0 | QAP40: 0 | QAQ40: 0 | QAR40: 0 | QAS40: 0 | QAT40: 0 | QAU40: 0 | QAV40: 0 | QAW40: 0 | QAX40: 0 | QAY40: 0 | QAZ40: 0 | QBA40: 0 | QBB40: 0 | QBC40: 0 | QBD40: 0 | QBE40: 0 | QBF40: 0 | QBG40: 0 | QBH40: 0 | QBI40: 0 | QBJ40: 0 | QBK40: 0 | QBL40: 0 | QBM40: 0 | QBN40: 0 | QBO40: 0 | QBP40: 0 | QBQ40: 0 | QBR40: 0 | QBS40: 0 | QBT40: 0 | QBU40: 0 | QBV40: 0 | QBW40: 0 | QBX40: 0 | QBY40: 0 | QBZ40: 0 | QCA40: 0 | QCB40: 0 | QCC40: 0 | QCD40: 0 | QCE40: 0 | QCF40: 0 | QCG40: 0 | QCH40: 0 | QCI40: 0 | QCJ40: 0 | QCK40: 0 | QCL40: 0 | QCM40: 0 | QCN40: 0 | QCO40: 0 | QCP40: 0 | QCQ40: 0 | QCR40: 0 | QCS40: =QCS20 -> 0 | QCT40: 0 | QCU40: 0 | QCV40: 0 | QCW40: 0 | QCX40: 0 | QCY40: 0 | QCZ40: 0 | QDA40: 0 | QDB40: 0 | QDC40: 0 | QDD40: 0 | QDE40: 0 | QDF40: 0 | QDG40: 0 | QDH40: 0 | QDI40: 0 | QDJ40: 0 | QDK40: 0 | QDL40: 0 | QDM40: 0 | QDN40: 0 | QDO40: 0 | QDP40: 0 | QDQ40: 0 | QDR40: 0 | QDS40: 0 | QDT40: 0 | QDU40: 0 | QDV40: 0 | QDW40: 0 | QDX40: 0 | QDY40: 0 | QDZ40: 0 | QEA40: 0 | QEB40: 0 | QEC40: 0 | QED40: 0 | QEE40: 0 | QEF40: 0 | QEG40: 0 | QEH40: 0 | QEI40: 0 | QEJ40: 0 | QEK40: 0 | QEL40: 0 | QEM40: 0 | QEN40: 0 | QEO40: 0 | QEP40: 0 | QEQ40: 0 | QER40: 0 | QES40: 0 | QET40: 0 | QEU40: 0 | QEV40: 0 | QEW40: 0 | QEX40: 0 | QEY40: 0 | QEZ40: 0 | QFA40: 0 | QFB40: 0 | QFC40: 0 | QFD40: 0 | QFE40: =QFE20 -> 0 | QFF40: 0 | QFG40: 0 | QFH40: 0 | QFI40: 0 | QFJ40: 0 | QFK40: 0 | QFL40: 0 | QFM40: 0 | QFN40: 0 | QFO40: 0 | QFP40: 0 | QFQ40: 0 | QFR40: 0 | QFS40: 0 | QFT40: 0 | QFU40: 0 | QFV40: 0 | QFW40: 0 | QFX40: 0 | QFY40: 0 | QFZ40: 0 | QGA40: 0 | QGB40: 0 | QGC40: 0 | QGD40: 0 | QGE40: 0 | QGF40: 0 | QGG40: 0 | QGH40: 0 | QGI40: 0 | QGJ40: 0 | QGK40: 0 | QGL40: 0 | QGM40: 0 | QGN40: 0 | QGO40: 0 | QGP40: 0 | QGQ40: 0 | QGR40: 0 | QGS40: 0 | QGT40: 0 | QGU40: 0 | QGV40: 0 | QGW40: 0 | QGX40: 0 | QGY40: 0 | QGZ40: 0 | QHA40: 0 | QHB40: 0 | QHC40: 0 | QHD40: 0 | QHE40: 0 | QHF40: 0 | QHG40: 0 | QHH40: 0 | QHI40: 0 | QHJ40: 0 | QHK40: 0 | QHL40: 0 | QHM40: 0 | QHN40: 0 | QHO40: 0 | QHP40: 0 | QHQ40: =QHQ20 -> 0 | QHR40: 0 | QHS40: 0 | QHT40: 0 | QHU40: 0 | QHV40: 0 | QHW40: 0 | QHX40: 0 | QHY40: 0 | QHZ40: 0 | QIA40: 0 | QIB40: 0 | QIC40: 0 | QID40: 0 | QIE40: 0 | QIF40: 0 | QIG40: 0 | QIH40: 0 | QII40: 0 | QIJ40: 0 | QIK40: 0 | QIL40: 0 | QIM40: 0 | QIN40: 0 | QIO40: 0 | QIP40: 0 | QIQ40: 0 | QIR40: 0 | QIS40: 0 | QIT40: 0 | QIU40: 0 | QIV40: 0 | QIW40: 0 | QIX40: 0 | QIY40: 0 | QIZ40: 0 | QJA40: 0 | QJB40: 0 | QJC40: 0 | QJD40: 0 | QJE40: 0 | QJF40: 0 | QJG40: 0 | QJH40: 0 | QJI40: 0 | QJJ40: 0 | QJK40: 0 | QJL40: 0 | QJM40: 0 | QJN40: 0 | QJO40: 0 | QJP40: 0 | QJQ40: 0 | QJR40: 0 | QJS40: 0 | QJT40: 0 | QJU40: 0 | QJV40: 0 | QJW40: 0 | QJX40: 0 | QJY40: 0 | QJZ40: 0 | QKA40: 0 | QKB40: 0 | QKC40: =QKC20 -> 0 | QKD40: 0 | QKE40: 0 | QKF40: 0 | QKG40: 0 | QKH40: 0 | QKI40: 0 | QKJ40: 0 | QKK40: 0 | QKL40: 0 | QKM40: 0 | QKN40: 0 | QKO40: 0 | QKP40: 0 | QKQ40: 0 | QKR40: 0 | QKS40: 0 | QKT40: 0 | QKU40: 0 | QKV40: 0 | QKW40: 0 | QKX40: 0 | QKY40: 0 | QKZ40: 0 | QLA40: 0 | QLB40: 0 | QLC40: 0 | QLD40: 0 | QLE40: 0 | QLF40: 0 | QLG40: 0 | QLH40: 0 | QLI40: 0 | QLJ40: 0 | QLK40: 0 | QLL40: 0 | QLM40: 0 | QLN40: 0 | QLO40: 0 | QLP40: 0 | QLQ40: 0 | QLR40: 0 | QLS40: 0 | QLT40: 0 | QLU40: 0 | QLV40: 0 | QLW40: 0 | QLX40: 0 | QLY40: 0 | QLZ40: 0 | QMA40: 0 | QMB40: 0 | QMC40: 0 | QMD40: 0 | QME40: 0 | QMF40: 0 | QMG40: 0 | QMH40: 0 | QMI40: 0 | QMJ40: 0 | QMK40: 0 | QML40: 0 | QMM40: 0 | QMN40: 0 | QMO40: =QMO20 -> 0 | QMP40: 0 | QMQ40: 0 | QMR40: 0 | QMS40: 0 | QMT40: 0 | QMU40: 0 | QMV40: 0 | QMW40: 0 | QMX40: 0 | QMY40: 0 | QMZ40: 0 | QNA40: 0 | QNB40: 0 | QNC40: 0 | QND40: 0 | QNE40: 0 | QNF40: 0 | QNG40: 0 | QNH40: 0 | QNI40: 0 | QNJ40: 0 | QNK40: 0 | QNL40: 0 | QNM40: 0 | QNN40: 0 | QNO40: 0 | QNP40: 0 | QNQ40: 0 | QNR40: 0 | QNS40: 0 | QNT40: 0 | QNU40: 0 | QNV40: 0 | QNW40: 0 | QNX40: 0 | QNY40: 0 | QNZ40: 0 | QOA40: 0 | QOB40: 0 | QOC40: 0 | QOD40: 0 | QOE40: 0 | QOF40: 0 | QOG40: 0 | QOH40: 0 | QOI40: 0 | QOJ40: 0 | QOK40: 0 | QOL40: 0 | QOM40: 0 | QON40: 0 | QOO40: 0 | QOP40: 0 | QOQ40: 0 | QOR40: 0 | QOS40: 0 | QOT40: 0 | QOU40: 0 | QOV40: 0 | QOW40: 0 | QOX40: 0 | QOY40: 0 | QOZ40: 0 | QPA40: =QPA20 -> 0 | QPB40: 0 | QPC40: 0 | QPD40: 0 | QPE40: 0 | QPF40: 0 | QPG40: 0 | QPH40: 0 | QPI40: 0 | QPJ40: 0 | QPK40: 0 | QPL40: 0 | QPM40: 0 | QPN40: 0 | QPO40: 0 | QPP40: 0 | QPQ40: 0 | QPR40: 0 | QPS40: 0 | QPT40: 0 | QPU40: 0 | QPV40: 0 | QPW40: 0 | QPX40: 0 | QPY40: 0 | QPZ40: 0 | QQA40: 0 | QQB40: 0 | QQC40: 0 | QQD40: 0 | QQE40: 0 | QQF40: 0 | QQG40: 0 | QQH40: 0 | QQI40: 0 | QQJ40: 0 | QQK40: 0 | QQL40: 0 | QQM40: 0 | QQN40: 0 | QQO40: 0 | QQP40: 0 | QQQ40: 0 | QQR40: 0 | QQS40: 0 | QQT40: 0 | QQU40: 0 | QQV40: 0 | QQW40: 0 | QQX40: 0 | QQY40: 0 | QQZ40: 0 | QRA40: 0 | QRB40: 0 | QRC40: 0 | QRD40: 0 | QRE40: 0 | QRF40: 0 | QRG40: 0 | QRH40: 0 | QRI40: 0 | QRJ40: 0 | QRK40: 0 | QRL40: 0 | QRM40: =QRM20 -> 0 | QRN40: 0 | QRO40: 0 | QRP40: 0 | QRQ40: 0 | QRR40: 0 | QRS40: 0 | QRT40: 0 | QRU40: 0 | QRV40: 0 | QRW40: 0 | QRX40: 0 | QRY40: 0 | QRZ40: 0 | QSA40: 0 | QSB40: 0 | QSC40: 0 | QSD40: 0 | QSE40: 0 | QSF40: 0 | QSG40: 0 | QSH40: 0 | QSI40: 0 | QSJ40: 0 | QSK40: 0 | QSL40: 0 | QSM40: 0 | QSN40: 0 | QSO40: 0 | QSP40: 0 | QSQ40: 0 | QSR40: 0 | QSS40: 0 | QST40: 0 | QSU40: 0 | QSV40: 0 | QSW40: 0 | QSX40: 0 | QSY40: 0 | QSZ40: 0 | QTA40: 0 | QTB40: 0 | QTC40: 0 | QTD40: 0 | QTE40: 0 | QTF40: 0 | QTG40: 0 | QTH40: 0 | QTI40: 0 | QTJ40: 0 | QTK40: 0 | QTL40: 0 | QTM40: 0 | QTN40: 0 | QTO40: 0 | QTP40: 0 | QTQ40: 0 | QTR40: 0 | QTS40: 0 | QTT40: 0 | QTU40: 0 | QTV40: 0 | QTW40: 0 | QTX40: 0 | QTY40: =QTY20 -> 0 | QTZ40: 0 | QUA40: 0 | QUB40: 0 | QUC40: 0 | QUD40: 0 | QUE40: 0 | QUF40: 0 | QUG40: 0 | QUH40: 0 | QUI40: 0 | QUJ40: 0 | QUK40: 0 | QUL40: 0 | QUM40: 0 | QUN40: 0 | QUO40: 0 | QUP40: 0 | QUQ40: 0 | QUR40: 0 | QUS40: 0 | QUT40: 0 | QUU40: 0 | QUV40: 0 | QUW40: 0 | QUX40: 0 | QUY40: 0 | QUZ40: 0 | QVA40: 0 | QVB40: 0 | QVC40: 0 | QVD40: 0 | QVE40: 0 | QVF40: 0 | QVG40: 0 | QVH40: 0 | QVI40: 0 | QVJ40: 0 | QVK40: 0 | QVL40: 0 | QVM40: 0 | QVN40: 0 | QVO40: 0 | QVP40: 0 | QVQ40: 0 | QVR40: 0 | QVS40: 0 | QVT40: 0 | QVU40: 0 | QVV40: 0 | QVW40: 0 | QVX40: 0 | QVY40: 0 | QVZ40: 0 | QWA40: 0 | QWB40: 0 | QWC40: 0 | QWD40: 0 | QWE40: 0 | QWF40: 0 | QWG40: 0 | QWH40: 0 | QWI40: 0 | QWJ40: 0 | QWK40: =QWK20 -> 0 | QWL40: 0 | QWM40: 0 | QWN40: 0 | QWO40: 0 | QWP40: 0 | QWQ40: 0 | QWR40: 0 | QWS40: 0 | QWT40: 0 | QWU40: 0 | QWV40: 0 | QWW40: 0 | QWX40: 0 | QWY40: 0 | QWZ40: 0 | QXA40: 0 | QXB40: 0 | QXC40: 0 | QXD40: 0 | QXE40: 0 | QXF40: 0 | QXG40: 0 | QXH40: 0 | QXI40: 0 | QXJ40: 0 | QXK40: 0 | QXL40: 0 | QXM40: 0 | QXN40: 0 | QXO40: 0 | QXP40: 0 | QXQ40: 0 | QXR40: 0 | QXS40: 0 | QXT40: 0 | QXU40: 0 | QXV40: 0 | QXW40: 0 | QXX40: 0 | QXY40: 0 | QXZ40: 0 | QYA40: 0 | QYB40: 0 | QYC40: 0 | QYD40: 0 | QYE40: 0 | QYF40: 0 | QYG40: 0 | QYH40: 0 | QYI40: 0 | QYJ40: 0 | QYK40: 0 | QYL40: 0 | QYM40: 0 | QYN40: 0 | QYO40: 0 | QYP40: 0 | QYQ40: 0 | QYR40: 0 | QYS40: 0 | QYT40: 0 | QYU40: 0 | QYV40: 0 | QYW40: =QYW20 -> 0 | QYX40: 0 | QYY40: 0 | QYZ40: 0 | QZA40: 0 | QZB40: 0 | QZC40: 0 | QZD40: 0 | QZE40: 0 | QZF40: 0 | QZG40: 0 | QZH40: 0 | QZI40: 0 | QZJ40: 0 | QZK40: 0 | QZL40: 0 | QZM40: 0 | QZN40: 0 | QZO40: 0 | QZP40: 0 | QZQ40: 0 | QZR40: 0 | QZS40: 0 | QZT40: 0 | QZU40: 0 | QZV40: 0 | QZW40: 0 | QZX40: 0 | QZY40: 0 | QZZ40: 0 | RAA40: 0 | RAB40: 0 | RAC40: 0 | RAD40: 0 | RAE40: 0 | RAF40: 0 | RAG40: 0 | RAH40: 0 | RAI40: 0 | RAJ40: 0 | RAK40: 0 | RAL40: 0 | RAM40: 0 | RAN40: 0 | RAO40: 0 | RAP40: 0 | RAQ40: 0 | RAR40: 0 | RAS40: 0 | RAT40: 0 | RAU40: 0 | RAV40: 0 | RAW40: 0 | RAX40: 0 | RAY40: 0 | RAZ40: 0 | RBA40: 0 | RBB40: 0 | RBC40: 0 | RBD40: 0 | RBE40: 0 | RBF40: 0 | RBG40: 0 | RBH40: 0 | RBI40: =RBI20 -> 0 | RBJ40: 0 | RBK40: 0 | RBL40: 0 | RBM40: 0 | RBN40: 0 | RBO40: 0 | RBP40: 0 | RBQ40: 0 | RBR40: 0 | RBS40: 0 | RBT40: 0 | RBU40: 0 | RBV40: 0 | RBW40: 0 | RBX40: 0 | RBY40: 0 | RBZ40: 0 | RCA40: 0 | RCB40: 0 | RCC40: 0 | RCD40: 0 | RCE40: 0 | RCF40: 0 | RCG40: 0 | RCH40: 0 | RCI40: 0 | RCJ40: 0 | RCK40: 0 | RCL40: 0 | RCM40: 0 | RCN40: 0 | RCO40: 0 | RCP40: 0 | RCQ40: 0 | RCR40: 0 | RCS40: 0 | RCT40: 0 | RCU40: 0 | RCV40: 0 | RCW40: 0 | RCX40: 0 | RCY40: 0 | RCZ40: 0 | RDA40: 0 | RDB40: 0 | RDC40: 0 | RDD40: 0 | RDE40: 0 | RDF40: 0 | RDG40: 0 | RDH40: 0 | RDI40: 0 | RDJ40: 0 | RDK40: 0 | RDL40: 0 | RDM40: 0 | RDN40: 0 | RDO40: 0 | RDP40: 0 | RDQ40: 0 | RDR40: 0 | RDS40: 0 | RDT40: 0 | RDU40: =RDU20 -> 0 | RDV40: 0 | RDW40: 0 | RDX40: 0 | RDY40: 0 | RDZ40: 0 | REA40: 0 | REB40: 0 | REC40: 0 | RED40: 0 | REE40: 0 | REF40: 0 | REG40: 0 | REH40: 0 | REI40: 0 | REJ40: 0 | REK40: 0 | REL40: 0 | REM40: 0 | REN40: 0 | REO40: 0 | REP40: 0 | REQ40: 0 | RER40: 0 | RES40: 0 | RET40: 0 | REU40: 0 | REV40: 0 | REW40: 0 | REX40: 0 | REY40: 0 | REZ40: 0 | RFA40: 0 | RFB40: 0 | RFC40: 0 | RFD40: 0 | RFE40: 0 | RFF40: 0 | RFG40: 0 | RFH40: 0 | RFI40: 0 | RFJ40: 0 | RFK40: 0 | RFL40: 0 | RFM40: 0 | RFN40: 0 | RFO40: 0 | RFP40: 0 | RFQ40: 0 | RFR40: 0 | RFS40: 0 | RFT40: 0 | RFU40: 0 | RFV40: 0 | RFW40: 0 | RFX40: 0 | RFY40: 0 | RFZ40: 0 | RGA40: 0 | RGB40: 0 | RGC40: 0 | RGD40: 0 | RGE40: 0 | RGF40: 0 | RGG40: =RGG20 -> 0 | RGH40: 0 | RGI40: 0 | RGJ40: 0 | RGK40: 0 | RGL40: 0 | RGM40: 0 | RGN40: 0 | RGO40: 0 | RGP40: 0 | RGQ40: 0 | RGR40: 0 | RGS40: 0 | RGT40: 0 | RGU40: 0 | RGV40: 0 | RGW40: 0 | RGX40: 0 | RGY40: 0 | RGZ40: 0 | RHA40: 0 | RHB40: 0 | RHC40: 0 | RHD40: 0 | RHE40: 0 | RHF40: 0 | RHG40: 0 | RHH40: 0 | RHI40: 0 | RHJ40: 0 | RHK40: 0 | RHL40: 0 | RHM40: 0 | RHN40: 0 | RHO40: 0 | RHP40: 0 | RHQ40: 0 | RHR40: 0 | RHS40: 0 | RHT40: 0 | RHU40: 0 | RHV40: 0 | RHW40: 0 | RHX40: 0 | RHY40: 0 | RHZ40: 0 | RIA40: 0 | RIB40: 0 | RIC40: 0 | RID40: 0 | RIE40: 0 | RIF40: 0 | RIG40: 0 | RIH40: 0 | RII40: 0 | RIJ40: 0 | RIK40: 0 | RIL40: 0 | RIM40: 0 | RIN40: 0 | RIO40: 0 | RIP40: 0 | RIQ40: 0 | RIR40: 0 | RIS40: =RIS20 -> 0 | RIT40: 0 | RIU40: 0 | RIV40: 0 | RIW40: 0 | RIX40: 0 | RIY40: 0 | RIZ40: 0 | RJA40: 0 | RJB40: 0 | RJC40: 0 | RJD40: 0 | RJE40: 0 | RJF40: 0 | RJG40: 0 | RJH40: 0 | RJI40: 0 | RJJ40: 0 | RJK40: 0 | RJL40: 0 | RJM40: 0 | RJN40: 0 | RJO40: 0 | RJP40: 0 | RJQ40: 0 | RJR40: 0 | RJS40: 0 | RJT40: 0 | RJU40: 0 | RJV40: 0 | RJW40: 0 | RJX40: 0 | RJY40: 0 | RJZ40: 0 | RKA40: 0 | RKB40: 0 | RKC40: 0 | RKD40: 0 | RKE40: 0 | RKF40: 0 | RKG40: 0 | RKH40: 0 | RKI40: 0 | RKJ40: 0 | RKK40: 0 | RKL40: 0 | RKM40: 0 | RKN40: 0 | RKO40: 0 | RKP40: 0 | RKQ40: 0 | RKR40: 0 | RKS40: 0 | RKT40: 0 | RKU40: 0 | RKV40: 0 | RKW40: 0 | RKX40: 0 | RKY40: 0 | RKZ40: 0 | RLA40: 0 | RLB40: 0 | RLC40: 0 | RLD40: 0 | RLE40: =RLE20 -> 0 | RLF40: 0 | RLG40: 0 | RLH40: 0 | RLI40: 0 | RLJ40: 0 | RLK40: 0 | RLL40: 0 | RLM40: 0 | RLN40: 0 | RLO40: 0 | RLP40: 0 | RLQ40: 0 | RLR40: 0 | RLS40: 0 | RLT40: 0 | RLU40: 0 | RLV40: 0 | RLW40: 0 | RLX40: 0 | RLY40: 0 | RLZ40: 0 | RMA40: 0 | RMB40: 0 | RMC40: 0 | RMD40: 0 | RME40: 0 | RMF40: 0 | RMG40: 0 | RMH40: 0 | RMI40: 0 | RMJ40: 0 | RMK40: 0 | RML40: 0 | RMM40: 0 | RMN40: 0 | RMO40: 0 | RMP40: 0 | RMQ40: 0 | RMR40: 0 | RMS40: 0 | RMT40: 0 | RMU40: 0 | RMV40: 0 | RMW40: 0 | RMX40: 0 | RMY40: 0 | RMZ40: 0 | RNA40: 0 | RNB40: 0 | RNC40: 0 | RND40: 0 | RNE40: 0 | RNF40: 0 | RNG40: 0 | RNH40: 0 | RNI40: 0 | RNJ40: 0 | RNK40: 0 | RNL40: 0 | RNM40: 0 | RNN40: 0 | RNO40: 0 | RNP40: 0 | RNQ40: =RNQ20 -> 0 | RNR40: 0 | RNS40: 0 | RNT40: 0 | RNU40: 0 | RNV40: 0 | RNW40: 0 | RNX40: 0 | RNY40: 0 | RNZ40: 0 | ROA40: 0 | ROB40: 0 | ROC40: 0 | ROD40: 0 | ROE40: 0 | ROF40: 0 | ROG40: 0 | ROH40: 0 | ROI40: 0 | ROJ40: 0 | ROK40: 0 | ROL40: 0 | ROM40: 0 | RON40: 0 | ROO40: 0 | ROP40: 0 | ROQ40: 0 | ROR40: 0 | ROS40: 0 | ROT40: 0 | ROU40: 0 | ROV40: 0 | ROW40: 0 | ROX40: 0 | ROY40: 0 | ROZ40: 0 | RPA40: 0 | RPB40: 0 | RPC40: 0 | RPD40: 0 | RPE40: 0 | RPF40: 0 | RPG40: 0 | RPH40: 0 | RPI40: 0 | RPJ40: 0 | RPK40: 0 | RPL40: 0 | RPM40: 0 | RPN40: 0 | RPO40: 0 | RPP40: 0 | RPQ40: 0 | RPR40: 0 | RPS40: 0 | RPT40: 0 | RPU40: 0 | RPV40: 0 | RPW40: 0 | RPX40: 0 | RPY40: 0 | RPZ40: 0 | RQA40: 0 | RQB40: 0 | RQC40: =RQC20 -> 0 | RQD40: 0 | RQE40: 0 | RQF40: 0 | RQG40: 0 | RQH40: 0 | RQI40: 0 | RQJ40: 0 | RQK40: 0 | RQL40: 0 | RQM40: 0 | RQN40: 0 | RQO40: 0 | RQP40: 0 | RQQ40: 0 | RQR40: 0 | RQS40: 0 | RQT40: 0 | RQU40: 0 | RQV40: 0 | RQW40: 0 | RQX40: 0 | RQY40: 0 | RQZ40: 0 | RRA40: 0 | RRB40: 0 | RRC40: 0 | RRD40: 0 | RRE40: 0 | RRF40: 0 | RRG40: 0 | RRH40: 0 | RRI40: 0 | RRJ40: 0 | RRK40: 0 | RRL40: 0 | RRM40: 0 | RRN40: 0 | RRO40: 0 | RRP40: 0 | RRQ40: 0 | RRR40: 0 | RRS40: 0 | RRT40: 0 | RRU40: 0 | RRV40: 0 | RRW40: 0 | RRX40: 0 | RRY40: 0 | RRZ40: 0 | RSA40: 0 | RSB40: 0 | RSC40: 0 | RSD40: 0 | RSE40: 0 | RSF40: 0 | RSG40: 0 | RSH40: 0 | RSI40: 0 | RSJ40: 0 | RSK40: 0 | RSL40: 0 | RSM40: 0 | RSN40: 0 | RSO40: =RSO20 -> 0 | RSP40: 0 | RSQ40: 0 | RSR40: 0 | RSS40: 0 | RST40: 0 | RSU40: 0 | RSV40: 0 | RSW40: 0 | RSX40: 0 | RSY40: 0 | RSZ40: 0 | RTA40: 0 | RTB40: 0 | RTC40: 0 | RTD40: 0 | RTE40: 0 | RTF40: 0 | RTG40: 0 | RTH40: 0 | RTI40: 0 | RTJ40: 0 | RTK40: 0 | RTL40: 0 | RTM40: 0 | RTN40: 0 | RTO40: 0 | RTP40: 0 | RTQ40: 0 | RTR40: 0 | RTS40: 0 | RTT40: 0 | RTU40: 0 | RTV40: 0 | RTW40: 0 | RTX40: 0 | RTY40: 0 | RTZ40: 0 | RUA40: 0 | RUB40: 0 | RUC40: 0 | RUD40: 0 | RUE40: 0 | RUF40: 0 | RUG40: 0 | RUH40: 0 | RUI40: 0 | RUJ40: 0 | RUK40: 0 | RUL40: 0 | RUM40: 0 | RUN40: 0 | RUO40: 0 | RUP40: 0 | RUQ40: 0 | RUR40: 0 | RUS40: 0 | RUT40: 0 | RUU40: 0 | RUV40: 0 | RUW40: 0 | RUX40: 0 | RUY40: 0 | RUZ40: 0 | RVA40: =RVA20 -> 0 | RVB40: 0 | RVC40: 0 | RVD40: 0 | RVE40: 0 | RVF40: 0 | RVG40: 0 | RVH40: 0 | RVI40: 0 | RVJ40: 0 | RVK40: 0 | RVL40: 0 | RVM40: 0 | RVN40: 0 | RVO40: 0 | RVP40: 0 | RVQ40: 0 | RVR40: 0 | RVS40: 0 | RVT40: 0 | RVU40: 0 | RVV40: 0 | RVW40: 0 | RVX40: 0 | RVY40: 0 | RVZ40: 0 | RWA40: 0 | RWB40: 0 | RWC40: 0 | RWD40: 0 | RWE40: 0 | RWF40: 0 | RWG40: 0 | RWH40: 0 | RWI40: 0 | RWJ40: 0 | RWK40: 0 | RWL40: 0 | RWM40: 0 | RWN40: 0 | RWO40: 0 | RWP40: 0 | RWQ40: 0 | RWR40: 0 | RWS40: 0 | RWT40: 0 | RWU40: 0 | RWV40: 0 | RWW40: 0 | RWX40: 0 | RWY40: 0 | RWZ40: 0 | RXA40: 0 | RXB40: 0 | RXC40: 0 | RXD40: 0 | RXE40: 0 | RXF40: 0 | RXG40: 0 | RXH40: 0 | RXI40: 0 | RXJ40: 0 | RXK40: 0 | RXL40: 0 | RXM40: =RXM20 -> 0 | RXN40: 0 | RXO40: 0 | RXP40: 0 | RXQ40: 0 | RXR40: 0 | RXS40: 0 | RXT40: 0 | RXU40: 0 | RXV40: 0 | RXW40: 0 | RXX40: 0 | RXY40: 0 | RXZ40: 0 | RYA40: 0 | RYB40: 0 | RYC40: 0 | RYD40: 0 | RYE40: 0 | RYF40: 0 | RYG40: 0 | RYH40: 0 | RYI40: 0 | RYJ40: 0 | RYK40: 0 | RYL40: 0 | RYM40: 0 | RYN40: 0 | RYO40: 0 | RYP40: 0 | RYQ40: 0 | RYR40: 0 | RYS40: 0 | RYT40: 0 | RYU40: 0 | RYV40: 0 | RYW40: 0 | RYX40: 0 | RYY40: 0 | RYZ40: 0 | RZA40: 0 | RZB40: 0 | RZC40: 0 | RZD40: 0 | RZE40: 0 | RZF40: 0 | RZG40: 0 | RZH40: 0 | RZI40: 0 | RZJ40: 0 | RZK40: 0 | RZL40: 0 | RZM40: 0 | RZN40: 0 | RZO40: 0 | RZP40: 0 | RZQ40: 0 | RZR40: 0 | RZS40: 0 | RZT40: 0 | RZU40: 0 | RZV40: 0 | RZW40: 0 | RZX40: 0 | RZY40: =RZY20 -> 0 | RZZ40: 0 | SAA40: 0 | SAB40: 0 | SAC40: 0 | SAD40: 0 | SAE40: 0 | SAF40: 0 | SAG40: 0 | SAH40: 0 | SAI40: 0 | SAJ40: 0 | SAK40: 0 | SAL40: 0 | SAM40: 0 | SAN40: 0 | SAO40: 0 | SAP40: 0 | SAQ40: 0 | SAR40: 0 | SAS40: 0 | SAT40: 0 | SAU40: 0 | SAV40: 0 | SAW40: 0 | SAX40: 0 | SAY40: 0 | SAZ40: 0 | SBA40: 0 | SBB40: 0 | SBC40: 0 | SBD40: 0 | SBE40: 0 | SBF40: 0 | SBG40: 0 | SBH40: 0 | SBI40: 0 | SBJ40: 0 | SBK40: 0 | SBL40: 0 | SBM40: 0 | SBN40: 0 | SBO40: 0 | SBP40: 0 | SBQ40: 0 | SBR40: 0 | SBS40: 0 | SBT40: 0 | SBU40: 0 | SBV40: 0 | SBW40: 0 | SBX40: 0 | SBY40: 0 | SBZ40: 0 | SCA40: 0 | SCB40: 0 | SCC40: 0 | SCD40: 0 | SCE40: 0 | SCF40: 0 | SCG40: 0 | SCH40: 0 | SCI40: 0 | SCJ40: 0 | SCK40: =SCK20 -> 0 | SCL40: 0 | SCM40: 0 | SCN40: 0 | SCO40: 0 | SCP40: 0 | SCQ40: 0 | SCR40: 0 | SCS40: 0 | SCT40: 0 | SCU40: 0 | SCV40: 0 | SCW40: 0 | SCX40: 0 | SCY40: 0 | SCZ40: 0 | SDA40: 0 | SDB40: 0 | SDC40: 0 | SDD40: 0 | SDE40: 0 | SDF40: 0 | SDG40: 0 | SDH40: 0 | SDI40: 0 | SDJ40: 0 | SDK40: 0 | SDL40: 0 | SDM40: 0 | SDN40: 0 | SDO40: 0 | SDP40: 0 | SDQ40: 0 | SDR40: 0 | SDS40: 0 | SDT40: 0 | SDU40: 0 | SDV40: 0 | SDW40: 0 | SDX40: 0 | SDY40: 0 | SDZ40: 0 | SEA40: 0 | SEB40: 0 | SEC40: 0 | SED40: 0 | SEE40: 0 | SEF40: 0 | SEG40: 0 | SEH40: 0 | SEI40: 0 | SEJ40: 0 | SEK40: 0 | SEL40: 0 | SEM40: 0 | SEN40: 0 | SEO40: 0 | SEP40: 0 | SEQ40: 0 | SER40: 0 | SES40: 0 | SET40: 0 | SEU40: 0 | SEV40: 0 | SEW40: =SEW20 -> 0 | SEX40: 0 | SEY40: 0 | SEZ40: 0 | SFA40: 0 | SFB40: 0 | SFC40: 0 | SFD40: 0 | SFE40: 0 | SFF40: 0 | SFG40: 0 | SFH40: 0 | SFI40: 0 | SFJ40: 0 | SFK40: 0 | SFL40: 0 | SFM40: 0 | SFN40: 0 | SFO40: 0 | SFP40: 0 | SFQ40: 0 | SFR40: 0 | SFS40: 0 | SFT40: 0 | SFU40: 0 | SFV40: 0 | SFW40: 0 | SFX40: 0 | SFY40: 0 | SFZ40: 0 | SGA40: 0 | SGB40: 0 | SGC40: 0 | SGD40: 0 | SGE40: 0 | SGF40: 0 | SGG40: 0 | SGH40: 0 | SGI40: 0 | SGJ40: 0 | SGK40: 0 | SGL40: 0 | SGM40: 0 | SGN40: 0 | SGO40: 0 | SGP40: 0 | SGQ40: 0 | SGR40: 0 | SGS40: 0 | SGT40: 0 | SGU40: 0 | SGV40: 0 | SGW40: 0 | SGX40: 0 | SGY40: 0 | SGZ40: 0 | SHA40: 0 | SHB40: 0 | SHC40: 0 | SHD40: 0 | SHE40: 0 | SHF40: 0 | SHG40: 0 | SHH40: 0 | SHI40: =SHI20 -> 0 | SHJ40: 0 | SHK40: 0 | SHL40: 0 | SHM40: 0 | SHN40: 0 | SHO40: 0 | SHP40: 0 | SHQ40: 0 | SHR40: 0 | SHS40: 0 | SHT40: 0 | SHU40: 0 | SHV40: 0 | SHW40: 0 | SHX40: 0 | SHY40: 0 | SHZ40: 0 | SIA40: 0 | SIB40: 0 | SIC40: 0 | SID40: 0 | SIE40: 0 | SIF40: 0 | SIG40: 0 | SIH40: 0 | SII40: 0 | SIJ40: 0 | SIK40: 0 | SIL40: 0 | SIM40: 0 | SIN40: 0 | SIO40: 0 | SIP40: 0 | SIQ40: 0 | SIR40: 0 | SIS40: 0 | SIT40: 0 | SIU40: 0 | SIV40: 0 | SIW40: 0 | SIX40: 0 | SIY40: 0 | SIZ40: 0 | SJA40: 0 | SJB40: 0 | SJC40: 0 | SJD40: 0 | SJE40: 0 | SJF40: 0 | SJG40: 0 | SJH40: 0 | SJI40: 0 | SJJ40: 0 | SJK40: 0 | SJL40: 0 | SJM40: 0 | SJN40: 0 | SJO40: 0 | SJP40: 0 | SJQ40: 0 | SJR40: 0 | SJS40: 0 | SJT40: 0 | SJU40: =SJU20 -> 0 | SJV40: 0 | SJW40: 0 | SJX40: 0 | SJY40: 0 | SJZ40: 0 | SKA40: 0 | SKB40: 0 | SKC40: 0 | SKD40: 0 | SKE40: 0 | SKF40: 0 | SKG40: 0 | SKH40: 0 | SKI40: 0 | SKJ40: 0 | SKK40: 0 | SKL40: 0 | SKM40: 0 | SKN40: 0 | SKO40: 0 | SKP40: 0 | SKQ40: 0 | SKR40: 0 | SKS40: 0 | SKT40: 0 | SKU40: 0 | SKV40: 0 | SKW40: 0 | SKX40: 0 | SKY40: 0 | SKZ40: 0 | SLA40: 0 | SLB40: 0 | SLC40: 0 | SLD40: 0 | SLE40: 0 | SLF40: 0 | SLG40: 0 | SLH40: 0 | SLI40: 0 | SLJ40: 0 | SLK40: 0 | SLL40: 0 | SLM40: 0 | SLN40: 0 | SLO40: 0 | SLP40: 0 | SLQ40: 0 | SLR40: 0 | SLS40: 0 | SLT40: 0 | SLU40: 0 | SLV40: 0 | SLW40: 0 | SLX40: 0 | SLY40: 0 | SLZ40: 0 | SMA40: 0 | SMB40: 0 | SMC40: 0 | SMD40: 0 | SME40: 0 | SMF40: 0 | SMG40: =SMG20 -> 0 | SMH40: 0 | SMI40: 0 | SMJ40: 0 | SMK40: 0 | SML40: 0 | SMM40: 0 | SMN40: 0 | SMO40: 0 | SMP40: 0 | SMQ40: 0 | SMR40: 0 | SMS40: 0 | SMT40: 0 | SMU40: 0 | SMV40: 0 | SMW40: 0 | SMX40: 0 | SMY40: 0 | SMZ40: 0 | SNA40: 0 | SNB40: 0 | SNC40: 0 | SND40: 0 | SNE40: 0 | SNF40: 0 | SNG40: 0 | SNH40: 0 | SNI40: 0 | SNJ40: 0 | SNK40: 0 | SNL40: 0 | SNM40: 0 | SNN40: 0 | SNO40: 0 | SNP40: 0 | SNQ40: 0 | SNR40: 0 | SNS40: 0 | SNT40: 0 | SNU40: 0 | SNV40: 0 | SNW40: 0 | SNX40: 0 | SNY40: 0 | SNZ40: 0 | SOA40: 0 | SOB40: 0 | SOC40: 0 | SOD40: 0 | SOE40: 0 | SOF40: 0 | SOG40: 0 | SOH40: 0 | SOI40: 0 | SOJ40: 0 | SOK40: 0 | SOL40: 0 | SOM40: 0 | SON40: 0 | SOO40: 0 | SOP40: 0 | SOQ40: 0 | SOR40: 0 | SOS40: =SOS20 -> 0 | SOT40: 0 | SOU40: 0 | SOV40: 0 | SOW40: 0 | SOX40: 0 | SOY40: 0 | SOZ40: 0 | SPA40: 0 | SPB40: 0 | SPC40: 0 | SPD40: 0 | SPE40: 0 | SPF40: 0 | SPG40: 0 | SPH40: 0 | SPI40: 0 | SPJ40: 0 | SPK40: 0 | SPL40: 0 | SPM40: 0 | SPN40: 0 | SPO40: 0 | SPP40: 0 | SPQ40: 0 | SPR40: 0 | SPS40: 0 | SPT40: 0 | SPU40: 0 | SPV40: 0 | SPW40: 0 | SPX40: 0 | SPY40: 0 | SPZ40: 0 | SQA40: 0 | SQB40: 0 | SQC40: 0 | SQD40: 0 | SQE40: 0 | SQF40: 0 | SQG40: 0 | SQH40: 0 | SQI40: 0 | SQJ40: 0 | SQK40: 0 | SQL40: 0 | SQM40: 0 | SQN40: 0 | SQO40: 0 | SQP40: 0 | SQQ40: 0 | SQR40: 0 | SQS40: 0 | SQT40: 0 | SQU40: 0 | SQV40: 0 | SQW40: 0 | SQX40: 0 | SQY40: 0 | SQZ40: 0 | SRA40: 0 | SRB40: 0 | SRC40: 0 | SRD40: 0 | SRE40: =SRE20 -> 0 | SRF40: 0 | SRG40: 0 | SRH40: 0 | SRI40: 0 | SRJ40: 0 | SRK40: 0 | SRL40: 0 | SRM40: 0 | SRN40: 0 | SRO40: 0 | SRP40: 0 | SRQ40: 0 | SRR40: 0 | SRS40: 0 | SRT40: 0 | SRU40: 0 | SRV40: 0 | SRW40: 0 | SRX40: 0 | SRY40: 0 | SRZ40: 0 | SSA40: 0 | SSB40: 0 | SSC40: 0 | SSD40: 0 | SSE40: 0 | SSF40: 0 | SSG40: 0 | SSH40: 0 | SSI40: 0 | SSJ40: 0 | SSK40: 0 | SSL40: 0 | SSM40: 0 | SSN40: 0 | SSO40: 0 | SSP40: 0 | SSQ40: 0 | SSR40: 0 | SSS40: 0 | SST40: 0 | SSU40: 0 | SSV40: 0 | SSW40: 0 | SSX40: 0 | SSY40: 0 | SSZ40: 0 | STA40: 0 | STB40: 0 | STC40: 0 | STD40: 0 | STE40: 0 | STF40: 0 | STG40: 0 | STH40: 0 | STI40: 0 | STJ40: 0 | STK40: 0 | STL40: 0 | STM40: 0 | STN40: 0 | STO40: 0 | STP40: 0 | STQ40: =STQ20 -> 0 | STR40: 0 | STS40: 0 | STT40: 0 | STU40: 0 | STV40: 0 | STW40: 0 | STX40: 0 | STY40: 0 | STZ40: 0 | SUA40: 0 | SUB40: 0 | SUC40: 0 | SUD40: 0 | SUE40: 0 | SUF40: 0 | SUG40: 0 | SUH40: 0 | SUI40: 0 | SUJ40: 0 | SUK40: 0 | SUL40: 0 | SUM40: 0 | SUN40: 0 | SUO40: 0 | SUP40: 0 | SUQ40: 0 | SUR40: 0 | SUS40: 0 | SUT40: 0 | SUU40: 0 | SUV40: 0 | SUW40: 0 | SUX40: 0 | SUY40: 0 | SUZ40: 0 | SVA40: 0 | SVB40: 0 | SVC40: 0 | SVD40: 0 | SVE40: 0 | SVF40: 0 | SVG40: 0 | SVH40: 0 | SVI40: 0 | SVJ40: 0 | SVK40: 0 | SVL40: 0 | SVM40: 0 | SVN40: 0 | SVO40: 0 | SVP40: 0 | SVQ40: 0 | SVR40: 0 | SVS40: 0 | SVT40: 0 | SVU40: 0 | SVV40: 0 | SVW40: 0 | SVX40: 0 | SVY40: 0 | SVZ40: 0 | SWA40: 0 | SWB40: 0 | SWC40: =SWC20 -> 0 | SWD40: 0 | SWE40: 0 | SWF40: 0 | SWG40: 0 | SWH40: 0 | SWI40: 0 | SWJ40: 0 | SWK40: 0 | SWL40: 0 | SWM40: 0 | SWN40: 0 | SWO40: 0 | SWP40: 0 | SWQ40: 0 | SWR40: 0 | SWS40: 0 | SWT40: 0 | SWU40: 0 | SWV40: 0 | SWW40: 0 | SWX40: 0 | SWY40: 0 | SWZ40: 0 | SXA40: 0 | SXB40: 0 | SXC40: 0 | SXD40: 0 | SXE40: 0 | SXF40: 0 | SXG40: 0 | SXH40: 0 | SXI40: 0 | SXJ40: 0 | SXK40: 0 | SXL40: 0 | SXM40: 0 | SXN40: 0 | SXO40: 0 | SXP40: 0 | SXQ40: 0 | SXR40: 0 | SXS40: 0 | SXT40: 0 | SXU40: 0 | SXV40: 0 | SXW40: 0 | SXX40: 0 | SXY40: 0 | SXZ40: 0 | SYA40: 0 | SYB40: 0 | SYC40: 0 | SYD40: 0 | SYE40: 0 | SYF40: 0 | SYG40: 0 | SYH40: 0 | SYI40: 0 | SYJ40: 0 | SYK40: 0 | SYL40: 0 | SYM40: 0 | SYN40: 0 | SYO40: =SYO20 -> 0 | SYP40: 0 | SYQ40: 0 | SYR40: 0 | SYS40: 0 | SYT40: 0 | SYU40: 0 | SYV40: 0 | SYW40: 0 | SYX40: 0 | SYY40: 0 | SYZ40: 0 | SZA40: 0 | SZB40: 0 | SZC40: 0 | SZD40: 0 | SZE40: 0 | SZF40: 0 | SZG40: 0 | SZH40: 0 | SZI40: 0 | SZJ40: 0 | SZK40: 0 | SZL40: 0 | SZM40: 0 | SZN40: 0 | SZO40: 0 | SZP40: 0 | SZQ40: 0 | SZR40: 0 | SZS40: 0 | SZT40: 0 | SZU40: 0 | SZV40: 0 | SZW40: 0 | SZX40: 0 | SZY40: 0 | SZZ40: 0 | TAA40: 0 | TAB40: 0 | TAC40: 0 | TAD40: 0 | TAE40: 0 | TAF40: 0 | TAG40: 0 | TAH40: 0 | TAI40: 0 | TAJ40: 0 | TAK40: 0 | TAL40: 0 | TAM40: 0 | TAN40: 0 | TAO40: 0 | TAP40: 0 | TAQ40: 0 | TAR40: 0 | TAS40: 0 | TAT40: 0 | TAU40: 0 | TAV40: 0 | TAW40: 0 | TAX40: 0 | TAY40: 0 | TAZ40: 0 | TBA40: =TBA20 -> 0 | TBB40: 0 | TBC40: 0 | TBD40: 0 | TBE40: 0 | TBF40: 0 | TBG40: 0 | TBH40: 0 | TBI40: 0 | TBJ40: 0 | TBK40: 0 | TBL40: 0 | TBM40: 0 | TBN40: 0 | TBO40: 0 | TBP40: 0 | TBQ40: 0 | TBR40: 0 | TBS40: 0 | TBT40: 0 | TBU40: 0 | TBV40: 0 | TBW40: 0 | TBX40: 0 | TBY40: 0 | TBZ40: 0 | TCA40: 0 | TCB40: 0 | TCC40: 0 | TCD40: 0 | TCE40: 0 | TCF40: 0 | TCG40: 0 | TCH40: 0 | TCI40: 0 | TCJ40: 0 | TCK40: 0 | TCL40: 0 | TCM40: 0 | TCN40: 0 | TCO40: 0 | TCP40: 0 | TCQ40: 0 | TCR40: 0 | TCS40: 0 | TCT40: 0 | TCU40: 0 | TCV40: 0 | TCW40: 0 | TCX40: 0 | TCY40: 0 | TCZ40: 0 | TDA40: 0 | TDB40: 0 | TDC40: 0 | TDD40: 0 | TDE40: 0 | TDF40: 0 | TDG40: 0 | TDH40: 0 | TDI40: 0 | TDJ40: 0 | TDK40: 0 | TDL40: 0 | TDM40: =TDM20 -> 0 | TDN40: 0 | TDO40: 0 | TDP40: 0 | TDQ40: 0 | TDR40: 0 | TDS40: 0 | TDT40: 0 | TDU40: 0 | TDV40: 0 | TDW40: 0 | TDX40: 0 | TDY40: 0 | TDZ40: 0 | TEA40: 0 | TEB40: 0 | TEC40: 0 | TED40: 0 | TEE40: 0 | TEF40: 0 | TEG40: 0 | TEH40: 0 | TEI40: 0 | TEJ40: 0 | TEK40: 0 | TEL40: 0 | TEM40: 0 | TEN40: 0 | TEO40: 0 | TEP40: 0 | TEQ40: 0 | TER40: 0 | TES40: 0 | TET40: 0 | TEU40: 0 | TEV40: 0 | TEW40: 0 | TEX40: 0 | TEY40: 0 | TEZ40: 0 | TFA40: 0 | TFB40: 0 | TFC40: 0 | TFD40: 0 | TFE40: 0 | TFF40: 0 | TFG40: 0 | TFH40: 0 | TFI40: 0 | TFJ40: 0 | TFK40: 0 | TFL40: 0 | TFM40: 0 | TFN40: 0 | TFO40: 0 | TFP40: 0 | TFQ40: 0 | TFR40: 0 | TFS40: 0 | TFT40: 0 | TFU40: 0 | TFV40: 0 | TFW40: 0 | TFX40: 0 | TFY40: =TFY20 -> 0 | TFZ40: 0 | TGA40: 0 | TGB40: 0 | TGC40: 0 | TGD40: 0 | TGE40: 0 | TGF40: 0 | TGG40: 0 | TGH40: 0 | TGI40: 0 | TGJ40: 0 | TGK40: 0 | TGL40: 0 | TGM40: 0 | TGN40: 0 | TGO40: 0 | TGP40: 0 | TGQ40: 0 | TGR40: 0 | TGS40: 0 | TGT40: 0 | TGU40: 0 | TGV40: 0 | TGW40: 0 | TGX40: 0 | TGY40: 0 | TGZ40: 0 | THA40: 0 | THB40: 0 | THC40: 0 | THD40: 0 | THE40: 0 | THF40: 0 | THG40: 0 | THH40: 0 | THI40: 0 | THJ40: 0 | THK40: 0 | THL40: 0 | THM40: 0 | THN40: 0 | THO40: 0 | THP40: 0 | THQ40: 0 | THR40: 0 | THS40: 0 | THT40: 0 | THU40: 0 | THV40: 0 | THW40: 0 | THX40: 0 | THY40: 0 | THZ40: 0 | TIA40: 0 | TIB40: 0 | TIC40: 0 | TID40: 0 | TIE40: 0 | TIF40: 0 | TIG40: 0 | TIH40: 0 | TII40: 0 | TIJ40: 0 | TIK40: =TIK20 -> 0 | TIL40: 0 | TIM40: 0 | TIN40: 0 | TIO40: 0 | TIP40: 0 | TIQ40: 0 | TIR40: 0 | TIS40: 0 | TIT40: 0 | TIU40: 0 | TIV40: 0 | TIW40: 0 | TIX40: 0 | TIY40: 0 | TIZ40: 0 | TJA40: 0 | TJB40: 0 | TJC40: 0 | TJD40: 0 | TJE40: 0 | TJF40: 0 | TJG40: 0 | TJH40: 0 | TJI40: 0 | TJJ40: 0 | TJK40: 0 | TJL40: 0 | TJM40: 0 | TJN40: 0 | TJO40: 0 | TJP40: 0 | TJQ40: 0 | TJR40: 0 | TJS40: 0 | TJT40: 0 | TJU40: 0 | TJV40: 0 | TJW40: 0 | TJX40: 0 | TJY40: 0 | TJZ40: 0 | TKA40: 0 | TKB40: 0 | TKC40: 0 | TKD40: 0 | TKE40: 0 | TKF40: 0 | TKG40: 0 | TKH40: 0 | TKI40: 0 | TKJ40: 0 | TKK40: 0 | TKL40: 0 | TKM40: 0 | TKN40: 0 | TKO40: 0 | TKP40: 0 | TKQ40: 0 | TKR40: 0 | TKS40: 0 | TKT40: 0 | TKU40: 0 | TKV40: 0 | TKW40: =TKW20 -> 0 | TKX40: 0 | TKY40: 0 | TKZ40: 0 | TLA40: 0 | TLB40: 0 | TLC40: 0 | TLD40: 0 | TLE40: 0 | TLF40: 0 | TLG40: 0 | TLH40: 0 | TLI40: 0 | TLJ40: 0 | TLK40: 0 | TLL40: 0 | TLM40: 0 | TLN40: 0 | TLO40: 0 | TLP40: 0 | TLQ40: 0 | TLR40: 0 | TLS40: 0 | TLT40: 0 | TLU40: 0 | TLV40: 0 | TLW40: 0 | TLX40: 0 | TLY40: 0 | TLZ40: 0 | TMA40: 0 | TMB40: 0 | TMC40: 0 | TMD40: 0 | TME40: 0 | TMF40: 0 | TMG40: 0 | TMH40: 0 | TMI40: 0 | TMJ40: 0 | TMK40: 0 | TML40: 0 | TMM40: 0 | TMN40: 0 | TMO40: 0 | TMP40: 0 | TMQ40: 0 | TMR40: 0 | TMS40: 0 | TMT40: 0 | TMU40: 0 | TMV40: 0 | TMW40: 0 | TMX40: 0 | TMY40: 0 | TMZ40: 0 | TNA40: 0 | TNB40: 0 | TNC40: 0 | TND40: 0 | TNE40: 0 | TNF40: 0 | TNG40: 0 | TNH40: 0 | TNI40: =TNI20 -> 0 | TNJ40: 0 | TNK40: 0 | TNL40: 0 | TNM40: 0 | TNN40: 0 | TNO40: 0 | TNP40: 0 | TNQ40: 0 | TNR40: 0 | TNS40: 0 | TNT40: 0 | TNU40: 0 | TNV40: 0 | TNW40: 0 | TNX40: 0 | TNY40: 0 | TNZ40: 0 | TOA40: 0 | TOB40: 0 | TOC40: 0 | TOD40: 0 | TOE40: 0 | TOF40: 0 | TOG40: 0 | TOH40: 0 | TOI40: 0 | TOJ40: 0 | TOK40: 0 | TOL40: 0 | TOM40: 0 | TON40: 0 | TOO40: 0 | TOP40: 0 | TOQ40: 0 | TOR40: 0 | TOS40: 0 | TOT40: 0 | TOU40: 0 | TOV40: 0 | TOW40: 0 | TOX40: 0 | TOY40: 0 | TOZ40: 0 | TPA40: 0 | TPB40: 0 | TPC40: 0 | TPD40: 0 | TPE40: 0 | TPF40: 0 | TPG40: 0 | TPH40: 0 | TPI40: 0 | TPJ40: 0 | TPK40: 0 | TPL40: 0 | TPM40: 0 | TPN40: 0 | TPO40: 0 | TPP40: 0 | TPQ40: 0 | TPR40: 0 | TPS40: 0 | TPT40: 0 | TPU40: =TPU20 -> 0 | TPV40: 0 | TPW40: 0 | TPX40: 0 | TPY40: 0 | TPZ40: 0 | TQA40: 0 | TQB40: 0 | TQC40: 0 | TQD40: 0 | TQE40: 0 | TQF40: 0 | TQG40: 0 | TQH40: 0 | TQI40: 0 | TQJ40: 0 | TQK40: 0 | TQL40: 0 | TQM40: 0 | TQN40: 0 | TQO40: 0 | TQP40: 0 | TQQ40: 0 | TQR40: 0 | TQS40: 0 | TQT40: 0 | TQU40: 0 | TQV40: 0 | TQW40: 0 | TQX40: 0 | TQY40: 0 | TQZ40: 0 | TRA40: 0 | TRB40: 0 | TRC40: 0 | TRD40: 0 | TRE40: 0 | TRF40: 0 | TRG40: 0 | TRH40: 0 | TRI40: 0 | TRJ40: 0 | TRK40: 0 | TRL40: 0 | TRM40: 0 | TRN40: 0 | TRO40: 0 | TRP40: 0 | TRQ40: 0 | TRR40: 0 | TRS40: 0 | TRT40: 0 | TRU40: 0 | TRV40: 0 | TRW40: 0 | TRX40: 0 | TRY40: 0 | TRZ40: 0 | TSA40: 0 | TSB40: 0 | TSC40: 0 | TSD40: 0 | TSE40: 0 | TSF40: 0 | TSG40: =TSG20 -> 0 | TSH40: 0 | TSI40: 0 | TSJ40: 0 | TSK40: 0 | TSL40: 0 | TSM40: 0 | TSN40: 0 | TSO40: 0 | TSP40: 0 | TSQ40: 0 | TSR40: 0 | TSS40: 0 | TST40: 0 | TSU40: 0 | TSV40: 0 | TSW40: 0 | TSX40: 0 | TSY40: 0 | TSZ40: 0 | TTA40: 0 | TTB40: 0 | TTC40: 0 | TTD40: 0 | TTE40: 0 | TTF40: 0 | TTG40: 0 | TTH40: 0 | TTI40: 0 | TTJ40: 0 | TTK40: 0 | TTL40: 0 | TTM40: 0 | TTN40: 0 | TTO40: 0 | TTP40: 0 | TTQ40: 0 | TTR40: 0 | TTS40: 0 | TTT40: 0 | TTU40: 0 | TTV40: 0 | TTW40: 0 | TTX40: 0 | TTY40: 0 | TTZ40: 0 | TUA40: 0 | TUB40: 0 | TUC40: 0 | TUD40: 0 | TUE40: 0 | TUF40: 0 | TUG40: 0 | TUH40: 0 | TUI40: 0 | TUJ40: 0 | TUK40: 0 | TUL40: 0 | TUM40: 0 | TUN40: 0 | TUO40: 0 | TUP40: 0 | TUQ40: 0 | TUR40: 0 | TUS40: =TUS20 -> 0 | TUT40: 0 | TUU40: 0 | TUV40: 0 | TUW40: 0 | TUX40: 0 | TUY40: 0 | TUZ40: 0 | TVA40: 0 | TVB40: 0 | TVC40: 0 | TVD40: 0 | TVE40: 0 | TVF40: 0 | TVG40: 0 | TVH40: 0 | TVI40: 0 | TVJ40: 0 | TVK40: 0 | TVL40: 0 | TVM40: 0 | TVN40: 0 | TVO40: 0 | TVP40: 0 | TVQ40: 0 | TVR40: 0 | TVS40: 0 | TVT40: 0 | TVU40: 0 | TVV40: 0 | TVW40: 0 | TVX40: 0 | TVY40: 0 | TVZ40: 0 | TWA40: 0 | TWB40: 0 | TWC40: 0 | TWD40: 0 | TWE40: 0 | TWF40: 0 | TWG40: 0 | TWH40: 0 | TWI40: 0 | TWJ40: 0 | TWK40: 0 | TWL40: 0 | TWM40: 0 | TWN40: 0 | TWO40: 0 | TWP40: 0 | TWQ40: 0 | TWR40: 0 | TWS40: 0 | TWT40: 0 | TWU40: 0 | TWV40: 0 | TWW40: 0 | TWX40: 0 | TWY40: 0 | TWZ40: 0 | TXA40: 0 | TXB40: 0 | TXC40: 0 | TXD40: 0 | TXE40: =TXE20 -> 0 | TXF40: 0 | TXG40: 0 | TXH40: 0 | TXI40: 0 | TXJ40: 0 | TXK40: 0 | TXL40: 0 | TXM40: 0 | TXN40: 0 | TXO40: 0 | TXP40: 0 | TXQ40: 0 | TXR40: 0 | TXS40: 0 | TXT40: 0 | TXU40: 0 | TXV40: 0 | TXW40: 0 | TXX40: 0 | TXY40: 0 | TXZ40: 0 | TYA40: 0 | TYB40: 0 | TYC40: 0 | TYD40: 0 | TYE40: 0 | TYF40: 0 | TYG40: 0 | TYH40: 0 | TYI40: 0 | TYJ40: 0 | TYK40: 0 | TYL40: 0 | TYM40: 0 | TYN40: 0 | TYO40: 0 | TYP40: 0 | TYQ40: 0 | TYR40: 0 | TYS40: 0 | TYT40: 0 | TYU40: 0 | TYV40: 0 | TYW40: 0 | TYX40: 0 | TYY40: 0 | TYZ40: 0 | TZA40: 0 | TZB40: 0 | TZC40: 0 | TZD40: 0 | TZE40: 0 | TZF40: 0 | TZG40: 0 | TZH40: 0 | TZI40: 0 | TZJ40: 0 | TZK40: 0 | TZL40: 0 | TZM40: 0 | TZN40: 0 | TZO40: 0 | TZP40: 0 | TZQ40: =TZQ20 -> 0 | TZR40: 0 | TZS40: 0 | TZT40: 0 | TZU40: 0 | TZV40: 0 | TZW40: 0 | TZX40: 0 | TZY40: 0 | TZZ40: 0 | UAA40: 0 | UAB40: 0 | UAC40: 0 | UAD40: 0 | UAE40: 0 | UAF40: 0 | UAG40: 0 | UAH40: 0 | UAI40: 0 | UAJ40: 0 | UAK40: 0 | UAL40: 0 | UAM40: 0 | UAN40: 0 | UAO40: 0 | UAP40: 0 | UAQ40: 0 | UAR40: 0 | UAS40: 0 | UAT40: 0 | UAU40: 0 | UAV40: 0 | UAW40: 0 | UAX40: 0 | UAY40: 0 | UAZ40: 0 | UBA40: 0 | UBB40: 0 | UBC40: 0 | UBD40: 0 | UBE40: 0 | UBF40: 0 | UBG40: 0 | UBH40: 0 | UBI40: 0 | UBJ40: 0 | UBK40: 0 | UBL40: 0 | UBM40: 0 | UBN40: 0 | UBO40: 0 | UBP40: 0 | UBQ40: 0 | UBR40: 0 | UBS40: 0 | UBT40: 0 | UBU40: 0 | UBV40: 0 | UBW40: 0 | UBX40: 0 | UBY40: 0 | UBZ40: 0 | UCA40: 0 | UCB40: 0 | UCC40: =UCC20 -> 0 | UCD40: 0 | UCE40: 0 | UCF40: 0 | UCG40: 0 | UCH40: 0 | UCI40: 0 | UCJ40: 0 | UCK40: 0 | UCL40: 0 | UCM40: 0 | UCN40: 0 | UCO40: 0 | UCP40: 0 | UCQ40: 0 | UCR40: 0 | UCS40: 0 | UCT40: 0 | UCU40: 0 | UCV40: 0 | UCW40: 0 | UCX40: 0 | UCY40: 0 | UCZ40: 0 | UDA40: 0 | UDB40: 0 | UDC40: 0 | UDD40: 0 | UDE40: 0 | UDF40: 0 | UDG40: 0 | UDH40: 0 | UDI40: 0 | UDJ40: 0 | UDK40: 0 | UDL40: 0 | UDM40: 0 | UDN40: 0 | UDO40: 0 | UDP40: 0 | UDQ40: 0 | UDR40: 0 | UDS40: 0 | UDT40: 0 | UDU40: 0 | UDV40: 0 | UDW40: 0 | UDX40: 0 | UDY40: 0 | UDZ40: 0 | UEA40: 0 | UEB40: 0 | UEC40: 0 | UED40: 0 | UEE40: 0 | UEF40: 0 | UEG40: 0 | UEH40: 0 | UEI40: 0 | UEJ40: 0 | UEK40: 0 | UEL40: 0 | UEM40: 0 | UEN40: 0 | UEO40: =UEO20 -> 0 | UEP40: 0 | UEQ40: 0 | UER40: 0 | UES40: 0 | UET40: 0 | UEU40: 0 | UEV40: 0 | UEW40: 0 | UEX40: 0 | UEY40: 0 | UEZ40: 0 | UFA40: 0 | UFB40: 0 | UFC40: 0 | UFD40: 0 | UFE40: 0 | UFF40: 0 | UFG40: 0 | UFH40: 0 | UFI40: 0 | UFJ40: 0 | UFK40: 0 | UFL40: 0 | UFM40: 0 | UFN40: 0 | UFO40: 0 | UFP40: 0 | UFQ40: 0 | UFR40: 0 | UFS40: 0 | UFT40: 0 | UFU40: 0 | UFV40: 0 | UFW40: 0 | UFX40: 0 | UFY40: 0 | UFZ40: 0 | UGA40: 0 | UGB40: 0 | UGC40: 0 | UGD40: 0 | UGE40: 0 | UGF40: 0 | UGG40: 0 | UGH40: 0 | UGI40: 0 | UGJ40: 0 | UGK40: 0 | UGL40: 0 | UGM40: 0 | UGN40: 0 | UGO40: 0 | UGP40: 0 | UGQ40: 0 | UGR40: 0 | UGS40: 0 | UGT40: 0 | UGU40: 0 | UGV40: 0 | UGW40: 0 | UGX40: 0 | UGY40: 0 | UGZ40: 0 | UHA40: =UHA20 -> 0 | UHB40: 0 | UHC40: 0 | UHD40: 0 | UHE40: 0 | UHF40: 0 | UHG40: 0 | UHH40: 0 | UHI40: 0 | UHJ40: 0 | UHK40: 0 | UHL40: 0 | UHM40: 0 | UHN40: 0 | UHO40: 0 | UHP40: 0 | UHQ40: 0 | UHR40: 0 | UHS40: 0 | UHT40: 0 | UHU40: 0 | UHV40: 0 | UHW40: 0 | UHX40: 0 | UHY40: 0 | UHZ40: 0 | UIA40: 0 | UIB40: 0 | UIC40: 0 | UID40: 0 | UIE40: 0 | UIF40: 0 | UIG40: 0 | UIH40: 0 | UII40: 0 | UIJ40: 0 | UIK40: 0 | UIL40: 0 | UIM40: 0 | UIN40: 0 | UIO40: 0 | UIP40: 0 | UIQ40: 0 | UIR40: 0 | UIS40: 0 | UIT40: 0 | UIU40: 0 | UIV40: 0 | UIW40: 0 | UIX40: 0 | UIY40: 0 | UIZ40: 0 | UJA40: 0 | UJB40: 0 | UJC40: 0 | UJD40: 0 | UJE40: 0 | UJF40: 0 | UJG40: 0 | UJH40: 0 | UJI40: 0 | UJJ40: 0 | UJK40: 0 | UJL40: 0 | UJM40: =UJM20 -> 0 | UJN40: 0 | UJO40: 0 | UJP40: 0 | UJQ40: 0 | UJR40: 0 | UJS40: 0 | UJT40: 0 | UJU40: 0 | UJV40: 0 | UJW40: 0 | UJX40: 0 | UJY40: 0 | UJZ40: 0 | UKA40: 0 | UKB40: 0 | UKC40: 0 | UKD40: 0 | UKE40: 0 | UKF40: 0 | UKG40: 0 | UKH40: 0 | UKI40: 0 | UKJ40: 0 | UKK40: 0 | UKL40: 0 | UKM40: 0 | UKN40: 0 | UKO40: 0 | UKP40: 0 | UKQ40: 0 | UKR40: 0 | UKS40: 0 | UKT40: 0 | UKU40: 0 | UKV40: 0 | UKW40: 0 | UKX40: 0 | UKY40: 0 | UKZ40: 0 | ULA40: 0 | ULB40: 0 | ULC40: 0 | ULD40: 0 | ULE40: 0 | ULF40: 0 | ULG40: 0 | ULH40: 0 | ULI40: 0 | ULJ40: 0 | ULK40: 0 | ULL40: 0 | ULM40: 0 | ULN40: 0 | ULO40: 0 | ULP40: 0 | ULQ40: 0 | ULR40: 0 | ULS40: 0 | ULT40: 0 | ULU40: 0 | ULV40: 0 | ULW40: 0 | ULX40: 0 | ULY40: =ULY20 -> 0 | ULZ40: 0 | UMA40: 0 | UMB40: 0 | UMC40: 0 | UMD40: 0 | UME40: 0 | UMF40: 0 | UMG40: 0 | UMH40: 0 | UMI40: 0 | UMJ40: 0 | UMK40: 0 | UML40: 0 | UMM40: 0 | UMN40: 0 | UMO40: 0 | UMP40: 0 | UMQ40: 0 | UMR40: 0 | UMS40: 0 | UMT40: 0 | UMU40: 0 | UMV40: 0 | UMW40: 0 | UMX40: 0 | UMY40: 0 | UMZ40: 0 | UNA40: 0 | UNB40: 0 | UNC40: 0 | UND40: 0 | UNE40: 0 | UNF40: 0 | UNG40: 0 | UNH40: 0 | UNI40: 0 | UNJ40: 0 | UNK40: 0 | UNL40: 0 | UNM40: 0 | UNN40: 0 | UNO40: 0 | UNP40: 0 | UNQ40: 0 | UNR40: 0 | UNS40: 0 | UNT40: 0 | UNU40: 0 | UNV40: 0 | UNW40: 0 | UNX40: 0 | UNY40: 0 | UNZ40: 0 | UOA40: 0 | UOB40: 0 | UOC40: 0 | UOD40: 0 | UOE40: 0 | UOF40: 0 | UOG40: 0 | UOH40: 0 | UOI40: 0 | UOJ40: 0 | UOK40: =UOK20 -> 0 | UOL40: 0 | UOM40: 0 | UON40: 0 | UOO40: 0 | UOP40: 0 | UOQ40: 0 | UOR40: 0 | UOS40: 0 | UOT40: 0 | UOU40: 0 | UOV40: 0 | UOW40: 0 | UOX40: 0 | UOY40: 0 | UOZ40: 0 | UPA40: 0 | UPB40: 0 | UPC40: 0 | UPD40: 0 | UPE40: 0 | UPF40: 0 | UPG40: 0 | UPH40: 0 | UPI40: 0 | UPJ40: 0 | UPK40: 0 | UPL40: 0 | UPM40: 0 | UPN40: 0 | UPO40: 0 | UPP40: 0 | UPQ40: 0 | UPR40: 0 | UPS40: 0 | UPT40: 0 | UPU40: 0 | UPV40: 0 | UPW40: 0 | UPX40: 0 | UPY40: 0 | UPZ40: 0 | UQA40: 0 | UQB40: 0 | UQC40: 0 | UQD40: 0 | UQE40: 0 | UQF40: 0 | UQG40: 0 | UQH40: 0 | UQI40: 0 | UQJ40: 0 | UQK40: 0 | UQL40: 0 | UQM40: 0 | UQN40: 0 | UQO40: 0 | UQP40: 0 | UQQ40: 0 | UQR40: 0 | UQS40: 0 | UQT40: 0 | UQU40: 0 | UQV40: 0 | UQW40: =UQW20 -> 0 | UQX40: 0 | UQY40: 0 | UQZ40: 0 | URA40: 0 | URB40: 0 | URC40: 0 | URD40: 0 | URE40: 0 | URF40: 0 | URG40: 0 | URH40: 0 | URI40: 0 | URJ40: 0 | URK40: 0 | URL40: 0 | URM40: 0 | URN40: 0 | URO40: 0 | URP40: 0 | URQ40: 0 | URR40: 0 | URS40: 0 | URT40: 0 | URU40: 0 | URV40: 0 | URW40: 0 | URX40: 0 | URY40: 0 | URZ40: 0 | USA40: 0 | USB40: 0 | USC40: 0 | USD40: 0 | USE40: 0 | USF40: 0 | USG40: 0 | USH40: 0 | USI40: 0 | USJ40: 0 | USK40: 0 | USL40: 0 | USM40: 0 | USN40: 0 | USO40: 0 | USP40: 0 | USQ40: 0 | USR40: 0 | USS40: 0 | UST40: 0 | USU40: 0 | USV40: 0 | USW40: 0 | USX40: 0 | USY40: 0 | USZ40: 0 | UTA40: 0 | UTB40: 0 | UTC40: 0 | UTD40: 0 | UTE40: 0 | UTF40: 0 | UTG40: 0 | UTH40: 0 | UTI40: =UTI20 -> 0 | UTJ40: 0 | UTK40: 0 | UTL40: 0 | UTM40: 0 | UTN40: 0 | UTO40: 0 | UTP40: 0 | UTQ40: 0 | UTR40: 0 | UTS40: 0 | UTT40: 0 | UTU40: 0 | UTV40: 0 | UTW40: 0 | UTX40: 0 | UTY40: 0 | UTZ40: 0 | UUA40: 0 | UUB40: 0 | UUC40: 0 | UUD40: 0 | UUE40: 0 | UUF40: 0 | UUG40: 0 | UUH40: 0 | UUI40: 0 | UUJ40: 0 | UUK40: 0 | UUL40: 0 | UUM40: 0 | UUN40: 0 | UUO40: 0 | UUP40: 0 | UUQ40: 0 | UUR40: 0 | UUS40: 0 | UUT40: 0 | UUU40: 0 | UUV40: 0 | UUW40: 0 | UUX40: 0 | UUY40: 0 | UUZ40: 0 | UVA40: 0 | UVB40: 0 | UVC40: 0 | UVD40: 0 | UVE40: 0 | UVF40: 0 | UVG40: 0 | UVH40: 0 | UVI40: 0 | UVJ40: 0 | UVK40: 0 | UVL40: 0 | UVM40: 0 | UVN40: 0 | UVO40: 0 | UVP40: 0 | UVQ40: 0 | UVR40: 0 | UVS40: 0 | UVT40: 0 | UVU40: =UVU20 -> 0 | UVV40: 0 | UVW40: 0 | UVX40: 0 | UVY40: 0 | UVZ40: 0 | UWA40: 0 | UWB40: 0 | UWC40: 0 | UWD40: 0 | UWE40: 0 | UWF40: 0 | UWG40: 0 | UWH40: 0 | UWI40: 0 | UWJ40: 0 | UWK40: 0 | UWL40: 0 | UWM40: 0 | UWN40: 0 | UWO40: 0 | UWP40: 0 | UWQ40: 0 | UWR40: 0 | UWS40: 0 | UWT40: 0 | UWU40: 0 | UWV40: 0 | UWW40: 0 | UWX40: 0 | UWY40: 0 | UWZ40: 0 | UXA40: 0 | UXB40: 0 | UXC40: 0 | UXD40: 0 | UXE40: 0 | UXF40: 0 | UXG40: 0 | UXH40: 0 | UXI40: 0 | UXJ40: 0 | UXK40: 0 | UXL40: 0 | UXM40: 0 | UXN40: 0 | UXO40: 0 | UXP40: 0 | UXQ40: 0 | UXR40: 0 | UXS40: 0 | UXT40: 0 | UXU40: 0 | UXV40: 0 | UXW40: 0 | UXX40: 0 | UXY40: 0 | UXZ40: 0 | UYA40: 0 | UYB40: 0 | UYC40: 0 | UYD40: 0 | UYE40: 0 | UYF40: 0 | UYG40: =UYG20 -> 0 | UYH40: 0 | UYI40: 0 | UYJ40: 0 | UYK40: 0 | UYL40: 0 | UYM40: 0 | UYN40: 0 | UYO40: 0 | UYP40: 0 | UYQ40: 0 | UYR40: 0 | UYS40: 0 | UYT40: 0 | UYU40: 0 | UYV40: 0 | UYW40: 0 | UYX40: 0 | UYY40: 0 | UYZ40: 0 | UZA40: 0 | UZB40: 0 | UZC40: 0 | UZD40: 0 | UZE40: 0 | UZF40: 0 | UZG40: 0 | UZH40: 0 | UZI40: 0 | UZJ40: 0 | UZK40: 0 | UZL40: 0 | UZM40: 0 | UZN40: 0 | UZO40: 0 | UZP40: 0 | UZQ40: 0 | UZR40: 0 | UZS40: 0 | UZT40: 0 | UZU40: 0 | UZV40: 0 | UZW40: 0 | UZX40: 0 | UZY40: 0 | UZZ40: 0 | VAA40: 0 | VAB40: 0 | VAC40: 0 | VAD40: 0 | VAE40: 0 | VAF40: 0 | VAG40: 0 | VAH40: 0 | VAI40: 0 | VAJ40: 0 | VAK40: 0 | VAL40: 0 | VAM40: 0 | VAN40: 0 | VAO40: 0 | VAP40: 0 | VAQ40: 0 | VAR40: 0 | VAS40: =VAS20 -> 0 | VAT40: 0 | VAU40: 0 | VAV40: 0 | VAW40: 0 | VAX40: 0 | VAY40: 0 | VAZ40: 0 | VBA40: 0 | VBB40: 0 | VBC40: 0 | VBD40: 0 | VBE40: 0 | VBF40: 0 | VBG40: 0 | VBH40: 0 | VBI40: 0 | VBJ40: 0 | VBK40: 0 | VBL40: 0 | VBM40: 0 | VBN40: 0 | VBO40: 0 | VBP40: 0 | VBQ40: 0 | VBR40: 0 | VBS40: 0 | VBT40: 0 | VBU40: 0 | VBV40: 0 | VBW40: 0 | VBX40: 0 | VBY40: 0 | VBZ40: 0 | VCA40: 0 | VCB40: 0 | VCC40: 0 | VCD40: 0 | VCE40: 0 | VCF40: 0 | VCG40: 0 | VCH40: 0 | VCI40: 0 | VCJ40: 0 | VCK40: 0 | VCL40: 0 | VCM40: 0 | VCN40: 0 | VCO40: 0 | VCP40: 0 | VCQ40: 0 | VCR40: 0 | VCS40: 0 | VCT40: 0 | VCU40: 0 | VCV40: 0 | VCW40: 0 | VCX40: 0 | VCY40: 0 | VCZ40: 0 | VDA40: 0 | VDB40: 0 | VDC40: 0 | VDD40: 0 | VDE40: =VDE20 -> 0 | VDF40: 0 | VDG40: 0 | VDH40: 0 | VDI40: 0 | VDJ40: 0 | VDK40: 0 | VDL40: 0 | VDM40: 0 | VDN40: 0 | VDO40: 0 | VDP40: 0 | VDQ40: 0 | VDR40: 0 | VDS40: 0 | VDT40: 0 | VDU40: 0 | VDV40: 0 | VDW40: 0 | VDX40: 0 | VDY40: 0 | VDZ40: 0 | VEA40: 0 | VEB40: 0 | VEC40: 0 | VED40: 0 | VEE40: 0 | VEF40: 0 | VEG40: 0 | VEH40: 0 | VEI40: 0 | VEJ40: 0 | VEK40: 0 | VEL40: 0 | VEM40: 0 | VEN40: 0 | VEO40: 0 | VEP40: 0 | VEQ40: 0 | VER40: 0 | VES40: 0 | VET40: 0 | VEU40: 0 | VEV40: 0 | VEW40: 0 | VEX40: 0 | VEY40: 0 | VEZ40: 0 | VFA40: 0 | VFB40: 0 | VFC40: 0 | VFD40: 0 | VFE40: 0 | VFF40: 0 | VFG40: 0 | VFH40: 0 | VFI40: 0 | VFJ40: 0 | VFK40: 0 | VFL40: 0 | VFM40: 0 | VFN40: 0 | VFO40: 0 | VFP40: 0 | VFQ40: =VFQ20 -> 0 | VFR40: 0 | VFS40: 0 | VFT40: 0 | VFU40: 0 | VFV40: 0 | VFW40: 0 | VFX40: 0 | VFY40: 0 | VFZ40: 0 | VGA40: 0 | VGB40: 0 | VGC40: 0 | VGD40: 0 | VGE40: 0 | VGF40: 0 | VGG40: 0 | VGH40: 0 | VGI40: 0 | VGJ40: 0 | VGK40: 0 | VGL40: 0 | VGM40: 0 | VGN40: 0 | VGO40: 0 | VGP40: 0 | VGQ40: 0 | VGR40: 0 | VGS40: 0 | VGT40: 0 | VGU40: 0 | VGV40: 0 | VGW40: 0 | VGX40: 0 | VGY40: 0 | VGZ40: 0 | VHA40: 0 | VHB40: 0 | VHC40: 0 | VHD40: 0 | VHE40: 0 | VHF40: 0 | VHG40: 0 | VHH40: 0 | VHI40: 0 | VHJ40: 0 | VHK40: 0 | VHL40: 0 | VHM40: 0 | VHN40: 0 | VHO40: 0 | VHP40: 0 | VHQ40: 0 | VHR40: 0 | VHS40: 0 | VHT40: 0 | VHU40: 0 | VHV40: 0 | VHW40: 0 | VHX40: 0 | VHY40: 0 | VHZ40: 0 | VIA40: 0 | VIB40: 0 | VIC40: =VIC20 -> 0 | VID40: 0 | VIE40: 0 | VIF40: 0 | VIG40: 0 | VIH40: 0 | VII40: 0 | VIJ40: 0 | VIK40: 0 | VIL40: 0 | VIM40: 0 | VIN40: 0 | VIO40: 0 | VIP40: 0 | VIQ40: 0 | VIR40: 0 | VIS40: 0 | VIT40: 0 | VIU40: 0 | VIV40: 0 | VIW40: 0 | VIX40: 0 | VIY40: 0 | VIZ40: 0 | VJA40: 0 | VJB40: 0 | VJC40: 0 | VJD40: 0 | VJE40: 0 | VJF40: 0 | VJG40: 0 | VJH40: 0 | VJI40: 0 | VJJ40: 0 | VJK40: 0 | VJL40: 0 | VJM40: 0 | VJN40: 0 | VJO40: 0 | VJP40: 0 | VJQ40: 0 | VJR40: 0 | VJS40: 0 | VJT40: 0 | VJU40: 0 | VJV40: 0 | VJW40: 0 | VJX40: 0 | VJY40: 0 | VJZ40: 0 | VKA40: 0 | VKB40: 0 | VKC40: 0 | VKD40: 0 | VKE40: 0 | VKF40: 0 | VKG40: 0 | VKH40: 0 | VKI40: 0 | VKJ40: 0 | VKK40: 0 | VKL40: 0 | VKM40: 0 | VKN40: 0 | VKO40: =VKO20 -> 0 | VKP40: 0 | VKQ40: 0 | VKR40: 0 | VKS40: 0 | VKT40: 0 | VKU40: 0 | VKV40: 0 | VKW40: 0 | VKX40: 0 | VKY40: 0 | VKZ40: 0 | VLA40: 0 | VLB40: 0 | VLC40: 0 | VLD40: 0 | VLE40: 0 | VLF40: 0 | VLG40: 0 | VLH40: 0 | VLI40: 0 | VLJ40: 0 | VLK40: 0 | VLL40: 0 | VLM40: 0 | VLN40: 0 | VLO40: 0 | VLP40: 0 | VLQ40: 0 | VLR40: 0 | VLS40: 0 | VLT40: 0 | VLU40: 0 | VLV40: 0 | VLW40: 0 | VLX40: 0 | VLY40: 0 | VLZ40: 0 | VMA40: 0 | VMB40: 0 | VMC40: 0 | VMD40: 0 | VME40: 0 | VMF40: 0 | VMG40: 0 | VMH40: 0 | VMI40: 0 | VMJ40: 0 | VMK40: 0 | VML40: 0 | VMM40: 0 | VMN40: 0 | VMO40: 0 | VMP40: 0 | VMQ40: 0 | VMR40: 0 | VMS40: 0 | VMT40: 0 | VMU40: 0 | VMV40: 0 | VMW40: 0 | VMX40: 0 | VMY40: 0 | VMZ40: 0 | VNA40: =VNA20 -> 0 | VNB40: 0 | VNC40: 0 | VND40: 0 | VNE40: 0 | VNF40: 0 | VNG40: 0 | VNH40: 0 | VNI40: 0 | VNJ40: 0 | VNK40: 0 | VNL40: 0 | VNM40: 0 | VNN40: 0 | VNO40: 0 | VNP40: 0 | VNQ40: 0 | VNR40: 0 | VNS40: 0 | VNT40: 0 | VNU40: 0 | VNV40: 0 | VNW40: 0 | VNX40: 0 | VNY40: 0 | VNZ40: 0 | VOA40: 0 | VOB40: 0 | VOC40: 0 | VOD40: 0 | VOE40: 0 | VOF40: 0 | VOG40: 0 | VOH40: 0 | VOI40: 0 | VOJ40: 0 | VOK40: 0 | VOL40: 0 | VOM40: 0 | VON40: 0 | VOO40: 0 | VOP40: 0 | VOQ40: 0 | VOR40: 0 | VOS40: 0 | VOT40: 0 | VOU40: 0 | VOV40: 0 | VOW40: 0 | VOX40: 0 | VOY40: 0 | VOZ40: 0 | VPA40: 0 | VPB40: 0 | VPC40: 0 | VPD40: 0 | VPE40: 0 | VPF40: 0 | VPG40: 0 | VPH40: 0 | VPI40: 0 | VPJ40: 0 | VPK40: 0 | VPL40: 0 | VPM40: =VPM20 -> 0 | VPN40: 0 | VPO40: 0 | VPP40: 0 | VPQ40: 0 | VPR40: 0 | VPS40: 0 | VPT40: 0 | VPU40: 0 | VPV40: 0 | VPW40: 0 | VPX40: 0 | VPY40: 0 | VPZ40: 0 | VQA40: 0 | VQB40: 0 | VQC40: 0 | VQD40: 0 | VQE40: 0 | VQF40: 0 | VQG40: 0 | VQH40: 0 | VQI40: 0 | VQJ40: 0 | VQK40: 0 | VQL40: 0 | VQM40: 0 | VQN40: 0 | VQO40: 0 | VQP40: 0 | VQQ40: 0 | VQR40: 0 | VQS40: 0 | VQT40: 0 | VQU40: 0 | VQV40: 0 | VQW40: 0 | VQX40: 0 | VQY40: 0 | VQZ40: 0 | VRA40: 0 | VRB40: 0 | VRC40: 0 | VRD40: 0 | VRE40: 0 | VRF40: 0 | VRG40: 0 | VRH40: 0 | VRI40: 0 | VRJ40: 0 | VRK40: 0 | VRL40: 0 | VRM40: 0 | VRN40: 0 | VRO40: 0 | VRP40: 0 | VRQ40: 0 | VRR40: 0 | VRS40: 0 | VRT40: 0 | VRU40: 0 | VRV40: 0 | VRW40: 0 | VRX40: 0 | VRY40: =VRY20 -> 0 | VRZ40: 0 | VSA40: 0 | VSB40: 0 | VSC40: 0 | VSD40: 0 | VSE40: 0 | VSF40: 0 | VSG40: 0 | VSH40: 0 | VSI40: 0 | VSJ40: 0 | VSK40: 0 | VSL40: 0 | VSM40: 0 | VSN40: 0 | VSO40: 0 | VSP40: 0 | VSQ40: 0 | VSR40: 0 | VSS40: 0 | VST40: 0 | VSU40: 0 | VSV40: 0 | VSW40: 0 | VSX40: 0 | VSY40: 0 | VSZ40: 0 | VTA40: 0 | VTB40: 0 | VTC40: 0 | VTD40: 0 | VTE40: 0 | VTF40: 0 | VTG40: 0 | VTH40: 0 | VTI40: 0 | VTJ40: 0 | VTK40: 0 | VTL40: 0 | VTM40: 0 | VTN40: 0 | VTO40: 0 | VTP40: 0 | VTQ40: 0 | VTR40: 0 | VTS40: 0 | VTT40: 0 | VTU40: 0 | VTV40: 0 | VTW40: 0 | VTX40: 0 | VTY40: 0 | VTZ40: 0 | VUA40: 0 | VUB40: 0 | VUC40: 0 | VUD40: 0 | VUE40: 0 | VUF40: 0 | VUG40: 0 | VUH40: 0 | VUI40: 0 | VUJ40: 0 | VUK40: =VUK20 -> 0 | VUL40: 0 | VUM40: 0 | VUN40: 0 | VUO40: 0 | VUP40: 0 | VUQ40: 0 | VUR40: 0 | VUS40: 0 | VUT40: 0 | VUU40: 0 | VUV40: 0 | VUW40: 0 | VUX40: 0 | VUY40: 0 | VUZ40: 0 | VVA40: 0 | VVB40: 0 | VVC40: 0 | VVD40: 0 | VVE40: 0 | VVF40: 0 | VVG40: 0 | VVH40: 0 | VVI40: 0 | VVJ40: 0 | VVK40: 0 | VVL40: 0 | VVM40: 0 | VVN40: 0 | VVO40: 0 | VVP40: 0 | VVQ40: 0 | VVR40: 0 | VVS40: 0 | VVT40: 0 | VVU40: 0 | VVV40: 0 | VVW40: 0 | VVX40: 0 | VVY40: 0 | VVZ40: 0 | VWA40: 0 | VWB40: 0 | VWC40: 0 | VWD40: 0 | VWE40: 0 | VWF40: 0 | VWG40: 0 | VWH40: 0 | VWI40: 0 | VWJ40: 0 | VWK40: 0 | VWL40: 0 | VWM40: 0 | VWN40: 0 | VWO40: 0 | VWP40: 0 | VWQ40: 0 | VWR40: 0 | VWS40: 0 | VWT40: 0 | VWU40: 0 | VWV40: 0 | VWW40: =VWW20 -> 0 | VWX40: 0 | VWY40: 0 | VWZ40: 0 | VXA40: 0 | VXB40: 0 | VXC40: 0 | VXD40: 0 | VXE40: 0 | VXF40: 0 | VXG40: 0 | VXH40: 0 | VXI40: 0 | VXJ40: 0 | VXK40: 0 | VXL40: 0 | VXM40: 0 | VXN40: 0 | VXO40: 0 | VXP40: 0 | VXQ40: 0 | VXR40: 0 | VXS40: 0 | VXT40: 0 | VXU40: 0 | VXV40: 0 | VXW40: 0 | VXX40: 0 | VXY40: 0 | VXZ40: 0 | VYA40: 0 | VYB40: 0 | VYC40: 0 | VYD40: 0 | VYE40: 0 | VYF40: 0 | VYG40: 0 | VYH40: 0 | VYI40: 0 | VYJ40: 0 | VYK40: 0 | VYL40: 0 | VYM40: 0 | VYN40: 0 | VYO40: 0 | VYP40: 0 | VYQ40: 0 | VYR40: 0 | VYS40: 0 | VYT40: 0 | VYU40: 0 | VYV40: 0 | VYW40: 0 | VYX40: 0 | VYY40: 0 | VYZ40: 0 | VZA40: 0 | VZB40: 0 | VZC40: 0 | VZD40: 0 | VZE40: 0 | VZF40: 0 | VZG40: 0 | VZH40: 0 | VZI40: =VZI20 -> 0 | VZJ40: 0 | VZK40: 0 | VZL40: 0 | VZM40: 0 | VZN40: 0 | VZO40: 0 | VZP40: 0 | VZQ40: 0 | VZR40: 0 | VZS40: 0 | VZT40: 0 | VZU40: 0 | VZV40: 0 | VZW40: 0 | VZX40: 0 | VZY40: 0 | VZZ40: 0 | WAA40: 0 | WAB40: 0 | WAC40: 0 | WAD40: 0 | WAE40: 0 | WAF40: 0 | WAG40: 0 | WAH40: 0 | WAI40: 0 | WAJ40: 0 | WAK40: 0 | WAL40: 0 | WAM40: 0 | WAN40: 0 | WAO40: 0 | WAP40: 0 | WAQ40: 0 | WAR40: 0 | WAS40: 0 | WAT40: 0 | WAU40: 0 | WAV40: 0 | WAW40: 0 | WAX40: 0 | WAY40: 0 | WAZ40: 0 | WBA40: 0 | WBB40: 0 | WBC40: 0 | WBD40: 0 | WBE40: 0 | WBF40: 0 | WBG40: 0 | WBH40: 0 | WBI40: 0 | WBJ40: 0 | WBK40: 0 | WBL40: 0 | WBM40: 0 | WBN40: 0 | WBO40: 0 | WBP40: 0 | WBQ40: 0 | WBR40: 0 | WBS40: 0 | WBT40: 0 | WBU40: =WBU20 -> 0 | WBV40: 0 | WBW40: 0 | WBX40: 0 | WBY40: 0 | WBZ40: 0 | WCA40: 0 | WCB40: 0 | WCC40: 0 | WCD40: 0 | WCE40: 0 | WCF40: 0 | WCG40: 0 | WCH40: 0 | WCI40: 0 | WCJ40: 0 | WCK40: 0 | WCL40: 0 | WCM40: 0 | WCN40: 0 | WCO40: 0 | WCP40: 0 | WCQ40: 0 | WCR40: 0 | WCS40: 0 | WCT40: 0 | WCU40: 0 | WCV40: 0 | WCW40: 0 | WCX40: 0 | WCY40: 0 | WCZ40: 0 | WDA40: 0 | WDB40: 0 | WDC40: 0 | WDD40: 0 | WDE40: 0 | WDF40: 0 | WDG40: 0 | WDH40: 0 | WDI40: 0 | WDJ40: 0 | WDK40: 0 | WDL40: 0 | WDM40: 0 | WDN40: 0 | WDO40: 0 | WDP40: 0 | WDQ40: 0 | WDR40: 0 | WDS40: 0 | WDT40: 0 | WDU40: 0 | WDV40: 0 | WDW40: 0 | WDX40: 0 | WDY40: 0 | WDZ40: 0 | WEA40: 0 | WEB40: 0 | WEC40: 0 | WED40: 0 | WEE40: 0 | WEF40: 0 | WEG40: =WEG20 -> 0 | WEH40: 0 | WEI40: 0 | WEJ40: 0 | WEK40: 0 | WEL40: 0 | WEM40: 0 | WEN40: 0 | WEO40: 0 | WEP40: 0 | WEQ40: 0 | WER40: 0 | WES40: 0 | WET40: 0 | WEU40: 0 | WEV40: 0 | WEW40: 0 | WEX40: 0 | WEY40: 0 | WEZ40: 0 | WFA40: 0 | WFB40: 0 | WFC40: 0 | WFD40: 0 | WFE40: 0 | WFF40: 0 | WFG40: 0 | WFH40: 0 | WFI40: 0 | WFJ40: 0 | WFK40: 0 | WFL40: 0 | WFM40: 0 | WFN40: 0 | WFO40: 0 | WFP40: 0 | WFQ40: 0 | WFR40: 0 | WFS40: 0 | WFT40: 0 | WFU40: 0 | WFV40: 0 | WFW40: 0 | WFX40: 0 | WFY40: 0 | WFZ40: 0 | WGA40: 0 | WGB40: 0 | WGC40: 0 | WGD40: 0 | WGE40: 0 | WGF40: 0 | WGG40: 0 | WGH40: 0 | WGI40: 0 | WGJ40: 0 | WGK40: 0 | WGL40: 0 | WGM40: 0 | WGN40: 0 | WGO40: 0 | WGP40: 0 | WGQ40: 0 | WGR40: 0 | WGS40: =WGS20 -> 0 | WGT40: 0 | WGU40: 0 | WGV40: 0 | WGW40: 0 | WGX40: 0 | WGY40: 0 | WGZ40: 0 | WHA40: 0 | WHB40: 0 | WHC40: 0 | WHD40: 0 | WHE40: 0 | WHF40: 0 | WHG40: 0 | WHH40: 0 | WHI40: 0 | WHJ40: 0 | WHK40: 0 | WHL40: 0 | WHM40: 0 | WHN40: 0 | WHO40: 0 | WHP40: 0 | WHQ40: 0 | WHR40: 0 | WHS40: 0 | WHT40: 0 | WHU40: 0 | WHV40: 0 | WHW40: 0 | WHX40: 0 | WHY40: 0 | WHZ40: 0 | WIA40: 0 | WIB40: 0 | WIC40: 0 | WID40: 0 | WIE40: 0 | WIF40: 0 | WIG40: 0 | WIH40: 0 | WII40: 0 | WIJ40: 0 | WIK40: 0 | WIL40: 0 | WIM40: 0 | WIN40: 0 | WIO40: 0 | WIP40: 0 | WIQ40: 0 | WIR40: 0 | WIS40: 0 | WIT40: 0 | WIU40: 0 | WIV40: 0 | WIW40: 0 | WIX40: 0 | WIY40: 0 | WIZ40: 0 | WJA40: 0 | WJB40: 0 | WJC40: 0 | WJD40: 0 | WJE40: =WJE20 -> 0 | WJF40: 0 | WJG40: 0 | WJH40: 0 | WJI40: 0 | WJJ40: 0 | WJK40: 0 | WJL40: 0 | WJM40: 0 | WJN40: 0 | WJO40: 0 | WJP40: 0 | WJQ40: 0 | WJR40: 0 | WJS40: 0 | WJT40: 0 | WJU40: 0 | WJV40: 0 | WJW40: 0 | WJX40: 0 | WJY40: 0 | WJZ40: 0 | WKA40: 0 | WKB40: 0 | WKC40: 0 | WKD40: 0 | WKE40: 0 | WKF40: 0 | WKG40: 0 | WKH40: 0 | WKI40: 0 | WKJ40: 0 | WKK40: 0 | WKL40: 0 | WKM40: 0 | WKN40: 0 | WKO40: 0 | WKP40: 0 | WKQ40: 0 | WKR40: 0 | WKS40: 0 | WKT40: 0 | WKU40: 0 | WKV40: 0 | WKW40: 0 | WKX40: 0 | WKY40: 0 | WKZ40: 0 | WLA40: 0 | WLB40: 0 | WLC40: 0 | WLD40: 0 | WLE40: 0 | WLF40: 0 | WLG40: 0 | WLH40: 0 | WLI40: 0 | WLJ40: 0 | WLK40: 0 | WLL40: 0 | WLM40: 0 | WLN40: 0 | WLO40: 0 | WLP40: 0 | WLQ40: =WLQ20 -> 0 | WLR40: 0 | WLS40: 0 | WLT40: 0 | WLU40: 0 | WLV40: 0 | WLW40: 0 | WLX40: 0 | WLY40: 0 | WLZ40: 0 | WMA40: 0 | WMB40: 0 | WMC40: 0 | WMD40: 0 | WME40: 0 | WMF40: 0 | WMG40: 0 | WMH40: 0 | WMI40: 0 | WMJ40: 0 | WMK40: 0 | WML40: 0 | WMM40: 0 | WMN40: 0 | WMO40: 0 | WMP40: 0 | WMQ40: 0 | WMR40: 0 | WMS40: 0 | WMT40: 0 | WMU40: 0 | WMV40: 0 | WMW40: 0 | WMX40: 0 | WMY40: 0 | WMZ40: 0 | WNA40: 0 | WNB40: 0 | WNC40: 0 | WND40: 0 | WNE40: 0 | WNF40: 0 | WNG40: 0 | WNH40: 0 | WNI40: 0 | WNJ40: 0 | WNK40: 0 | WNL40: 0 | WNM40: 0 | WNN40: 0 | WNO40: 0 | WNP40: 0 | WNQ40: 0 | WNR40: 0 | WNS40: 0 | WNT40: 0 | WNU40: 0 | WNV40: 0 | WNW40: 0 | WNX40: 0 | WNY40: 0 | WNZ40: 0 | WOA40: 0 | WOB40: 0 | WOC40: =WOC20 -> 0 | WOD40: 0 | WOE40: 0 | WOF40: 0 | WOG40: 0 | WOH40: 0 | WOI40: 0 | WOJ40: 0 | WOK40: 0 | WOL40: 0 | WOM40: 0 | WON40: 0 | WOO40: 0 | WOP40: 0 | WOQ40: 0 | WOR40: 0 | WOS40: 0 | WOT40: 0 | WOU40: 0 | WOV40: 0 | WOW40: 0 | WOX40: 0 | WOY40: 0 | WOZ40: 0 | WPA40: 0 | WPB40: 0 | WPC40: 0 | WPD40: 0 | WPE40: 0 | WPF40: 0 | WPG40: 0 | WPH40: 0 | WPI40: 0 | WPJ40: 0 | WPK40: 0 | WPL40: 0 | WPM40: 0 | WPN40: 0 | WPO40: 0 | WPP40: 0 | WPQ40: 0 | WPR40: 0 | WPS40: 0 | WPT40: 0 | WPU40: 0 | WPV40: 0 | WPW40: 0 | WPX40: 0 | WPY40: 0 | WPZ40: 0 | WQA40: 0 | WQB40: 0 | WQC40: 0 | WQD40: 0 | WQE40: 0 | WQF40: 0 | WQG40: 0 | WQH40: 0 | WQI40: 0 | WQJ40: 0 | WQK40: 0 | WQL40: 0 | WQM40: 0 | WQN40: 0 | WQO40: =WQO20 -> 0 | WQP40: 0 | WQQ40: 0 | WQR40: 0 | WQS40: 0 | WQT40: 0 | WQU40: 0 | WQV40: 0 | WQW40: 0 | WQX40: 0 | WQY40: 0 | WQZ40: 0 | WRA40: 0 | WRB40: 0 | WRC40: 0 | WRD40: 0 | WRE40: 0 | WRF40: 0 | WRG40: 0 | WRH40: 0 | WRI40: 0 | WRJ40: 0 | WRK40: 0 | WRL40: 0 | WRM40: 0 | WRN40: 0 | WRO40: 0 | WRP40: 0 | WRQ40: 0 | WRR40: 0 | WRS40: 0 | WRT40: 0 | WRU40: 0 | WRV40: 0 | WRW40: 0 | WRX40: 0 | WRY40: 0 | WRZ40: 0 | WSA40: 0 | WSB40: 0 | WSC40: 0 | WSD40: 0 | WSE40: 0 | WSF40: 0 | WSG40: 0 | WSH40: 0 | WSI40: 0 | WSJ40: 0 | WSK40: 0 | WSL40: 0 | WSM40: 0 | WSN40: 0 | WSO40: 0 | WSP40: 0 | WSQ40: 0 | WSR40: 0 | WSS40: 0 | WST40: 0 | WSU40: 0 | WSV40: 0 | WSW40: 0 | WSX40: 0 | WSY40: 0 | WSZ40: 0 | WTA40: =WTA20 -> 0 | WTB40: 0 | WTC40: 0 | WTD40: 0 | WTE40: 0 | WTF40: 0 | WTG40: 0 | WTH40: 0 | WTI40: 0 | WTJ40: 0 | WTK40: 0 | WTL40: 0 | WTM40: 0 | WTN40: 0 | WTO40: 0 | WTP40: 0 | WTQ40: 0 | WTR40: 0 | WTS40: 0 | WTT40: 0 | WTU40: 0 | WTV40: 0 | WTW40: 0 | WTX40: 0 | WTY40: 0 | WTZ40: 0 | WUA40: 0 | WUB40: 0 | WUC40: 0 | WUD40: 0 | WUE40: 0 | WUF40: 0 | WUG40: 0 | WUH40: 0 | WUI40: 0 | WUJ40: 0 | WUK40: 0 | WUL40: 0 | WUM40: 0 | WUN40: 0 | WUO40: 0 | WUP40: 0 | WUQ40: 0 | WUR40: 0 | WUS40: 0 | WUT40: 0 | WUU40: 0 | WUV40: 0 | WUW40: 0 | WUX40: 0 | WUY40: 0 | WUZ40: 0 | WVA40: 0 | WVB40: 0 | WVC40: 0 | WVD40: 0 | WVE40: 0 | WVF40: 0 | WVG40: 0 | WVH40: 0 | WVI40: 0 | WVJ40: 0 | WVK40: 0 | WVL40: 0 | WVM40: =WVM20 -> 0 | WVN40: 0 | WVO40: 0 | WVP40: 0 | WVQ40: 0 | WVR40: 0 | WVS40: 0 | WVT40: 0 | WVU40: 0 | WVV40: 0 | WVW40: 0 | WVX40: 0 | WVY40: 0 | WVZ40: 0 | WWA40: 0 | WWB40: 0 | WWC40: 0 | WWD40: 0 | WWE40: 0 | WWF40: 0 | WWG40: 0 | WWH40: 0 | WWI40: 0 | WWJ40: 0 | WWK40: 0 | WWL40: 0 | WWM40: 0 | WWN40: 0 | WWO40: 0 | WWP40: 0 | WWQ40: 0 | WWR40: 0 | WWS40: 0 | WWT40: 0 | WWU40: 0 | WWV40: 0 | WWW40: 0 | WWX40: 0 | WWY40: 0 | WWZ40: 0 | WXA40: 0 | WXB40: 0 | WXC40: 0 | WXD40: 0 | WXE40: 0 | WXF40: 0 | WXG40: 0 | WXH40: 0 | WXI40: 0 | WXJ40: 0 | WXK40: 0 | WXL40: 0 | WXM40: 0 | WXN40: 0 | WXO40: 0 | WXP40: 0 | WXQ40: 0 | WXR40: 0 | WXS40: 0 | WXT40: 0 | WXU40: 0 | WXV40: 0 | WXW40: 0 | WXX40: 0 | WXY40: =WXY20 -> 0 | WXZ40: 0 | WYA40: 0 | WYB40: 0 | WYC40: 0 | WYD40: 0 | WYE40: 0 | WYF40: 0 | WYG40: 0 | WYH40: 0 | WYI40: 0 | WYJ40: 0 | WYK40: 0 | WYL40: 0 | WYM40: 0 | WYN40: 0 | WYO40: 0 | WYP40: 0 | WYQ40: 0 | WYR40: 0 | WYS40: 0 | WYT40: 0 | WYU40: 0 | WYV40: 0 | WYW40: 0 | WYX40: 0 | WYY40: 0 | WYZ40: 0 | WZA40: 0 | WZB40: 0 | WZC40: 0 | WZD40: 0 | WZE40: 0 | WZF40: 0 | WZG40: 0 | WZH40: 0 | WZI40: 0 | WZJ40: 0 | WZK40: 0 | WZL40: 0 | WZM40: 0 | WZN40: 0 | WZO40: 0 | WZP40: 0 | WZQ40: 0 | WZR40: 0 | WZS40: 0 | WZT40: 0 | WZU40: 0 | WZV40: 0 | WZW40: 0 | WZX40: 0 | WZY40: 0 | WZZ40: 0 | XAA40: 0 | XAB40: 0 | XAC40: 0 | XAD40: 0 | XAE40: 0 | XAF40: 0 | XAG40: 0 | XAH40: 0 | XAI40: 0 | XAJ40: 0 | XAK40: =XAK20 -> 0 | XAL40: 0 | XAM40: 0 | XAN40: 0 | XAO40: 0 | XAP40: 0 | XAQ40: 0 | XAR40: 0 | XAS40: 0 | XAT40: 0 | XAU40: 0 | XAV40: 0 | XAW40: 0 | XAX40: 0 | XAY40: 0 | XAZ40: 0 | XBA40: 0 | XBB40: 0 | XBC40: 0 | XBD40: 0 | XBE40: 0 | XBF40: 0 | XBG40: 0 | XBH40: 0 | XBI40: 0 | XBJ40: 0 | XBK40: 0 | XBL40: 0 | XBM40: 0 | XBN40: 0 | XBO40: 0 | XBP40: 0 | XBQ40: 0 | XBR40: 0 | XBS40: 0 | XBT40: 0 | XBU40: 0 | XBV40: 0 | XBW40: 0 | XBX40: 0 | XBY40: 0 | XBZ40: 0 | XCA40: 0 | XCB40: 0 | XCC40: 0 | XCD40: 0 | XCE40: 0 | XCF40: 0 | XCG40: 0 | XCH40: 0 | XCI40: 0 | XCJ40: 0 | XCK40: 0 | XCL40: 0 | XCM40: 0 | XCN40: 0 | XCO40: 0 | XCP40: 0 | XCQ40: 0 | XCR40: 0 | XCS40: 0 | XCT40: 0 | XCU40: 0 | XCV40: 0 | XCW40: =XCW20 -> 0 | XCX40: 0 | XCY40: 0 | XCZ40: 0 | XDA40: 0 | XDB40: 0 | XDC40: 0 | XDD40: 0 | XDE40: 0 | XDF40: 0 | XDG40: 0 | XDH40: 0 | XDI40: 0 | XDJ40: 0 | XDK40: 0 | XDL40: 0 | XDM40: 0 | XDN40: 0 | XDO40: 0 | XDP40: 0 | XDQ40: 0 | XDR40: 0 | XDS40: 0 | XDT40: 0 | XDU40: 0 | XDV40: 0 | XDW40: 0 | XDX40: 0 | XDY40: 0 | XDZ40: 0 | XEA40: 0 | XEB40: 0 | XEC40: 0 | XED40: 0 | XEE40: 0 | XEF40: 0 | XEG40: 0 | XEH40: 0 | XEI40: 0 | XEJ40: 0 | XEK40: 0 | XEL40: 0 | XEM40: 0 | XEN40: 0 | XEO40: 0 | XEP40: 0 | XEQ40: 0 | XER40: 0 | XES40: 0 | XET40: 0 | XEU40: 0 | XEV40: 0 | XEW40: 0 | XEX40: 0 | XEY40: 0 | XEZ40: 0 | XFA40: 0 | XFB40: 0 | XFC40: 0 | XFD40: 0
D41: Forecasted | E41: Forecasted | F41: Forecasted | G41: Forecasted | H41: Forecasted
B43: Opening UCC | D43: 0 | E43: =D51 -> 719389.4 | F43: =E51 -> 661838.248 | G43: =F51 -> 608891.1882 | H43: =G51 -> 560179.8931
B44: Capital Additions | D44: =D24 -> 781945 | E44: =E24 -> 0 | F44: =F24 -> 0 | G44: =G24 -> 0 | H44: =H24 -> 0
B45: UCC Before Half Year Rule | D45: =SUM(D43:D44) -> 781945 | E45: =SUM(E43:E44) -> 719389.4 | F45: =SUM(F43:F44) -> 661838.248 | G45: =SUM(G43:G44) -> 608891.1882 | H45: =SUM(H43:H44) -> 560179.8931
B46: Half Year Rule (1/2 Additions - Disposals) | D46: 0 | E46: =E44/2 -> 0 | F46: =F44/2 -> 0 | G46: =G44/2 -> 0 | H46: =H44/2 -> 0
B47: Reduced UCC | D47: =D45-D46 -> 781945 | E47: =E45-E46 -> 719389.4 | F47: =F45-F46 -> 661838.248 | G47: =G45-G46 -> 608891.1882 | H47: =H45-H46 -> 560179.8931
B48: CCA Rate Class | C48: ='Incremental Capital Summary'!K23 -> 17
B49: CCA Rate | C49: ='Incremental Capital Summary'!M23 -> 0.08
B50: CCA | D50: =D47*$C$49 -> 62555.6 | E50: =E47*$C$49 -> 57551.152 | F50: =F47*$C$49 -> 52947.05984 | G50: =G47*$C$49 -> 48711.29505 | H50: =H47*$C$49 -> 44814.39145
B51: Closing UCC | D51: =D45-D50 -> 719389.4 | E51: =E45-E50 -> 661838.248 | F51: =F45-F50 -> 608891.1882 | G51: =G45-G50 -> 560179.8931 | H51: =H45-H50 -> 515365.5017

Sheet Fixed Asset Amort and UCC 4
B10: Fixed Asset Amortization and UCC 4
B12: Name or General Description of Project
B13: =IF(ISBLANK('Incremental Capital Summary'!B14), "", 'Incremental Capital Summary'!B14) -> Innisfil Hydro New Corporate Operations Centre
B15: Asset Component
B16: =IF(ISBLANK('Incremental Capital Summary'!C24),"",'Incremental Capital Summary'!C24) -> Land
B19: Average Net Fixed Assets
D20: 2015 | E20: 2016 | F20: 2017 | G20: 2018 | H20: 2019
B21: Net Fixed Assets | D21: Forecasted | E21: Forecasted | F21: Forecasted | G21: Forecasted | H21: Forecasted
B23: Opening Capital Investment | D23: 0 | E23: =D25 -> 1015496 | F23: =E25 -> 1015496 | G23: =F25 -> 1015496 | H23: =G25 -> 1015496
B24: Capital Investment | D24: =IF('Incremental Capital Summary'!$B$11="4th year of IRM cycle", 'Incremental Capital Summary'!E24/2, 'Incremental Capital Summary'!E24) -> 1015496 | E24: 0 | F24: 0 | G24: 0 | H24: 0
B25: Closing Capital Investment | D25: =SUM(D23:D24) -> 1015496 | E25: =SUM(E23:E24) -> 1015496 | F25: =SUM(F23:F24) -> 1015496 | G25: =SUM(G23:G24) -> 1015496 | H25: =SUM(H23:H24) -> 1015496
B27: Opening Accumulated Amortization | D27: 0 | E27: =D29 -> 0 | F27: =E29 -> 0 | G27: =F29 -> 0 | H27: =G29 -> 0
B28: Amortization | C28: ='Incremental Capital Summary'!I24 -> 0 | D28: =D24*$C$28 -> 0 | E28: =E23*$C$28 -> 0 | F28: =F23*$C$28 -> 0 | G28: =G23*$C$28 -> 0 | H28: =H23*$C$28 -> 0
B29: Closing Accumulated Amortization | D29: =SUM(D27:D28) -> 0 | E29: =SUM(E27:E28) -> 0 | F29: =SUM(F27:F28) -> 0 | G29: =SUM(G27:G28) -> 0 | H29: =SUM(H27:H28) -> 0
B31: Opening Net Fixed Assets | D31: 0 | E31: =E23-E27 -> 1015496 | F31: =F23-F27 -> 1015496 | G31: =G23-G27 -> 1015496 | H31: =H23-H27 -> 1015496
B32: Closing Net Fixed Assets | D32: =D25-D29 -> 1015496 | E32: =E25-E29 -> 1015496 | F32: =F25-F29 -> 1015496 | G32: =G25-G29 -> 1015496 | H32: =H25-H29 -> 1015496
B33: Average Net Fixed Assets | D33: =SUM(D31:D32)/2 -> 507748 | E33: =SUM(E31:E32)/2 -> 1015496 | F33: =SUM(F31:F32)/2 -> 1015496 | G33: =SUM(G31:G32)/2 -> 1015496 | H33: =SUM(H31:H32)/2 -> 1015496
B38: For PILs Calculation
